Workbook

Sheet 各種設定
A1: 祝日リスト | L1: 勤務時間計算表
A3: ↓日付は必ずA4から貼付すること | D3: ※ネットで検索して情報を持ってきてください。おススメは以下（内閣府HP）
A4: 2025-01-01 | B4: 元日 | D4: → https://www8.cao.go.jp/chosei/shukujitsu/gaiyou.html | L4: カテゴリ | M4: 出勤時間 | N4: 退勤時間 | O4: 休憩時間 | P4: 労働時間
A5: 2025-01-13 | B5: 成人の日 | D5: ※更新する時は西暦表示にすること（年に注意！） | L5: A | M5: 09:00:00 | N5: 16:00:00 | O5: 1 | P5: =(N5-M5)*24-O5 -> 6
A6: 2025-02-11 | B6: 建国記念の日 | D6: ※日付は必ず「短い日付表示」で設定してください | L6: B | M6: 09:00:00 | N6: 17:00:00 | O6: 1 | P6: =(N6-M6)*24-O6 -> 7
A7: 2025-02-23 | B7: 天皇誕生日 | D7: ※指定場所に貼付しないと条件付き書式が機能しません！ | L7: C | M7: 09:00:00 | N7: 17:30:00 | O7: 1 | P7: =(N7-M7)*24-O7 -> 7.5
A8: 2025-02-24 | B8: 休日 | L8: D | M8: 10:45:00 | N8: 17:00:00 | O8: 1 | P8: =(N8-M8)*24-O8 -> 5.25
A9: 2025-03-20 | B9: 春分の日 | L9: E | M9: 13:00:00 | N9: 17:00:00 | O9: 0 | P9: 4
A10: 2025-04-29 | B10: 昭和の日
A11: 2025-05-03 | B11: 憲法記念日
A12: 2025-05-04 | B12: みどりの日
A13: 2025-05-05 | B13: こどもの日
A14: 2025-05-06 | B14: 休日
A15: 2025-07-21 | B15: 海の日
A16: 2025-08-11 | B16: 山の日
A17: 2025-09-15 | B17: 敬老の日
A18: 2025-09-23 | B18: 秋分の日
A19: 2025-10-13 | B19: スポーツの日
A20: 2025-11-03 | B20: 文化の日
A21: 2025-11-23 | B21: 勤労感謝の日
A22: 2025-11-24 | B22: 休日

Sheet 休暇希望
E2: 休暇希望入力欄（左詰めでOK。順番関係なし） | AK2: カテゴリ | AL2: 出勤時間 | AM2: 退勤時間 | AN2: 休憩時間 | AO2: 労働時間
A3: 人数 | B3: カテゴリ | C3: 氏名 | AK3: =各種設定!L5 -> A | AL3: =各種設定!M5 -> 09:00:00 | AM3: =各種設定!N5 -> 16:00:00 | AN3: =各種設定!O5 -> 1 | AO3: =各種設定!P5 -> 6
A4: =ROW()-3 -> 1 | B4: A | C4: 1 | E4: 2 | F4: 3 | G4: 6 | H4: 7 | I4: 8 | J4: 9 | K4: 10 | L4: 14 | M4: 15 | N4: 16 | O4: 17 | P4: 20 | Q4: 21 | R4: 22 | S4: 23 | T4: 24 | U4: 27 | V4: 28 | W4: 29 | X4: 30 | Y4: 31 | AK4: =各種設定!L6 -> B | AL4: =各種設定!M6 -> 09:00:00 | AM4: =各種設定!N6 -> 17:00:00 | AN4: =各種設定!O6 -> 1 | AO4: =各種設定!P6 -> 7
A5: =ROW()-3 -> 2 | B5: A | C5: 2 | E5: 14 | F5: 15 | G5: 17 | H5: 16 | I5: 23 | J5: 22 | K5: 20 | L5: 21 | M5: 29 | N5: 24 | O5: 27 | P5: 28 | Q5: 31 | R5: 30 | S5: 10 | T5: 9 | U5: 8 | V5: 7 | W5: 6 | X5: 3 | Y5: 2 | AK5: =各種設定!L7 -> C | AL5: =各種設定!M7 -> 09:00:00 | AM5: =各種設定!N7 -> 17:30:00 | AN5: =各種設定!O7 -> 1 | AO5: =各種設定!P7 -> 7.5
A6: 3 | B6: A | C6: 3 | AK6: =各種設定!L8 -> D | AL6: =各種設定!M8 -> 10:45:00 | AM6: =各種設定!N8 -> 17:00:00 | AN6: =各種設定!O8 -> 1 | AO6: =各種設定!P8 -> 5.25
A7: 4 | B7: A | C7: 4 | AK7: =各種設定!L9 -> E | AL7: =各種設定!M9 -> 13:00:00 | AM7: =各種設定!N9 -> 17:00:00 | AN7: =各種設定!O9 -> 0 | AO7: =各種設定!P9 -> 4
A8: 5 | B8: A | C8: 5
A9: 6 | B9: B | C9: 6
A10: 7 | B10: B | C10: 7
A11: 8 | B11: B | C11: 8
A12: 9 | B12: B | C12: 9
A13: 10 | B13: B | C13: 10
A14: 11 | B14: C | C14: 11
A15: 12 | B15: C | C15: 12
A16: 13 | B16: C | C16: 13
A17: 14 | B17: C | C17: 14
A18: 15 | B18: C | C18: 15
A19: 16 | B19: D | C19: 16
A20: 17 | B20: D | C20: 17
A21: 18 | B21: D | C21: 18
A22: 19 | B22: D | C22: 19
A23: 20 | B23: D | C23: 20
A24: 21 | B24: E | C24: 21
A25: 22 | B25: E | C25: 22
A26: 23 | B26: E | C26: 23
A27: 24 | B27: E | C27: 24
A28: 25 | B28: E | C28: 25
A29: 26 | B29: E | C29: 26
A30: 27 | B30: E | C30: 27
A31: 28 | B31: E | C31: 28
A32: 29 | B32: E | C32: 29
A33: 30 | B33: E | C33: 30
A34: 31 | B34: E | C34: 31
A35: 32 | B35: E | C35: 32
A36: 33 | B36: E | C36: 33
A37: 34 | B37: E | C37: 34
A38: 35 | B38: E | C38: 35
A39: 36 | B39: E | C39: 36
A40: 37 | B40: E | C40: 37
A41: 38 | B41: E | C41: 38
A42: 39 | B42: E | C42: 39
A43: =ROW()-3 -> 40 | B43: E | C43: 40
A44: 41 | B44: E | C44: 41
A45: 42 | B45: E | C45: 42
A46: 43 | B46: E | C46: 43
A47: 44 | B47: E | C47: 44
A48: 45 | B48: E | C48: 45
A49: 46 | B49: E | C49: 46
A50: 47 | B50: E | C50: 47
A51: 48 | B51: E | C51: 48
A52: 49 | B52: E | C52: 49
A53: 50 | B53: E | C53: 50

Sheet 出勤表
F2: 2025 | H2: 年 | I2: 1 | J2: 月 | O2: カテゴリー | Q2: A | R2: B | S2: C | T2: D | U2: E
G3: 月初 | H3: =DATE(F2,I2,1) -> 2025-01-01 | O3: 実労働時間 | Q3: =各種設定!P5 -> 6 | R3: =各種設定!P6 -> 7 | S3: =各種設定!P7 -> 7.5 | T3: =各種設定!P8 -> 5.25 | U3: =各種設定!P9 -> 4
G4: 月末 | H4: =EOMONTH(H3,0) -> 2025-01-31 | O4: 出勤時間 | Q4: =各種設定!M5 -> 09:00:00 | R4: =各種設定!M6 -> 09:00:00 | S4: =各種設定!M7 -> 09:00:00 | T4: =各種設定!M8 -> 10:45:00 | U4: =各種設定!M9 -> 13:00:00
O5: 退勤時間 | Q5: =各種設定!N5 -> 16:00:00 | R5: =各種設定!N6 -> 17:00:00 | S5: =各種設定!N7 -> 17:30:00 | T5: =各種設定!N8 -> 17:00:00 | U5: =各種設定!N9 -> 17:00:00
B7: カテゴリー | C7: 人時 | D7: 氏名 | E7: 出勤数 | F7: =H3 -> 2025-01-01 | G7: =IF(F7=$H$4,"",IF(F7="","",IF(F7<>$H$4,F7+1,""))) -> 2025-01-02 | H7: =IF(G7=$H$4,"",IF(G7="","",IF(G7<>$H$4,G7+1,""))) -> 2025-01-03 | I7: 2025-01-04 | J7: 2025-01-05 | K7: 2025-01-06 | L7: 2025-01-07 | M7: 2025-01-08 | N7: 2025-01-09 | O7: 2025-01-10 | P7: 2025-01-11 | Q7: 2025-01-12 | R7: 2025-01-13 | S7: 2025-01-14 | T7: 2025-01-15 | U7: 2025-01-16 | V7: 2025-01-17 | W7: 2025-01-18 | X7: 2025-01-19 | Y7: 2025-01-20 | Z7: 2025-01-21 | AA7: 2025-01-22 | AB7: 2025-01-23 | AC7: 2025-01-24 | AD7: 2025-01-25 | AE7: 2025-01-26 | AF7: 2025-01-27 | AG7: 2025-01-28 | AH7: 2025-01-29 | AI7: 2025-01-30 | AJ7: 2025-01-31 | AL7: 休暇希望日
F8: =F7 -> 45658 | G8: =G7 -> 45659 | H8: 45660 | I8: 45661 | J8: 45662 | K8: 45663 | L8: 45664 | M8: 45665 | N8: 45666 | O8: 45667 | P8: 45668 | Q8: 45669 | R8: 45670 | S8: 45671 | T8: 45672 | U8: 45673 | V8: 45674 | W8: 45675 | X8: 45676 | Y8: 45677 | Z8: 45678 | AA8: 45679 | AB8: 45680 | AC8: 45681 | AD8: 45682 | AE8: 45683 | AF8: 45684 | AG8: 45685 | AH8: 45686 | AI8: 45687 | AJ8: 45688
B9: A | C9: =_xlfn.SWITCH($B9,"A",$Q$3,"B",$R$3,"C",$S$3,"D",$T$3,"E",$U$3) -> 6 | D9: 1 | E9: =NETWORKDAYS($H$3,$H$4,各種設定!$A$4:$A$22)-COUNTIF(F9:AJ9,">0") -> 00:00:00 | F9: =IF(F$7="","",IF(COUNTIF($AL9:$BP9,F$7)>0,$C9,"")) ->  | G9: =IF(G$7="","",IF(COUNTIF($AL9:$BP9,G$7)>0,$C9,"")) -> 6 | H9: =IF(H$7="","",IF(COUNTIF($AL9:$BP9,H$7)>0,$C9,"")) -> 6 | K9: 6 | L9: 6 | M9: 6 | N9: 6 | O9: 6 | P9: =IF(P$7="","",IF(COUNTIF($AL9:$BP9,P$7)>0,$C9,"")) ->  | S9: 6 | T9: 6 | U9: 6 | V9: 6 | Y9: 6 | Z9: =IF(Z$7="","",IF(COUNTIF($AL9:$BP9,Z$7)>0,$C9,"")) -> 6 | AA9: 6 | AB9: 6 | AC9: 6 | AF9: 6 | AG9: 6 | AH9: 6 | AI9: 6 | AJ9: 6 | AL9: =IF(休暇希望!E4="","",DATE($F$2,$I$2,休暇希望!E4)) -> 2025-01-02 | AM9: =IF(休暇希望!F4="","",DATE($F$2,$I$2,休暇希望!F4)) -> 2025-01-03 | AN9: =IF(休暇希望!G4="","",DATE($F$2,$I$2,休暇希望!G4)) -> 2025-01-06 | AO9: =IF(休暇希望!H4="","",DATE($F$2,$I$2,休暇希望!H4)) -> 2025-01-07 | AP9: =IF(休暇希望!I4="","",DATE($F$2,$I$2,休暇希望!I4)) -> 2025-01-08 | AQ9: =IF(休暇希望!J4="","",DATE($F$2,$I$2,休暇希望!J4)) -> 2025-01-09 | AR9: =IF(休暇希望!K4="","",DATE($F$2,$I$2,休暇希望!K4)) -> 2025-01-10 | AS9: =IF(休暇希望!L4="","",DATE($F$2,$I$2,休暇希望!L4)) -> 2025-01-14 | AT9: =IF(休暇希望!M4="","",DATE($F$2,$I$2,休暇希望!M4)) -> 2025-01-15 | AU9: =IF(休暇希望!N4="","",DATE($F$2,$I$2,休暇希望!N4)) -> 2025-01-16 | AV9: =IF(休暇希望!O4="","",DATE($F$2,$I$2,休暇希望!O4)) -> 2025-01-17 | AW9: =IF(休暇希望!P4="","",DATE($F$2,$I$2,休暇希望!P4)) -> 2025-01-20 | AX9: =IF(休暇希望!Q4="","",DATE($F$2,$I$2,休暇希望!Q4)) -> 2025-01-21 | AY9: =IF(休暇希望!R4="","",DATE($F$2,$I$2,休暇希望!R4)) -> 2025-01-22 | AZ9: =IF(休暇希望!S4="","",DATE($F$2,$I$2,休暇希望!S4)) -> 2025-01-23 | BA9: =IF(休暇希望!T4="","",DATE($F$2,$I$2,休暇希望!T4)) -> 2025-01-24 | BB9: =IF(休暇希望!U4="","",DATE($F$2,$I$2,休暇希望!U4)) -> 2025-01-27 | BC9: =IF(休暇希望!V4="","",DATE($F$2,$I$2,休暇希望!V4)) -> 2025-01-28 | BD9: =IF(休暇希望!W4="","",DATE($F$2,$I$2,休暇希望!W4)) -> 2025-01-29 | BE9: =IF(休暇希望!X4="","",DATE($F$2,$I$2,休暇希望!X4)) -> 2025-01-30 | BF9: =IF(休暇希望!Y4="","",DATE($F$2,$I$2,休暇希望!Y4)) -> 2025-01-31 | BG9: =IF(休暇希望!Z4="","",DATE($F$2,$I$2,休暇希望!Z4)) ->  | BH9: =IF(休暇希望!AA4="","",DATE($F$2,$I$2,休暇希望!AA4)) ->  | BI9: =IF(休暇希望!AB4="","",DATE($F$2,$I$2,休暇希望!AB4)) ->  | BJ9: =IF(休暇希望!AC4="","",DATE($F$2,$I$2,休暇希望!AC4)) ->  | BK9: =IF(休暇希望!AD4="","",DATE($F$2,$I$2,休暇希望!AD4)) ->  | BL9: =IF(休暇希望!AE4="","",DATE($F$2,$I$2,休暇希望!AE4)) ->  | BM9: =IF(休暇希望!AF4="","",DATE($F$2,$I$2,休暇希望!AF4)) ->  | BN9: =IF(休暇希望!AG4="","",DATE($F$2,$I$2,休暇希望!AG4)) ->  | BO9: =IF(休暇希望!AH4="","",DATE($F$2,$I$2,休暇希望!AH4)) ->  | BP9: =IF(休暇希望!AI4="","",DATE($F$2,$I$2,休暇希望!AI4)) -> 
B10: A | C10: =_xlfn.SWITCH($B10,"A",$Q$3,"B",$R$3,"C",$S$3,"D",$T$3,"E",$U$3,) -> 6 | D10: 2 | E10: =NETWORKDAYS($H$3,$H$4,各種設定!$A$4:$A$22)-COUNTIF(F10:AJ10,">0") -> 00:00:00 | G10: 6 | H10: 6 | K10: 6 | L10: 6 | M10: 6 | N10: 6 | O10: 6 | S10: 6 | T10: 6 | U10: 6 | V10: 6 | Y10: 6 | Z10: 6 | AA10: 6 | AB10: 6 | AC10: 6 | AF10: 6 | AG10: 6 | AH10: 6 | AI10: 6 | AJ10: 6 | AL10: =IF(休暇希望!E5="","",DATE($F$2,$I$2,休暇希望!E5)) -> 2025-01-14 | AM10: =IF(休暇希望!F5="","",DATE($F$2,$I$2,休暇希望!F5)) -> 2025-01-15 | AN10: =IF(休暇希望!G5="","",DATE($F$2,$I$2,休暇希望!G5)) -> 2025-01-17 | AO10: =IF(休暇希望!H5="","",DATE($F$2,$I$2,休暇希望!H5)) -> 2025-01-16 | AP10: =IF(休暇希望!I5="","",DATE($F$2,$I$2,休暇希望!I5)) -> 2025-01-23 | AQ10: =IF(休暇希望!J5="","",DATE($F$2,$I$2,休暇希望!J5)) -> 2025-01-22 | AR10: =IF(休暇希望!K5="","",DATE($F$2,$I$2,休暇希望!K5)) -> 2025-01-20 | AS10: =IF(休暇希望!L5="","",DATE($F$2,$I$2,休暇希望!L5)) -> 2025-01-21 | AT10: =IF(休暇希望!M5="","",DATE($F$2,$I$2,休暇希望!M5)) -> 2025-01-29 | AU10: =IF(休暇希望!N5="","",DATE($F$2,$I$2,休暇希望!N5)) -> 2025-01-24 | AV10: =IF(休暇希望!O5="","",DATE($F$2,$I$2,休暇希望!O5)) -> 2025-01-27 | AW10: =IF(休暇希望!P5="","",DATE($F$2,$I$2,休暇希望!P5)) -> 2025-01-28 | AX10: =IF(休暇希望!Q5="","",DATE($F$2,$I$2,休暇希望!Q5)) -> 2025-01-31 | AY10: =IF(休暇希望!R5="","",DATE($F$2,$I$2,休暇希望!R5)) -> 2025-01-30 | AZ10: =IF(休暇希望!S5="","",DATE($F$2,$I$2,休暇希望!S5)) -> 2025-01-10 | BA10: =IF(休暇希望!T5="","",DATE($F$2,$I$2,休暇希望!T5)) -> 2025-01-09 | BB10: =IF(休暇希望!U5="","",DATE($F$2,$I$2,休暇希望!U5)) -> 2025-01-08 | BC10: =IF(休暇希望!V5="","",DATE($F$2,$I$2,休暇希望!V5)) -> 2025-01-07 | BD10: =IF(休暇希望!W5="","",DATE($F$2,$I$2,休暇希望!W5)) -> 2025-01-06 | BE10: =IF(休暇希望!X5="","",DATE($F$2,$I$2,休暇希望!X5)) -> 2025-01-03 | BF10: =IF(休暇希望!Y5="","",DATE($F$2,$I$2,休暇希望!Y5)) -> 2025-01-02 | BG10: =IF(休暇希望!Z5="","",DATE($F$2,$I$2,休暇希望!Z5)) ->  | BH10: =IF(休暇希望!AA5="","",DATE($F$2,$I$2,休暇希望!AA5)) ->  | BI10: =IF(休暇希望!AB5="","",DATE($F$2,$I$2,休暇希望!AB5)) ->  | BJ10: =IF(休暇希望!AC5="","",DATE($F$2,$I$2,休暇希望!AC5)) ->  | BK10: =IF(休暇希望!AD5="","",DATE($F$2,$I$2,休暇希望!AD5)) ->  | BL10: =IF(休暇希望!AE5="","",DATE($F$2,$I$2,休暇希望!AE5)) ->  | BM10: =IF(休暇希望!AF5="","",DATE($F$2,$I$2,休暇希望!AF5)) ->  | BN10: =IF(休暇希望!AG5="","",DATE($F$2,$I$2,休暇希望!AG5)) ->  | BO10: =IF(休暇希望!AH5="","",DATE($F$2,$I$2,休暇希望!AH5)) ->  | BP10: =IF(休暇希望!AI5="","",DATE($F$2,$I$2,休暇希望!AI5)) -> 
B11: A | C11: =_xlfn.SWITCH($B11,"A",$Q$3,"B",$R$3,"C",$S$3,"D",$T$3,"E",$U$3,) -> 6 | D11: 3 | E11: =NETWORKDAYS($H$3,$H$4,各種設定!$A$4:$A$22)-COUNTIF(F11:AJ11,">0") -> 1900-01-21 | AL11: =IF(休暇希望!E6="","",DATE($F$2,$I$2,休暇希望!E6)) ->  | AM11: =IF(休暇希望!F6="","",DATE($F$2,$I$2,休暇希望!F6)) ->  | AN11: =IF(休暇希望!G6="","",DATE($F$2,$I$2,休暇希望!G6)) ->  | AO11: =IF(休暇希望!H6="","",DATE($F$2,$I$2,休暇希望!H6)) ->  | AP11: =IF(休暇希望!I6="","",DATE($F$2,$I$2,休暇希望!I6)) ->  | AQ11: =IF(休暇希望!J6="","",DATE($F$2,$I$2,休暇希望!J6)) ->  | AR11: =IF(休暇希望!K6="","",DATE($F$2,$I$2,休暇希望!K6)) ->  | AS11: =IF(休暇希望!L6="","",DATE($F$2,$I$2,休暇希望!L6)) ->  | AT11: =IF(休暇希望!M6="","",DATE($F$2,$I$2,休暇希望!M6)) ->  | AU11: =IF(休暇希望!N6="","",DATE($F$2,$I$2,休暇希望!N6)) ->  | AV11: =IF(休暇希望!O6="","",DATE($F$2,$I$2,休暇希望!O6)) ->  | AW11: =IF(休暇希望!P6="","",DATE($F$2,$I$2,休暇希望!P6)) ->  | AX11: =IF(休暇希望!Q6="","",DATE($F$2,$I$2,休暇希望!Q6)) ->  | AY11: =IF(休暇希望!R6="","",DATE($F$2,$I$2,休暇希望!R6)) ->  | AZ11: =IF(休暇希望!S6="","",DATE($F$2,$I$2,休暇希望!S6)) ->  | BA11: =IF(休暇希望!T6="","",DATE($F$2,$I$2,休暇希望!T6)) ->  | BB11: =IF(休暇希望!U6="","",DATE($F$2,$I$2,休暇希望!U6)) ->  | BC11: =IF(休暇希望!V6="","",DATE($F$2,$I$2,休暇希望!V6)) ->  | BD11: =IF(休暇希望!W6="","",DATE($F$2,$I$2,休暇希望!W6)) ->  | BE11: =IF(休暇希望!X6="","",DATE($F$2,$I$2,休暇希望!X6)) ->  | BF11: =IF(休暇希望!Y6="","",DATE($F$2,$I$2,休暇希望!Y6)) ->  | BG11: =IF(休暇希望!Z6="","",DATE($F$2,$I$2,休暇希望!Z6)) ->  | BH11: =IF(休暇希望!AA6="","",DATE($F$2,$I$2,休暇希望!AA6)) ->  | BI11: =IF(休暇希望!AB6="","",DATE($F$2,$I$2,休暇希望!AB6)) ->  | BJ11: =IF(休暇希望!AC6="","",DATE($F$2,$I$2,休暇希望!AC6)) ->  | BK11: =IF(休暇希望!AD6="","",DATE($F$2,$I$2,休暇希望!AD6)) ->  | BL11: =IF(休暇希望!AE6="","",DATE($F$2,$I$2,休暇希望!AE6)) ->  | BM11: =IF(休暇希望!AF6="","",DATE($F$2,$I$2,休暇希望!AF6)) ->  | BN11: =IF(休暇希望!AG6="","",DATE($F$2,$I$2,休暇希望!AG6)) ->  | BO11: =IF(休暇希望!AH6="","",DATE($F$2,$I$2,休暇希望!AH6)) ->  | BP11: =IF(休暇希望!AI6="","",DATE($F$2,$I$2,休暇希望!AI6)) -> 
B12: A | C12: =_xlfn.SWITCH($B12,"A",$Q$3,"B",$R$3,"C",$S$3,"D",$T$3,"E",$U$3,) -> 6 | D12: 4 | E12: =NETWORKDAYS($H$3,$H$4,各種設定!$A$4:$A$22)-COUNTIF(F12:AJ12,">0") -> 1900-01-21 | AL12: =IF(休暇希望!E7="","",DATE($F$2,$I$2,休暇希望!E7)) ->  | AM12: =IF(休暇希望!F7="","",DATE($F$2,$I$2,休暇希望!F7)) ->  | AN12: =IF(休暇希望!G7="","",DATE($F$2,$I$2,休暇希望!G7)) ->  | AO12: =IF(休暇希望!H7="","",DATE($F$2,$I$2,休暇希望!H7)) ->  | AP12: =IF(休暇希望!I7="","",DATE($F$2,$I$2,休暇希望!I7)) ->  | AQ12: =IF(休暇希望!J7="","",DATE($F$2,$I$2,休暇希望!J7)) ->  | AR12: =IF(休暇希望!K7="","",DATE($F$2,$I$2,休暇希望!K7)) ->  | AS12: =IF(休暇希望!L7="","",DATE($F$2,$I$2,休暇希望!L7)) ->  | AT12: =IF(休暇希望!M7="","",DATE($F$2,$I$2,休暇希望!M7)) ->  | AU12: =IF(休暇希望!N7="","",DATE($F$2,$I$2,休暇希望!N7)) ->  | AV12: =IF(休暇希望!O7="","",DATE($F$2,$I$2,休暇希望!O7)) ->  | AW12: =IF(休暇希望!P7="","",DATE($F$2,$I$2,休暇希望!P7)) ->  | AX12: =IF(休暇希望!Q7="","",DATE($F$2,$I$2,休暇希望!Q7)) ->  | AY12: =IF(休暇希望!R7="","",DATE($F$2,$I$2,休暇希望!R7)) ->  | AZ12: =IF(休暇希望!S7="","",DATE($F$2,$I$2,休暇希望!S7)) ->  | BA12: =IF(休暇希望!T7="","",DATE($F$2,$I$2,休暇希望!T7)) ->  | BB12: =IF(休暇希望!U7="","",DATE($F$2,$I$2,休暇希望!U7)) ->  | BC12: =IF(休暇希望!V7="","",DATE($F$2,$I$2,休暇希望!V7)) ->  | BD12: =IF(休暇希望!W7="","",DATE($F$2,$I$2,休暇希望!W7)) ->  | BE12: =IF(休暇希望!X7="","",DATE($F$2,$I$2,休暇希望!X7)) ->  | BF12: =IF(休暇希望!Y7="","",DATE($F$2,$I$2,休暇希望!Y7)) ->  | BG12: =IF(休暇希望!Z7="","",DATE($F$2,$I$2,休暇希望!Z7)) ->  | BH12: =IF(休暇希望!AA7="","",DATE($F$2,$I$2,休暇希望!AA7)) ->  | BI12: =IF(休暇希望!AB7="","",DATE($F$2,$I$2,休暇希望!AB7)) ->  | BJ12: =IF(休暇希望!AC7="","",DATE($F$2,$I$2,休暇希望!AC7)) ->  | BK12: =IF(休暇希望!AD7="","",DATE($F$2,$I$2,休暇希望!AD7)) ->  | BL12: =IF(休暇希望!AE7="","",DATE($F$2,$I$2,休暇希望!AE7)) ->  | BM12: =IF(休暇希望!AF7="","",DATE($F$2,$I$2,休暇希望!AF7)) ->  | BN12: =IF(休暇希望!AG7="","",DATE($F$2,$I$2,休暇希望!AG7)) ->  | BO12: =IF(休暇希望!AH7="","",DATE($F$2,$I$2,休暇希望!AH7)) ->  | BP12: =IF(休暇希望!AI7="","",DATE($F$2,$I$2,休暇希望!AI7)) -> 
B13: A | C13: 6 | D13: 5 | E13: =NETWORKDAYS($H$3,$H$4,各種設定!$A$4:$A$22)-COUNTIF(F13:AJ13,">0") -> 1900-01-21 | AL13: =IF(休暇希望!E8="","",DATE($F$2,$I$2,休暇希望!E8)) ->  | AM13: =IF(休暇希望!F8="","",DATE($F$2,$I$2,休暇希望!F8)) ->  | AN13: =IF(休暇希望!G8="","",DATE($F$2,$I$2,休暇希望!G8)) ->  | AO13: =IF(休暇希望!H8="","",DATE($F$2,$I$2,休暇希望!H8)) ->  | AP13: =IF(休暇希望!I8="","",DATE($F$2,$I$2,休暇希望!I8)) ->  | AQ13: =IF(休暇希望!J8="","",DATE($F$2,$I$2,休暇希望!J8)) ->  | AR13: =IF(休暇希望!K8="","",DATE($F$2,$I$2,休暇希望!K8)) ->  | AS13: =IF(休暇希望!L8="","",DATE($F$2,$I$2,休暇希望!L8)) ->  | AT13: =IF(休暇希望!M8="","",DATE($F$2,$I$2,休暇希望!M8)) ->  | AU13: =IF(休暇希望!N8="","",DATE($F$2,$I$2,休暇希望!N8)) ->  | AV13: =IF(休暇希望!O8="","",DATE($F$2,$I$2,休暇希望!O8)) ->  | AW13: =IF(休暇希望!P8="","",DATE($F$2,$I$2,休暇希望!P8)) ->  | AX13: =IF(休暇希望!Q8="","",DATE($F$2,$I$2,休暇希望!Q8)) ->  | AY13: =IF(休暇希望!R8="","",DATE($F$2,$I$2,休暇希望!R8)) ->  | AZ13: =IF(休暇希望!S8="","",DATE($F$2,$I$2,休暇希望!S8)) ->  | BA13: =IF(休暇希望!T8="","",DATE($F$2,$I$2,休暇希望!T8)) ->  | BB13: =IF(休暇希望!U8="","",DATE($F$2,$I$2,休暇希望!U8)) ->  | BC13: =IF(休暇希望!V8="","",DATE($F$2,$I$2,休暇希望!V8)) ->  | BD13: =IF(休暇希望!W8="","",DATE($F$2,$I$2,休暇希望!W8)) ->  | BE13: =IF(休暇希望!X8="","",DATE($F$2,$I$2,休暇希望!X8)) ->  | BF13: =IF(休暇希望!Y8="","",DATE($F$2,$I$2,休暇希望!Y8)) ->  | BG13: =IF(休暇希望!Z8="","",DATE($F$2,$I$2,休暇希望!Z8)) ->  | BH13: =IF(休暇希望!AA8="","",DATE($F$2,$I$2,休暇希望!AA8)) ->  | BI13: =IF(休暇希望!AB8="","",DATE($F$2,$I$2,休暇希望!AB8)) ->  | BJ13: =IF(休暇希望!AC8="","",DATE($F$2,$I$2,休暇希望!AC8)) ->  | BK13: =IF(休暇希望!AD8="","",DATE($F$2,$I$2,休暇希望!AD8)) ->  | BL13: =IF(休暇希望!AE8="","",DATE($F$2,$I$2,休暇希望!AE8)) ->  | BM13: =IF(休暇希望!AF8="","",DATE($F$2,$I$2,休暇希望!AF8)) ->  | BN13: =IF(休暇希望!AG8="","",DATE($F$2,$I$2,休暇希望!AG8)) ->  | BO13: =IF(休暇希望!AH8="","",DATE($F$2,$I$2,休暇希望!AH8)) ->  | BP13: =IF(休暇希望!AI8="","",DATE($F$2,$I$2,休暇希望!AI8)) -> 
B14: B | C14: 7 | D14: 6 | E14: =NETWORKDAYS($H$3,$H$4,各種設定!$A$4:$A$22)-COUNTIF(F14:AJ14,">0") -> 1900-01-21 | AL14: =IF(休暇希望!E9="","",DATE($F$2,$I$2,休暇希望!E9)) ->  | AM14: =IF(休暇希望!F9="","",DATE($F$2,$I$2,休暇希望!F9)) ->  | AN14: =IF(休暇希望!G9="","",DATE($F$2,$I$2,休暇希望!G9)) ->  | AO14: =IF(休暇希望!H9="","",DATE($F$2,$I$2,休暇希望!H9)) ->  | AP14: =IF(休暇希望!I9="","",DATE($F$2,$I$2,休暇希望!I9)) ->  | AQ14: =IF(休暇希望!J9="","",DATE($F$2,$I$2,休暇希望!J9)) ->  | AR14: =IF(休暇希望!K9="","",DATE($F$2,$I$2,休暇希望!K9)) ->  | AS14: =IF(休暇希望!L9="","",DATE($F$2,$I$2,休暇希望!L9)) ->  | AT14: =IF(休暇希望!M9="","",DATE($F$2,$I$2,休暇希望!M9)) ->  | AU14: =IF(休暇希望!N9="","",DATE($F$2,$I$2,休暇希望!N9)) ->  | AV14: =IF(休暇希望!O9="","",DATE($F$2,$I$2,休暇希望!O9)) ->  | AW14: =IF(休暇希望!P9="","",DATE($F$2,$I$2,休暇希望!P9)) ->  | AX14: =IF(休暇希望!Q9="","",DATE($F$2,$I$2,休暇希望!Q9)) ->  | AY14: =IF(休暇希望!R9="","",DATE($F$2,$I$2,休暇希望!R9)) ->  | AZ14: =IF(休暇希望!S9="","",DATE($F$2,$I$2,休暇希望!S9)) ->  | BA14: =IF(休暇希望!T9="","",DATE($F$2,$I$2,休暇希望!T9)) ->  | BB14: =IF(休暇希望!U9="","",DATE($F$2,$I$2,休暇希望!U9)) ->  | BC14: =IF(休暇希望!V9="","",DATE($F$2,$I$2,休暇希望!V9)) ->  | BD14: =IF(休暇希望!W9="","",DATE($F$2,$I$2,休暇希望!W9)) ->  | BE14: =IF(休暇希望!X9="","",DATE($F$2,$I$2,休暇希望!X9)) ->  | BF14: =IF(休暇希望!Y9="","",DATE($F$2,$I$2,休暇希望!Y9)) ->  | BG14: =IF(休暇希望!Z9="","",DATE($F$2,$I$2,休暇希望!Z9)) ->  | BH14: =IF(休暇希望!AA9="","",DATE($F$2,$I$2,休暇希望!AA9)) ->  | BI14: =IF(休暇希望!AB9="","",DATE($F$2,$I$2,休暇希望!AB9)) ->  | BJ14: =IF(休暇希望!AC9="","",DATE($F$2,$I$2,休暇希望!AC9)) ->  | BK14: =IF(休暇希望!AD9="","",DATE($F$2,$I$2,休暇希望!AD9)) ->  | BL14: =IF(休暇希望!AE9="","",DATE($F$2,$I$2,休暇希望!AE9)) ->  | BM14: =IF(休暇希望!AF9="","",DATE($F$2,$I$2,休暇希望!AF9)) ->  | BN14: =IF(休暇希望!AG9="","",DATE($F$2,$I$2,休暇希望!AG9)) ->  | BO14: =IF(休暇希望!AH9="","",DATE($F$2,$I$2,休暇希望!AH9)) ->  | BP14: =IF(休暇希望!AI9="","",DATE($F$2,$I$2,休暇希望!AI9)) -> 
B15: B | C15: 7 | D15: 7 | E15: =NETWORKDAYS($H$3,$H$4,各種設定!$A$4:$A$22)-COUNTIF(F15:AJ15,">0") -> 1900-01-21 | AL15: =IF(休暇希望!E10="","",DATE($F$2,$I$2,休暇希望!E10)) ->  | AM15: =IF(休暇希望!F10="","",DATE($F$2,$I$2,休暇希望!F10)) ->  | AN15: =IF(休暇希望!G10="","",DATE($F$2,$I$2,休暇希望!G10)) ->  | AO15: =IF(休暇希望!H10="","",DATE($F$2,$I$2,休暇希望!H10)) ->  | AP15: =IF(休暇希望!I10="","",DATE($F$2,$I$2,休暇希望!I10)) ->  | AQ15: =IF(休暇希望!J10="","",DATE($F$2,$I$2,休暇希望!J10)) ->  | AR15: =IF(休暇希望!K10="","",DATE($F$2,$I$2,休暇希望!K10)) ->  | AS15: =IF(休暇希望!L10="","",DATE($F$2,$I$2,休暇希望!L10)) ->  | AT15: =IF(休暇希望!M10="","",DATE($F$2,$I$2,休暇希望!M10)) ->  | AU15: =IF(休暇希望!N10="","",DATE($F$2,$I$2,休暇希望!N10)) ->  | AV15: =IF(休暇希望!O10="","",DATE($F$2,$I$2,休暇希望!O10)) ->  | AW15: =IF(休暇希望!P10="","",DATE($F$2,$I$2,休暇希望!P10)) ->  | AX15: =IF(休暇希望!Q10="","",DATE($F$2,$I$2,休暇希望!Q10)) ->  | AY15: =IF(休暇希望!R10="","",DATE($F$2,$I$2,休暇希望!R10)) ->  | AZ15: =IF(休暇希望!S10="","",DATE($F$2,$I$2,休暇希望!S10)) ->  | BA15: =IF(休暇希望!T10="","",DATE($F$2,$I$2,休暇希望!T10)) ->  | BB15: =IF(休暇希望!U10="","",DATE($F$2,$I$2,休暇希望!U10)) ->  | BC15: =IF(休暇希望!V10="","",DATE($F$2,$I$2,休暇希望!V10)) ->  | BD15: =IF(休暇希望!W10="","",DATE($F$2,$I$2,休暇希望!W10)) ->  | BE15: =IF(休暇希望!X10="","",DATE($F$2,$I$2,休暇希望!X10)) ->  | BF15: =IF(休暇希望!Y10="","",DATE($F$2,$I$2,休暇希望!Y10)) ->  | BG15: =IF(休暇希望!Z10="","",DATE($F$2,$I$2,休暇希望!Z10)) ->  | BH15: =IF(休暇希望!AA10="","",DATE($F$2,$I$2,休暇希望!AA10)) ->  | BI15: =IF(休暇希望!AB10="","",DATE($F$2,$I$2,休暇希望!AB10)) ->  | BJ15: =IF(休暇希望!AC10="","",DATE($F$2,$I$2,休暇希望!AC10)) ->  | BK15: =IF(休暇希望!AD10="","",DATE($F$2,$I$2,休暇希望!AD10)) ->  | BL15: =IF(休暇希望!AE10="","",DATE($F$2,$I$2,休暇希望!AE10)) ->  | BM15: =IF(休暇希望!AF10="","",DATE($F$2,$I$2,休暇希望!AF10)) ->  | BN15: =IF(休暇希望!AG10="","",DATE($F$2,$I$2,休暇希望!AG10)) ->  | BO15: =IF(休暇希望!AH10="","",DATE($F$2,$I$2,休暇希望!AH10)) ->  | BP15: =IF(休暇希望!AI10="","",DATE($F$2,$I$2,休暇希望!AI10)) -> 
B16: B | C16: 7 | D16: 8 | E16: =NETWORKDAYS($H$3,$H$4,各種設定!$A$4:$A$22)-COUNTIF(F16:AJ16,">0") -> 1900-01-21 | AL16: =IF(休暇希望!E11="","",DATE($F$2,$I$2,休暇希望!E11)) ->  | AM16: =IF(休暇希望!F11="","",DATE($F$2,$I$2,休暇希望!F11)) ->  | AN16: =IF(休暇希望!G11="","",DATE($F$2,$I$2,休暇希望!G11)) ->  | AO16: =IF(休暇希望!H11="","",DATE($F$2,$I$2,休暇希望!H11)) ->  | AP16: =IF(休暇希望!I11="","",DATE($F$2,$I$2,休暇希望!I11)) ->  | AQ16: =IF(休暇希望!J11="","",DATE($F$2,$I$2,休暇希望!J11)) ->  | AR16: =IF(休暇希望!K11="","",DATE($F$2,$I$2,休暇希望!K11)) ->  | AS16: =IF(休暇希望!L11="","",DATE($F$2,$I$2,休暇希望!L11)) ->  | AT16: =IF(休暇希望!M11="","",DATE($F$2,$I$2,休暇希望!M11)) ->  | AU16: =IF(休暇希望!N11="","",DATE($F$2,$I$2,休暇希望!N11)) ->  | AV16: =IF(休暇希望!O11="","",DATE($F$2,$I$2,休暇希望!O11)) ->  | AW16: =IF(休暇希望!P11="","",DATE($F$2,$I$2,休暇希望!P11)) ->  | AX16: =IF(休暇希望!Q11="","",DATE($F$2,$I$2,休暇希望!Q11)) ->  | AY16: =IF(休暇希望!R11="","",DATE($F$2,$I$2,休暇希望!R11)) ->  | AZ16: =IF(休暇希望!S11="","",DATE($F$2,$I$2,休暇希望!S11)) ->  | BA16: =IF(休暇希望!T11="","",DATE($F$2,$I$2,休暇希望!T11)) ->  | BB16: =IF(休暇希望!U11="","",DATE($F$2,$I$2,休暇希望!U11)) ->  | BC16: =IF(休暇希望!V11="","",DATE($F$2,$I$2,休暇希望!V11)) ->  | BD16: =IF(休暇希望!W11="","",DATE($F$2,$I$2,休暇希望!W11)) ->  | BE16: =IF(休暇希望!X11="","",DATE($F$2,$I$2,休暇希望!X11)) ->  | BF16: =IF(休暇希望!Y11="","",DATE($F$2,$I$2,休暇希望!Y11)) ->  | BG16: =IF(休暇希望!Z11="","",DATE($F$2,$I$2,休暇希望!Z11)) ->  | BH16: =IF(休暇希望!AA11="","",DATE($F$2,$I$2,休暇希望!AA11)) ->  | BI16: =IF(休暇希望!AB11="","",DATE($F$2,$I$2,休暇希望!AB11)) ->  | BJ16: =IF(休暇希望!AC11="","",DATE($F$2,$I$2,休暇希望!AC11)) ->  | BK16: =IF(休暇希望!AD11="","",DATE($F$2,$I$2,休暇希望!AD11)) ->  | BL16: =IF(休暇希望!AE11="","",DATE($F$2,$I$2,休暇希望!AE11)) ->  | BM16: =IF(休暇希望!AF11="","",DATE($F$2,$I$2,休暇希望!AF11)) ->  | BN16: =IF(休暇希望!AG11="","",DATE($F$2,$I$2,休暇希望!AG11)) ->  | BO16: =IF(休暇希望!AH11="","",DATE($F$2,$I$2,休暇希望!AH11)) ->  | BP16: =IF(休暇希望!AI11="","",DATE($F$2,$I$2,休暇希望!AI11)) -> 
B17: B | C17: 7 | D17: 9 | E17: =NETWORKDAYS($H$3,$H$4,各種設定!$A$4:$A$22)-COUNTIF(F17:AJ17,">0") -> 1900-01-21 | AL17: =IF(休暇希望!E12="","",DATE($F$2,$I$2,休暇希望!E12)) ->  | AM17: =IF(休暇希望!F12="","",DATE($F$2,$I$2,休暇希望!F12)) ->  | AN17: =IF(休暇希望!G12="","",DATE($F$2,$I$2,休暇希望!G12)) ->  | AO17: =IF(休暇希望!H12="","",DATE($F$2,$I$2,休暇希望!H12)) ->  | AP17: =IF(休暇希望!I12="","",DATE($F$2,$I$2,休暇希望!I12)) ->  | AQ17: =IF(休暇希望!J12="","",DATE($F$2,$I$2,休暇希望!J12)) ->  | AR17: =IF(休暇希望!K12="","",DATE($F$2,$I$2,休暇希望!K12)) ->  | AS17: =IF(休暇希望!L12="","",DATE($F$2,$I$2,休暇希望!L12)) ->  | AT17: =IF(休暇希望!M12="","",DATE($F$2,$I$2,休暇希望!M12)) ->  | AU17: =IF(休暇希望!N12="","",DATE($F$2,$I$2,休暇希望!N12)) ->  | AV17: =IF(休暇希望!O12="","",DATE($F$2,$I$2,休暇希望!O12)) ->  | AW17: =IF(休暇希望!P12="","",DATE($F$2,$I$2,休暇希望!P12)) ->  | AX17: =IF(休暇希望!Q12="","",DATE($F$2,$I$2,休暇希望!Q12)) ->  | AY17: =IF(休暇希望!R12="","",DATE($F$2,$I$2,休暇希望!R12)) ->  | AZ17: =IF(休暇希望!S12="","",DATE($F$2,$I$2,休暇希望!S12)) ->  | BA17: =IF(休暇希望!T12="","",DATE($F$2,$I$2,休暇希望!T12)) ->  | BB17: =IF(休暇希望!U12="","",DATE($F$2,$I$2,休暇希望!U12)) ->  | BC17: =IF(休暇希望!V12="","",DATE($F$2,$I$2,休暇希望!V12)) ->  | BD17: =IF(休暇希望!W12="","",DATE($F$2,$I$2,休暇希望!W12)) ->  | BE17: =IF(休暇希望!X12="","",DATE($F$2,$I$2,休暇希望!X12)) ->  | BF17: =IF(休暇希望!Y12="","",DATE($F$2,$I$2,休暇希望!Y12)) ->  | BG17: =IF(休暇希望!Z12="","",DATE($F$2,$I$2,休暇希望!Z12)) ->  | BH17: =IF(休暇希望!AA12="","",DATE($F$2,$I$2,休暇希望!AA12)) ->  | BI17: =IF(休暇希望!AB12="","",DATE($F$2,$I$2,休暇希望!AB12)) ->  | BJ17: =IF(休暇希望!AC12="","",DATE($F$2,$I$2,休暇希望!AC12)) ->  | BK17: =IF(休暇希望!AD12="","",DATE($F$2,$I$2,休暇希望!AD12)) ->  | BL17: =IF(休暇希望!AE12="","",DATE($F$2,$I$2,休暇希望!AE12)) ->  | BM17: =IF(休暇希望!AF12="","",DATE($F$2,$I$2,休暇希望!AF12)) ->  | BN17: =IF(休暇希望!AG12="","",DATE($F$2,$I$2,休暇希望!AG12)) ->  | BO17: =IF(休暇希望!AH12="","",DATE($F$2,$I$2,休暇希望!AH12)) ->  | BP17: =IF(休暇希望!AI12="","",DATE($F$2,$I$2,休暇希望!AI12)) -> 
B18: B | C18: 7 | D18: 10 | E18: =NETWORKDAYS($H$3,$H$4,各種設定!$A$4:$A$22)-COUNTIF(F18:AJ18,">0") -> 1900-01-21 | AL18: =IF(休暇希望!E13="","",DATE($F$2,$I$2,休暇希望!E13)) ->  | AM18: =IF(休暇希望!F13="","",DATE($F$2,$I$2,休暇希望!F13)) ->  | AN18: =IF(休暇希望!G13="","",DATE($F$2,$I$2,休暇希望!G13)) ->  | AO18: =IF(休暇希望!H13="","",DATE($F$2,$I$2,休暇希望!H13)) ->  | AP18: =IF(休暇希望!I13="","",DATE($F$2,$I$2,休暇希望!I13)) ->  | AQ18: =IF(休暇希望!J13="","",DATE($F$2,$I$2,休暇希望!J13)) ->  | AR18: =IF(休暇希望!K13="","",DATE($F$2,$I$2,休暇希望!K13)) ->  | AS18: =IF(休暇希望!L13="","",DATE($F$2,$I$2,休暇希望!L13)) ->  | AT18: =IF(休暇希望!M13="","",DATE($F$2,$I$2,休暇希望!M13)) ->  | AU18: =IF(休暇希望!N13="","",DATE($F$2,$I$2,休暇希望!N13)) ->  | AV18: =IF(休暇希望!O13="","",DATE($F$2,$I$2,休暇希望!O13)) ->  | AW18: =IF(休暇希望!P13="","",DATE($F$2,$I$2,休暇希望!P13)) ->  | AX18: =IF(休暇希望!Q13="","",DATE($F$2,$I$2,休暇希望!Q13)) ->  | AY18: =IF(休暇希望!R13="","",DATE($F$2,$I$2,休暇希望!R13)) ->  | AZ18: =IF(休暇希望!S13="","",DATE($F$2,$I$2,休暇希望!S13)) ->  | BA18: =IF(休暇希望!T13="","",DATE($F$2,$I$2,休暇希望!T13)) ->  | BB18: =IF(休暇希望!U13="","",DATE($F$2,$I$2,休暇希望!U13)) ->  | BC18: =IF(休暇希望!V13="","",DATE($F$2,$I$2,休暇希望!V13)) ->  | BD18: =IF(休暇希望!W13="","",DATE($F$2,$I$2,休暇希望!W13)) ->  | BE18: =IF(休暇希望!X13="","",DATE($F$2,$I$2,休暇希望!X13)) ->  | BF18: =IF(休暇希望!Y13="","",DATE($F$2,$I$2,休暇希望!Y13)) ->  | BG18: =IF(休暇希望!Z13="","",DATE($F$2,$I$2,休暇希望!Z13)) ->  | BH18: =IF(休暇希望!AA13="","",DATE($F$2,$I$2,休暇希望!AA13)) ->  | BI18: =IF(休暇希望!AB13="","",DATE($F$2,$I$2,休暇希望!AB13)) ->  | BJ18: =IF(休暇希望!AC13="","",DATE($F$2,$I$2,休暇希望!AC13)) ->  | BK18: =IF(休暇希望!AD13="","",DATE($F$2,$I$2,休暇希望!AD13)) ->  | BL18: =IF(休暇希望!AE13="","",DATE($F$2,$I$2,休暇希望!AE13)) ->  | BM18: =IF(休暇希望!AF13="","",DATE($F$2,$I$2,休暇希望!AF13)) ->  | BN18: =IF(休暇希望!AG13="","",DATE($F$2,$I$2,休暇希望!AG13)) ->  | BO18: =IF(休暇希望!AH13="","",DATE($F$2,$I$2,休暇希望!AH13)) ->  | BP18: =IF(休暇希望!AI13="","",DATE($F$2,$I$2,休暇希望!AI13)) -> 
B19: C | C19: 7.5 | D19: 11 | E19: =NETWORKDAYS($H$3,$H$4,各種設定!$A$4:$A$22)-COUNTIF(F19:AJ19,">0") -> 1900-01-21 | F19: =IF(F$7="","",IF(COUNTIF($AL19:$BP19,F$7)>0,$C19,"")) ->  | P19: =IF(P$7="","",IF(COUNTIF($AL19:$BP19,P$7)>0,$C19,"")) ->  | Z19: =IF(Z$7="","",IF(COUNTIF($AL19:$BP19,Z$7)>0,$C19,"")) ->  | AL19: =IF(休暇希望!E14="","",DATE($F$2,$I$2,休暇希望!E14)) ->  | AM19: =IF(休暇希望!F14="","",DATE($F$2,$I$2,休暇希望!F14)) ->  | AN19: =IF(休暇希望!G14="","",DATE($F$2,$I$2,休暇希望!G14)) ->  | AO19: =IF(休暇希望!H14="","",DATE($F$2,$I$2,休暇希望!H14)) ->  | AP19: =IF(休暇希望!I14="","",DATE($F$2,$I$2,休暇希望!I14)) ->  | AQ19: =IF(休暇希望!J14="","",DATE($F$2,$I$2,休暇希望!J14)) ->  | AR19: =IF(休暇希望!K14="","",DATE($F$2,$I$2,休暇希望!K14)) ->  | AS19: =IF(休暇希望!L14="","",DATE($F$2,$I$2,休暇希望!L14)) ->  | AT19: =IF(休暇希望!M14="","",DATE($F$2,$I$2,休暇希望!M14)) ->  | AU19: =IF(休暇希望!N14="","",DATE($F$2,$I$2,休暇希望!N14)) ->  | AV19: =IF(休暇希望!O14="","",DATE($F$2,$I$2,休暇希望!O14)) ->  | AW19: =IF(休暇希望!P14="","",DATE($F$2,$I$2,休暇希望!P14)) ->  | AX19: =IF(休暇希望!Q14="","",DATE($F$2,$I$2,休暇希望!Q14)) ->  | AY19: =IF(休暇希望!R14="","",DATE($F$2,$I$2,休暇希望!R14)) ->  | AZ19: =IF(休暇希望!S14="","",DATE($F$2,$I$2,休暇希望!S14)) ->  | BA19: =IF(休暇希望!T14="","",DATE($F$2,$I$2,休暇希望!T14)) ->  | BB19: =IF(休暇希望!U14="","",DATE($F$2,$I$2,休暇希望!U14)) ->  | BC19: =IF(休暇希望!V14="","",DATE($F$2,$I$2,休暇希望!V14)) ->  | BD19: =IF(休暇希望!W14="","",DATE($F$2,$I$2,休暇希望!W14)) ->  | BE19: =IF(休暇希望!X14="","",DATE($F$2,$I$2,休暇希望!X14)) ->  | BF19: =IF(休暇希望!Y14="","",DATE($F$2,$I$2,休暇希望!Y14)) ->  | BG19: =IF(休暇希望!Z14="","",DATE($F$2,$I$2,休暇希望!Z14)) ->  | BH19: =IF(休暇希望!AA14="","",DATE($F$2,$I$2,休暇希望!AA14)) ->  | BI19: =IF(休暇希望!AB14="","",DATE($F$2,$I$2,休暇希望!AB14)) ->  | BJ19: =IF(休暇希望!AC14="","",DATE($F$2,$I$2,休暇希望!AC14)) ->  | BK19: =IF(休暇希望!AD14="","",DATE($F$2,$I$2,休暇希望!AD14)) ->  | BL19: =IF(休暇希望!AE14="","",DATE($F$2,$I$2,休暇希望!AE14)) ->  | BM19: =IF(休暇希望!AF14="","",DATE($F$2,$I$2,休暇希望!AF14)) ->  | BN19: =IF(休暇希望!AG14="","",DATE($F$2,$I$2,休暇希望!AG14)) ->  | BO19: =IF(休暇希望!AH14="","",DATE($F$2,$I$2,休暇希望!AH14)) ->  | BP19: =IF(休暇希望!AI14="","",DATE($F$2,$I$2,休暇希望!AI14)) -> 
B20: C | C20: 7.5 | D20: 12 | E20: =NETWORKDAYS($H$3,$H$4,各種設定!$A$4:$A$22)-COUNTIF(F20:AJ20,">0") -> 1900-01-21 | AL20: =IF(休暇希望!E15="","",DATE($F$2,$I$2,休暇希望!E15)) ->  | AM20: =IF(休暇希望!F15="","",DATE($F$2,$I$2,休暇希望!F15)) ->  | AN20: =IF(休暇希望!G15="","",DATE($F$2,$I$2,休暇希望!G15)) ->  | AO20: =IF(休暇希望!H15="","",DATE($F$2,$I$2,休暇希望!H15)) ->  | AP20: =IF(休暇希望!I15="","",DATE($F$2,$I$2,休暇希望!I15)) ->  | AQ20: =IF(休暇希望!J15="","",DATE($F$2,$I$2,休暇希望!J15)) ->  | AR20: =IF(休暇希望!K15="","",DATE($F$2,$I$2,休暇希望!K15)) ->  | AS20: =IF(休暇希望!L15="","",DATE($F$2,$I$2,休暇希望!L15)) ->  | AT20: =IF(休暇希望!M15="","",DATE($F$2,$I$2,休暇希望!M15)) ->  | AU20: =IF(休暇希望!N15="","",DATE($F$2,$I$2,休暇希望!N15)) ->  | AV20: =IF(休暇希望!O15="","",DATE($F$2,$I$2,休暇希望!O15)) ->  | AW20: =IF(休暇希望!P15="","",DATE($F$2,$I$2,休暇希望!P15)) ->  | AX20: =IF(休暇希望!Q15="","",DATE($F$2,$I$2,休暇希望!Q15)) ->  | AY20: =IF(休暇希望!R15="","",DATE($F$2,$I$2,休暇希望!R15)) ->  | AZ20: =IF(休暇希望!S15="","",DATE($F$2,$I$2,休暇希望!S15)) ->  | BA20: =IF(休暇希望!T15="","",DATE($F$2,$I$2,休暇希望!T15)) ->  | BB20: =IF(休暇希望!U15="","",DATE($F$2,$I$2,休暇希望!U15)) ->  | BC20: =IF(休暇希望!V15="","",DATE($F$2,$I$2,休暇希望!V15)) ->  | BD20: =IF(休暇希望!W15="","",DATE($F$2,$I$2,休暇希望!W15)) ->  | BE20: =IF(休暇希望!X15="","",DATE($F$2,$I$2,休暇希望!X15)) ->  | BF20: =IF(休暇希望!Y15="","",DATE($F$2,$I$2,休暇希望!Y15)) ->  | BG20: =IF(休暇希望!Z15="","",DATE($F$2,$I$2,休暇希望!Z15)) ->  | BH20: =IF(休暇希望!AA15="","",DATE($F$2,$I$2,休暇希望!AA15)) ->  | BI20: =IF(休暇希望!AB15="","",DATE($F$2,$I$2,休暇希望!AB15)) ->  | BJ20: =IF(休暇希望!AC15="","",DATE($F$2,$I$2,休暇希望!AC15)) ->  | BK20: =IF(休暇希望!AD15="","",DATE($F$2,$I$2,休暇希望!AD15)) ->  | BL20: =IF(休暇希望!AE15="","",DATE($F$2,$I$2,休暇希望!AE15)) ->  | BM20: =IF(休暇希望!AF15="","",DATE($F$2,$I$2,休暇希望!AF15)) ->  | BN20: =IF(休暇希望!AG15="","",DATE($F$2,$I$2,休暇希望!AG15)) ->  | BO20: =IF(休暇希望!AH15="","",DATE($F$2,$I$2,休暇希望!AH15)) ->  | BP20: =IF(休暇希望!AI15="","",DATE($F$2,$I$2,休暇希望!AI15)) -> 
B21: C | C21: 7.5 | D21: 13 | E21: =NETWORKDAYS($H$3,$H$4,各種設定!$A$4:$A$22)-COUNTIF(F21:AJ21,">0") -> 1900-01-21 | AL21: =IF(休暇希望!E16="","",DATE($F$2,$I$2,休暇希望!E16)) ->  | AM21: =IF(休暇希望!F16="","",DATE($F$2,$I$2,休暇希望!F16)) ->  | AN21: =IF(休暇希望!G16="","",DATE($F$2,$I$2,休暇希望!G16)) ->  | AO21: =IF(休暇希望!H16="","",DATE($F$2,$I$2,休暇希望!H16)) ->  | AP21: =IF(休暇希望!I16="","",DATE($F$2,$I$2,休暇希望!I16)) ->  | AQ21: =IF(休暇希望!J16="","",DATE($F$2,$I$2,休暇希望!J16)) ->  | AR21: =IF(休暇希望!K16="","",DATE($F$2,$I$2,休暇希望!K16)) ->  | AS21: =IF(休暇希望!L16="","",DATE($F$2,$I$2,休暇希望!L16)) ->  | AT21: =IF(休暇希望!M16="","",DATE($F$2,$I$2,休暇希望!M16)) ->  | AU21: =IF(休暇希望!N16="","",DATE($F$2,$I$2,休暇希望!N16)) ->  | AV21: =IF(休暇希望!O16="","",DATE($F$2,$I$2,休暇希望!O16)) ->  | AW21: =IF(休暇希望!P16="","",DATE($F$2,$I$2,休暇希望!P16)) ->  | AX21: =IF(休暇希望!Q16="","",DATE($F$2,$I$2,休暇希望!Q16)) ->  | AY21: =IF(休暇希望!R16="","",DATE($F$2,$I$2,休暇希望!R16)) ->  | AZ21: =IF(休暇希望!S16="","",DATE($F$2,$I$2,休暇希望!S16)) ->  | BA21: =IF(休暇希望!T16="","",DATE($F$2,$I$2,休暇希望!T16)) ->  | BB21: =IF(休暇希望!U16="","",DATE($F$2,$I$2,休暇希望!U16)) ->  | BC21: =IF(休暇希望!V16="","",DATE($F$2,$I$2,休暇希望!V16)) ->  | BD21: =IF(休暇希望!W16="","",DATE($F$2,$I$2,休暇希望!W16)) ->  | BE21: =IF(休暇希望!X16="","",DATE($F$2,$I$2,休暇希望!X16)) ->  | BF21: =IF(休暇希望!Y16="","",DATE($F$2,$I$2,休暇希望!Y16)) ->  | BG21: =IF(休暇希望!Z16="","",DATE($F$2,$I$2,休暇希望!Z16)) ->  | BH21: =IF(休暇希望!AA16="","",DATE($F$2,$I$2,休暇希望!AA16)) ->  | BI21: =IF(休暇希望!AB16="","",DATE($F$2,$I$2,休暇希望!AB16)) ->  | BJ21: =IF(休暇希望!AC16="","",DATE($F$2,$I$2,休暇希望!AC16)) ->  | BK21: =IF(休暇希望!AD16="","",DATE($F$2,$I$2,休暇希望!AD16)) ->  | BL21: =IF(休暇希望!AE16="","",DATE($F$2,$I$2,休暇希望!AE16)) ->  | BM21: =IF(休暇希望!AF16="","",DATE($F$2,$I$2,休暇希望!AF16)) ->  | BN21: =IF(休暇希望!AG16="","",DATE($F$2,$I$2,休暇希望!AG16)) ->  | BO21: =IF(休暇希望!AH16="","",DATE($F$2,$I$2,休暇希望!AH16)) ->  | BP21: =IF(休暇希望!AI16="","",DATE($F$2,$I$2,休暇希望!AI16)) -> 
B22: C | C22: 7.5 | D22: 14 | E22: =NETWORKDAYS($H$3,$H$4,各種設定!$A$4:$A$22)-COUNTIF(F22:AJ22,">0") -> 1900-01-21 | AL22: =IF(休暇希望!E17="","",DATE($F$2,$I$2,休暇希望!E17)) ->  | AM22: =IF(休暇希望!F17="","",DATE($F$2,$I$2,休暇希望!F17)) ->  | AN22: =IF(休暇希望!G17="","",DATE($F$2,$I$2,休暇希望!G17)) ->  | AO22: =IF(休暇希望!H17="","",DATE($F$2,$I$2,休暇希望!H17)) ->  | AP22: =IF(休暇希望!I17="","",DATE($F$2,$I$2,休暇希望!I17)) ->  | AQ22: =IF(休暇希望!J17="","",DATE($F$2,$I$2,休暇希望!J17)) ->  | AR22: =IF(休暇希望!K17="","",DATE($F$2,$I$2,休暇希望!K17)) ->  | AS22: =IF(休暇希望!L17="","",DATE($F$2,$I$2,休暇希望!L17)) ->  | AT22: =IF(休暇希望!M17="","",DATE($F$2,$I$2,休暇希望!M17)) ->  | AU22: =IF(休暇希望!N17="","",DATE($F$2,$I$2,休暇希望!N17)) ->  | AV22: =IF(休暇希望!O17="","",DATE($F$2,$I$2,休暇希望!O17)) ->  | AW22: =IF(休暇希望!P17="","",DATE($F$2,$I$2,休暇希望!P17)) ->  | AX22: =IF(休暇希望!Q17="","",DATE($F$2,$I$2,休暇希望!Q17)) ->  | AY22: =IF(休暇希望!R17="","",DATE($F$2,$I$2,休暇希望!R17)) ->  | AZ22: =IF(休暇希望!S17="","",DATE($F$2,$I$2,休暇希望!S17)) ->  | BA22: =IF(休暇希望!T17="","",DATE($F$2,$I$2,休暇希望!T17)) ->  | BB22: =IF(休暇希望!U17="","",DATE($F$2,$I$2,休暇希望!U17)) ->  | BC22: =IF(休暇希望!V17="","",DATE($F$2,$I$2,休暇希望!V17)) ->  | BD22: =IF(休暇希望!W17="","",DATE($F$2,$I$2,休暇希望!W17)) ->  | BE22: =IF(休暇希望!X17="","",DATE($F$2,$I$2,休暇希望!X17)) ->  | BF22: =IF(休暇希望!Y17="","",DATE($F$2,$I$2,休暇希望!Y17)) ->  | BG22: =IF(休暇希望!Z17="","",DATE($F$2,$I$2,休暇希望!Z17)) ->  | BH22: =IF(休暇希望!AA17="","",DATE($F$2,$I$2,休暇希望!AA17)) ->  | BI22: =IF(休暇希望!AB17="","",DATE($F$2,$I$2,休暇希望!AB17)) ->  | BJ22: =IF(休暇希望!AC17="","",DATE($F$2,$I$2,休暇希望!AC17)) ->  | BK22: =IF(休暇希望!AD17="","",DATE($F$2,$I$2,休暇希望!AD17)) ->  | BL22: =IF(休暇希望!AE17="","",DATE($F$2,$I$2,休暇希望!AE17)) ->  | BM22: =IF(休暇希望!AF17="","",DATE($F$2,$I$2,休暇希望!AF17)) ->  | BN22: =IF(休暇希望!AG17="","",DATE($F$2,$I$2,休暇希望!AG17)) ->  | BO22: =IF(休暇希望!AH17="","",DATE($F$2,$I$2,休暇希望!AH17)) ->  | BP22: =IF(休暇希望!AI17="","",DATE($F$2,$I$2,休暇希望!AI17)) -> 
B23: C | C23: 7.5 | D23: 15 | E23: =NETWORKDAYS($H$3,$H$4,各種設定!$A$4:$A$22)-COUNTIF(F23:AJ23,">0") -> 1900-01-21 | AL23: =IF(休暇希望!E18="","",DATE($F$2,$I$2,休暇希望!E18)) ->  | AM23: =IF(休暇希望!F18="","",DATE($F$2,$I$2,休暇希望!F18)) ->  | AN23: =IF(休暇希望!G18="","",DATE($F$2,$I$2,休暇希望!G18)) ->  | AO23: =IF(休暇希望!H18="","",DATE($F$2,$I$2,休暇希望!H18)) ->  | AP23: =IF(休暇希望!I18="","",DATE($F$2,$I$2,休暇希望!I18)) ->  | AQ23: =IF(休暇希望!J18="","",DATE($F$2,$I$2,休暇希望!J18)) ->  | AR23: =IF(休暇希望!K18="","",DATE($F$2,$I$2,休暇希望!K18)) ->  | AS23: =IF(休暇希望!L18="","",DATE($F$2,$I$2,休暇希望!L18)) ->  | AT23: =IF(休暇希望!M18="","",DATE($F$2,$I$2,休暇希望!M18)) ->  | AU23: =IF(休暇希望!N18="","",DATE($F$2,$I$2,休暇希望!N18)) ->  | AV23: =IF(休暇希望!O18="","",DATE($F$2,$I$2,休暇希望!O18)) ->  | AW23: =IF(休暇希望!P18="","",DATE($F$2,$I$2,休暇希望!P18)) ->  | AX23: =IF(休暇希望!Q18="","",DATE($F$2,$I$2,休暇希望!Q18)) ->  | AY23: =IF(休暇希望!R18="","",DATE($F$2,$I$2,休暇希望!R18)) ->  | AZ23: =IF(休暇希望!S18="","",DATE($F$2,$I$2,休暇希望!S18)) ->  | BA23: =IF(休暇希望!T18="","",DATE($F$2,$I$2,休暇希望!T18)) ->  | BB23: =IF(休暇希望!U18="","",DATE($F$2,$I$2,休暇希望!U18)) ->  | BC23: =IF(休暇希望!V18="","",DATE($F$2,$I$2,休暇希望!V18)) ->  | BD23: =IF(休暇希望!W18="","",DATE($F$2,$I$2,休暇希望!W18)) ->  | BE23: =IF(休暇希望!X18="","",DATE($F$2,$I$2,休暇希望!X18)) ->  | BF23: =IF(休暇希望!Y18="","",DATE($F$2,$I$2,休暇希望!Y18)) ->  | BG23: =IF(休暇希望!Z18="","",DATE($F$2,$I$2,休暇希望!Z18)) ->  | BH23: =IF(休暇希望!AA18="","",DATE($F$2,$I$2,休暇希望!AA18)) ->  | BI23: =IF(休暇希望!AB18="","",DATE($F$2,$I$2,休暇希望!AB18)) ->  | BJ23: =IF(休暇希望!AC18="","",DATE($F$2,$I$2,休暇希望!AC18)) ->  | BK23: =IF(休暇希望!AD18="","",DATE($F$2,$I$2,休暇希望!AD18)) ->  | BL23: =IF(休暇希望!AE18="","",DATE($F$2,$I$2,休暇希望!AE18)) ->  | BM23: =IF(休暇希望!AF18="","",DATE($F$2,$I$2,休暇希望!AF18)) ->  | BN23: =IF(休暇希望!AG18="","",DATE($F$2,$I$2,休暇希望!AG18)) ->  | BO23: =IF(休暇希望!AH18="","",DATE($F$2,$I$2,休暇希望!AH18)) ->  | BP23: =IF(休暇希望!AI18="","",DATE($F$2,$I$2,休暇希望!AI18)) -> 
B24: D | C24: =_xlfn.SWITCH($B24,"A",$Q$3,"B",$R$3,"C",$S$3,"D",$T$3,"E",$U$3,) -> 5.25 | D24: 16 | E24: =NETWORKDAYS($H$3,$H$4,各種設定!$A$4:$A$22)-COUNTIF(F24:AJ24,">0") -> 1900-01-21 | AL24: =IF(休暇希望!E19="","",DATE($F$2,$I$2,休暇希望!E19)) ->  | AM24: =IF(休暇希望!F19="","",DATE($F$2,$I$2,休暇希望!F19)) ->  | AN24: =IF(休暇希望!G19="","",DATE($F$2,$I$2,休暇希望!G19)) ->  | AO24: =IF(休暇希望!H19="","",DATE($F$2,$I$2,休暇希望!H19)) ->  | AP24: =IF(休暇希望!I19="","",DATE($F$2,$I$2,休暇希望!I19)) ->  | AQ24: =IF(休暇希望!J19="","",DATE($F$2,$I$2,休暇希望!J19)) ->  | AR24: =IF(休暇希望!K19="","",DATE($F$2,$I$2,休暇希望!K19)) ->  | AS24: =IF(休暇希望!L19="","",DATE($F$2,$I$2,休暇希望!L19)) ->  | AT24: =IF(休暇希望!M19="","",DATE($F$2,$I$2,休暇希望!M19)) ->  | AU24: =IF(休暇希望!N19="","",DATE($F$2,$I$2,休暇希望!N19)) ->  | AV24: =IF(休暇希望!O19="","",DATE($F$2,$I$2,休暇希望!O19)) ->  | AW24: =IF(休暇希望!P19="","",DATE($F$2,$I$2,休暇希望!P19)) ->  | AX24: =IF(休暇希望!Q19="","",DATE($F$2,$I$2,休暇希望!Q19)) ->  | AY24: =IF(休暇希望!R19="","",DATE($F$2,$I$2,休暇希望!R19)) ->  | AZ24: =IF(休暇希望!S19="","",DATE($F$2,$I$2,休暇希望!S19)) ->  | BA24: =IF(休暇希望!T19="","",DATE($F$2,$I$2,休暇希望!T19)) ->  | BB24: =IF(休暇希望!U19="","",DATE($F$2,$I$2,休暇希望!U19)) ->  | BC24: =IF(休暇希望!V19="","",DATE($F$2,$I$2,休暇希望!V19)) ->  | BD24: =IF(休暇希望!W19="","",DATE($F$2,$I$2,休暇希望!W19)) ->  | BE24: =IF(休暇希望!X19="","",DATE($F$2,$I$2,休暇希望!X19)) ->  | BF24: =IF(休暇希望!Y19="","",DATE($F$2,$I$2,休暇希望!Y19)) ->  | BG24: =IF(休暇希望!Z19="","",DATE($F$2,$I$2,休暇希望!Z19)) ->  | BH24: =IF(休暇希望!AA19="","",DATE($F$2,$I$2,休暇希望!AA19)) ->  | BI24: =IF(休暇希望!AB19="","",DATE($F$2,$I$2,休暇希望!AB19)) ->  | BJ24: =IF(休暇希望!AC19="","",DATE($F$2,$I$2,休暇希望!AC19)) ->  | BK24: =IF(休暇希望!AD19="","",DATE($F$2,$I$2,休暇希望!AD19)) ->  | BL24: =IF(休暇希望!AE19="","",DATE($F$2,$I$2,休暇希望!AE19)) ->  | BM24: =IF(休暇希望!AF19="","",DATE($F$2,$I$2,休暇希望!AF19)) ->  | BN24: =IF(休暇希望!AG19="","",DATE($F$2,$I$2,休暇希望!AG19)) ->  | BO24: =IF(休暇希望!AH19="","",DATE($F$2,$I$2,休暇希望!AH19)) ->  | BP24: =IF(休暇希望!AI19="","",DATE($F$2,$I$2,休暇希望!AI19)) -> 
B25: D | C25: =_xlfn.SWITCH($B25,"A",$Q$3,"B",$R$3,"C",$S$3,"D",$T$3,"E",$U$3,) -> 5.25 | D25: 17 | E25: =NETWORKDAYS($H$3,$H$4,各種設定!$A$4:$A$22)-COUNTIF(F25:AJ25,">0") -> 1900-01-21 | AL25: =IF(休暇希望!E20="","",DATE($F$2,$I$2,休暇希望!E20)) ->  | AM25: =IF(休暇希望!F20="","",DATE($F$2,$I$2,休暇希望!F20)) ->  | AN25: =IF(休暇希望!G20="","",DATE($F$2,$I$2,休暇希望!G20)) ->  | AO25: =IF(休暇希望!H20="","",DATE($F$2,$I$2,休暇希望!H20)) ->  | AP25: =IF(休暇希望!I20="","",DATE($F$2,$I$2,休暇希望!I20)) ->  | AQ25: =IF(休暇希望!J20="","",DATE($F$2,$I$2,休暇希望!J20)) ->  | AR25: =IF(休暇希望!K20="","",DATE($F$2,$I$2,休暇希望!K20)) ->  | AS25: =IF(休暇希望!L20="","",DATE($F$2,$I$2,休暇希望!L20)) ->  | AT25: =IF(休暇希望!M20="","",DATE($F$2,$I$2,休暇希望!M20)) ->  | AU25: =IF(休暇希望!N20="","",DATE($F$2,$I$2,休暇希望!N20)) ->  | AV25: =IF(休暇希望!O20="","",DATE($F$2,$I$2,休暇希望!O20)) ->  | AW25: =IF(休暇希望!P20="","",DATE($F$2,$I$2,休暇希望!P20)) ->  | AX25: =IF(休暇希望!Q20="","",DATE($F$2,$I$2,休暇希望!Q20)) ->  | AY25: =IF(休暇希望!R20="","",DATE($F$2,$I$2,休暇希望!R20)) ->  | AZ25: =IF(休暇希望!S20="","",DATE($F$2,$I$2,休暇希望!S20)) ->  | BA25: =IF(休暇希望!T20="","",DATE($F$2,$I$2,休暇希望!T20)) ->  | BB25: =IF(休暇希望!U20="","",DATE($F$2,$I$2,休暇希望!U20)) ->  | BC25: =IF(休暇希望!V20="","",DATE($F$2,$I$2,休暇希望!V20)) ->  | BD25: =IF(休暇希望!W20="","",DATE($F$2,$I$2,休暇希望!W20)) ->  | BE25: =IF(休暇希望!X20="","",DATE($F$2,$I$2,休暇希望!X20)) ->  | BF25: =IF(休暇希望!Y20="","",DATE($F$2,$I$2,休暇希望!Y20)) ->  | BG25: =IF(休暇希望!Z20="","",DATE($F$2,$I$2,休暇希望!Z20)) ->  | BH25: =IF(休暇希望!AA20="","",DATE($F$2,$I$2,休暇希望!AA20)) ->  | BI25: =IF(休暇希望!AB20="","",DATE($F$2,$I$2,休暇希望!AB20)) ->  | BJ25: =IF(休暇希望!AC20="","",DATE($F$2,$I$2,休暇希望!AC20)) ->  | BK25: =IF(休暇希望!AD20="","",DATE($F$2,$I$2,休暇希望!AD20)) ->  | BL25: =IF(休暇希望!AE20="","",DATE($F$2,$I$2,休暇希望!AE20)) ->  | BM25: =IF(休暇希望!AF20="","",DATE($F$2,$I$2,休暇希望!AF20)) ->  | BN25: =IF(休暇希望!AG20="","",DATE($F$2,$I$2,休暇希望!AG20)) ->  | BO25: =IF(休暇希望!AH20="","",DATE($F$2,$I$2,休暇希望!AH20)) ->  | BP25: =IF(休暇希望!AI20="","",DATE($F$2,$I$2,休暇希望!AI20)) -> 
B26: D | C26: =_xlfn.SWITCH($B26,"A",$Q$3,"B",$R$3,"C",$S$3,"D",$T$3,"E",$U$3,) -> 5.25 | D26: 18 | E26: =NETWORKDAYS($H$3,$H$4,各種設定!$A$4:$A$22)-COUNTIF(F26:AJ26,">0") -> 1900-01-21 | AL26: =IF(休暇希望!E21="","",DATE($F$2,$I$2,休暇希望!E21)) ->  | AM26: =IF(休暇希望!F21="","",DATE($F$2,$I$2,休暇希望!F21)) ->  | AN26: =IF(休暇希望!G21="","",DATE($F$2,$I$2,休暇希望!G21)) ->  | AO26: =IF(休暇希望!H21="","",DATE($F$2,$I$2,休暇希望!H21)) ->  | AP26: =IF(休暇希望!I21="","",DATE($F$2,$I$2,休暇希望!I21)) ->  | AQ26: =IF(休暇希望!J21="","",DATE($F$2,$I$2,休暇希望!J21)) ->  | AR26: =IF(休暇希望!K21="","",DATE($F$2,$I$2,休暇希望!K21)) ->  | AS26: =IF(休暇希望!L21="","",DATE($F$2,$I$2,休暇希望!L21)) ->  | AT26: =IF(休暇希望!M21="","",DATE($F$2,$I$2,休暇希望!M21)) ->  | AU26: =IF(休暇希望!N21="","",DATE($F$2,$I$2,休暇希望!N21)) ->  | AV26: =IF(休暇希望!O21="","",DATE($F$2,$I$2,休暇希望!O21)) ->  | AW26: =IF(休暇希望!P21="","",DATE($F$2,$I$2,休暇希望!P21)) ->  | AX26: =IF(休暇希望!Q21="","",DATE($F$2,$I$2,休暇希望!Q21)) ->  | AY26: =IF(休暇希望!R21="","",DATE($F$2,$I$2,休暇希望!R21)) ->  | AZ26: =IF(休暇希望!S21="","",DATE($F$2,$I$2,休暇希望!S21)) ->  | BA26: =IF(休暇希望!T21="","",DATE($F$2,$I$2,休暇希望!T21)) ->  | BB26: =IF(休暇希望!U21="","",DATE($F$2,$I$2,休暇希望!U21)) ->  | BC26: =IF(休暇希望!V21="","",DATE($F$2,$I$2,休暇希望!V21)) ->  | BD26: =IF(休暇希望!W21="","",DATE($F$2,$I$2,休暇希望!W21)) ->  | BE26: =IF(休暇希望!X21="","",DATE($F$2,$I$2,休暇希望!X21)) ->  | BF26: =IF(休暇希望!Y21="","",DATE($F$2,$I$2,休暇希望!Y21)) ->  | BG26: =IF(休暇希望!Z21="","",DATE($F$2,$I$2,休暇希望!Z21)) ->  | BH26: =IF(休暇希望!AA21="","",DATE($F$2,$I$2,休暇希望!AA21)) ->  | BI26: =IF(休暇希望!AB21="","",DATE($F$2,$I$2,休暇希望!AB21)) ->  | BJ26: =IF(休暇希望!AC21="","",DATE($F$2,$I$2,休暇希望!AC21)) ->  | BK26: =IF(休暇希望!AD21="","",DATE($F$2,$I$2,休暇希望!AD21)) ->  | BL26: =IF(休暇希望!AE21="","",DATE($F$2,$I$2,休暇希望!AE21)) ->  | BM26: =IF(休暇希望!AF21="","",DATE($F$2,$I$2,休暇希望!AF21)) ->  | BN26: =IF(休暇希望!AG21="","",DATE($F$2,$I$2,休暇希望!AG21)) ->  | BO26: =IF(休暇希望!AH21="","",DATE($F$2,$I$2,休暇希望!AH21)) ->  | BP26: =IF(休暇希望!AI21="","",DATE($F$2,$I$2,休暇希望!AI21)) -> 
B27: D | C27: 5.25 | D27: 19 | E27: =NETWORKDAYS($H$3,$H$4,各種設定!$A$4:$A$22)-COUNTIF(F27:AJ27,">0") -> 1900-01-21 | AL27: =IF(休暇希望!E22="","",DATE($F$2,$I$2,休暇希望!E22)) ->  | AM27: =IF(休暇希望!F22="","",DATE($F$2,$I$2,休暇希望!F22)) ->  | AN27: =IF(休暇希望!G22="","",DATE($F$2,$I$2,休暇希望!G22)) ->  | AO27: =IF(休暇希望!H22="","",DATE($F$2,$I$2,休暇希望!H22)) ->  | AP27: =IF(休暇希望!I22="","",DATE($F$2,$I$2,休暇希望!I22)) ->  | AQ27: =IF(休暇希望!J22="","",DATE($F$2,$I$2,休暇希望!J22)) ->  | AR27: =IF(休暇希望!K22="","",DATE($F$2,$I$2,休暇希望!K22)) ->  | AS27: =IF(休暇希望!L22="","",DATE($F$2,$I$2,休暇希望!L22)) ->  | AT27: =IF(休暇希望!M22="","",DATE($F$2,$I$2,休暇希望!M22)) ->  | AU27: =IF(休暇希望!N22="","",DATE($F$2,$I$2,休暇希望!N22)) ->  | AV27: =IF(休暇希望!O22="","",DATE($F$2,$I$2,休暇希望!O22)) ->  | AW27: =IF(休暇希望!P22="","",DATE($F$2,$I$2,休暇希望!P22)) ->  | AX27: =IF(休暇希望!Q22="","",DATE($F$2,$I$2,休暇希望!Q22)) ->  | AY27: =IF(休暇希望!R22="","",DATE($F$2,$I$2,休暇希望!R22)) ->  | AZ27: =IF(休暇希望!S22="","",DATE($F$2,$I$2,休暇希望!S22)) ->  | BA27: =IF(休暇希望!T22="","",DATE($F$2,$I$2,休暇希望!T22)) ->  | BB27: =IF(休暇希望!U22="","",DATE($F$2,$I$2,休暇希望!U22)) ->  | BC27: =IF(休暇希望!V22="","",DATE($F$2,$I$2,休暇希望!V22)) ->  | BD27: =IF(休暇希望!W22="","",DATE($F$2,$I$2,休暇希望!W22)) ->  | BE27: =IF(休暇希望!X22="","",DATE($F$2,$I$2,休暇希望!X22)) ->  | BF27: =IF(休暇希望!Y22="","",DATE($F$2,$I$2,休暇希望!Y22)) ->  | BG27: =IF(休暇希望!Z22="","",DATE($F$2,$I$2,休暇希望!Z22)) ->  | BH27: =IF(休暇希望!AA22="","",DATE($F$2,$I$2,休暇希望!AA22)) ->  | BI27: =IF(休暇希望!AB22="","",DATE($F$2,$I$2,休暇希望!AB22)) ->  | BJ27: =IF(休暇希望!AC22="","",DATE($F$2,$I$2,休暇希望!AC22)) ->  | BK27: =IF(休暇希望!AD22="","",DATE($F$2,$I$2,休暇希望!AD22)) ->  | BL27: =IF(休暇希望!AE22="","",DATE($F$2,$I$2,休暇希望!AE22)) ->  | BM27: =IF(休暇希望!AF22="","",DATE($F$2,$I$2,休暇希望!AF22)) ->  | BN27: =IF(休暇希望!AG22="","",DATE($F$2,$I$2,休暇希望!AG22)) ->  | BO27: =IF(休暇希望!AH22="","",DATE($F$2,$I$2,休暇希望!AH22)) ->  | BP27: =IF(休暇希望!AI22="","",DATE($F$2,$I$2,休暇希望!AI22)) -> 
B28: D | C28: 5.25 | D28: 20 | E28: =NETWORKDAYS($H$3,$H$4,各種設定!$A$4:$A$22)-COUNTIF(F28:AJ28,">0") -> 1900-01-21 | AL28: =IF(休暇希望!E23="","",DATE($F$2,$I$2,休暇希望!E23)) ->  | AM28: =IF(休暇希望!F23="","",DATE($F$2,$I$2,休暇希望!F23)) ->  | AN28: =IF(休暇希望!G23="","",DATE($F$2,$I$2,休暇希望!G23)) ->  | AO28: =IF(休暇希望!H23="","",DATE($F$2,$I$2,休暇希望!H23)) ->  | AP28: =IF(休暇希望!I23="","",DATE($F$2,$I$2,休暇希望!I23)) ->  | AQ28: =IF(休暇希望!J23="","",DATE($F$2,$I$2,休暇希望!J23)) ->  | AR28: =IF(休暇希望!K23="","",DATE($F$2,$I$2,休暇希望!K23)) ->  | AS28: =IF(休暇希望!L23="","",DATE($F$2,$I$2,休暇希望!L23)) ->  | AT28: =IF(休暇希望!M23="","",DATE($F$2,$I$2,休暇希望!M23)) ->  | AU28: =IF(休暇希望!N23="","",DATE($F$2,$I$2,休暇希望!N23)) ->  | AV28: =IF(休暇希望!O23="","",DATE($F$2,$I$2,休暇希望!O23)) ->  | AW28: =IF(休暇希望!P23="","",DATE($F$2,$I$2,休暇希望!P23)) ->  | AX28: =IF(休暇希望!Q23="","",DATE($F$2,$I$2,休暇希望!Q23)) ->  | AY28: =IF(休暇希望!R23="","",DATE($F$2,$I$2,休暇希望!R23)) ->  | AZ28: =IF(休暇希望!S23="","",DATE($F$2,$I$2,休暇希望!S23)) ->  | BA28: =IF(休暇希望!T23="","",DATE($F$2,$I$2,休暇希望!T23)) ->  | BB28: =IF(休暇希望!U23="","",DATE($F$2,$I$2,休暇希望!U23)) ->  | BC28: =IF(休暇希望!V23="","",DATE($F$2,$I$2,休暇希望!V23)) ->  | BD28: =IF(休暇希望!W23="","",DATE($F$2,$I$2,休暇希望!W23)) ->  | BE28: =IF(休暇希望!X23="","",DATE($F$2,$I$2,休暇希望!X23)) ->  | BF28: =IF(休暇希望!Y23="","",DATE($F$2,$I$2,休暇希望!Y23)) ->  | BG28: =IF(休暇希望!Z23="","",DATE($F$2,$I$2,休暇希望!Z23)) ->  | BH28: =IF(休暇希望!AA23="","",DATE($F$2,$I$2,休暇希望!AA23)) ->  | BI28: =IF(休暇希望!AB23="","",DATE($F$2,$I$2,休暇希望!AB23)) ->  | BJ28: =IF(休暇希望!AC23="","",DATE($F$2,$I$2,休暇希望!AC23)) ->  | BK28: =IF(休暇希望!AD23="","",DATE($F$2,$I$2,休暇希望!AD23)) ->  | BL28: =IF(休暇希望!AE23="","",DATE($F$2,$I$2,休暇希望!AE23)) ->  | BM28: =IF(休暇希望!AF23="","",DATE($F$2,$I$2,休暇希望!AF23)) ->  | BN28: =IF(休暇希望!AG23="","",DATE($F$2,$I$2,休暇希望!AG23)) ->  | BO28: =IF(休暇希望!AH23="","",DATE($F$2,$I$2,休暇希望!AH23)) ->  | BP28: =IF(休暇希望!AI23="","",DATE($F$2,$I$2,休暇希望!AI23)) -> 
B29: E | C29: 4 | D29: 21 | E29: =NETWORKDAYS($H$3,$H$4,各種設定!$A$4:$A$22)-COUNTIF(F29:AJ29,">0") -> 1900-01-21 | F29: =IF(F$7="","",IF(COUNTIF($AL29:$BP29,F$7)>0,$C29,"")) ->  | P29: =IF(P$7="","",IF(COUNTIF($AL29:$BP29,P$7)>0,$C29,"")) ->  | Z29: =IF(Z$7="","",IF(COUNTIF($AL29:$BP29,Z$7)>0,$C29,"")) ->  | AL29: =IF(休暇希望!E24="","",DATE($F$2,$I$2,休暇希望!E24)) ->  | AM29: =IF(休暇希望!F24="","",DATE($F$2,$I$2,休暇希望!F24)) ->  | AN29: =IF(休暇希望!G24="","",DATE($F$2,$I$2,休暇希望!G24)) ->  | AO29: =IF(休暇希望!H24="","",DATE($F$2,$I$2,休暇希望!H24)) ->  | AP29: =IF(休暇希望!I24="","",DATE($F$2,$I$2,休暇希望!I24)) ->  | AQ29: =IF(休暇希望!J24="","",DATE($F$2,$I$2,休暇希望!J24)) ->  | AR29: =IF(休暇希望!K24="","",DATE($F$2,$I$2,休暇希望!K24)) ->  | AS29: =IF(休暇希望!L24="","",DATE($F$2,$I$2,休暇希望!L24)) ->  | AT29: =IF(休暇希望!M24="","",DATE($F$2,$I$2,休暇希望!M24)) ->  | AU29: =IF(休暇希望!N24="","",DATE($F$2,$I$2,休暇希望!N24)) ->  | AV29: =IF(休暇希望!O24="","",DATE($F$2,$I$2,休暇希望!O24)) ->  | AW29: =IF(休暇希望!P24="","",DATE($F$2,$I$2,休暇希望!P24)) ->  | AX29: =IF(休暇希望!Q24="","",DATE($F$2,$I$2,休暇希望!Q24)) ->  | AY29: =IF(休暇希望!R24="","",DATE($F$2,$I$2,休暇希望!R24)) ->  | AZ29: =IF(休暇希望!S24="","",DATE($F$2,$I$2,休暇希望!S24)) ->  | BA29: =IF(休暇希望!T24="","",DATE($F$2,$I$2,休暇希望!T24)) ->  | BB29: =IF(休暇希望!U24="","",DATE($F$2,$I$2,休暇希望!U24)) ->  | BC29: =IF(休暇希望!V24="","",DATE($F$2,$I$2,休暇希望!V24)) ->  | BD29: =IF(休暇希望!W24="","",DATE($F$2,$I$2,休暇希望!W24)) ->  | BE29: =IF(休暇希望!X24="","",DATE($F$2,$I$2,休暇希望!X24)) ->  | BF29: =IF(休暇希望!Y24="","",DATE($F$2,$I$2,休暇希望!Y24)) ->  | BG29: =IF(休暇希望!Z24="","",DATE($F$2,$I$2,休暇希望!Z24)) ->  | BH29: =IF(休暇希望!AA24="","",DATE($F$2,$I$2,休暇希望!AA24)) ->  | BI29: =IF(休暇希望!AB24="","",DATE($F$2,$I$2,休暇希望!AB24)) ->  | BJ29: =IF(休暇希望!AC24="","",DATE($F$2,$I$2,休暇希望!AC24)) ->  | BK29: =IF(休暇希望!AD24="","",DATE($F$2,$I$2,休暇希望!AD24)) ->  | BL29: =IF(休暇希望!AE24="","",DATE($F$2,$I$2,休暇希望!AE24)) ->  | BM29: =IF(休暇希望!AF24="","",DATE($F$2,$I$2,休暇希望!AF24)) ->  | BN29: =IF(休暇希望!AG24="","",DATE($F$2,$I$2,休暇希望!AG24)) ->  | BO29: =IF(休暇希望!AH24="","",DATE($F$2,$I$2,休暇希望!AH24)) ->  | BP29: =IF(休暇希望!AI24="","",DATE($F$2,$I$2,休暇希望!AI24)) -> 
B30: E | C30: 4 | D30: 22 | E30: =NETWORKDAYS($H$3,$H$4,各種設定!$A$4:$A$22)-COUNTIF(F30:AJ30,">0") -> 1900-01-21 | AL30: =IF(休暇希望!E25="","",DATE($F$2,$I$2,休暇希望!E25)) ->  | AM30: =IF(休暇希望!F25="","",DATE($F$2,$I$2,休暇希望!F25)) ->  | AN30: =IF(休暇希望!G25="","",DATE($F$2,$I$2,休暇希望!G25)) ->  | AO30: =IF(休暇希望!H25="","",DATE($F$2,$I$2,休暇希望!H25)) ->  | AP30: =IF(休暇希望!I25="","",DATE($F$2,$I$2,休暇希望!I25)) ->  | AQ30: =IF(休暇希望!J25="","",DATE($F$2,$I$2,休暇希望!J25)) ->  | AR30: =IF(休暇希望!K25="","",DATE($F$2,$I$2,休暇希望!K25)) ->  | AS30: =IF(休暇希望!L25="","",DATE($F$2,$I$2,休暇希望!L25)) ->  | AT30: =IF(休暇希望!M25="","",DATE($F$2,$I$2,休暇希望!M25)) ->  | AU30: =IF(休暇希望!N25="","",DATE($F$2,$I$2,休暇希望!N25)) ->  | AV30: =IF(休暇希望!O25="","",DATE($F$2,$I$2,休暇希望!O25)) ->  | AW30: =IF(休暇希望!P25="","",DATE($F$2,$I$2,休暇希望!P25)) ->  | AX30: =IF(休暇希望!Q25="","",DATE($F$2,$I$2,休暇希望!Q25)) ->  | AY30: =IF(休暇希望!R25="","",DATE($F$2,$I$2,休暇希望!R25)) ->  | AZ30: =IF(休暇希望!S25="","",DATE($F$2,$I$2,休暇希望!S25)) ->  | BA30: =IF(休暇希望!T25="","",DATE($F$2,$I$2,休暇希望!T25)) ->  | BB30: =IF(休暇希望!U25="","",DATE($F$2,$I$2,休暇希望!U25)) ->  | BC30: =IF(休暇希望!V25="","",DATE($F$2,$I$2,休暇希望!V25)) ->  | BD30: =IF(休暇希望!W25="","",DATE($F$2,$I$2,休暇希望!W25)) ->  | BE30: =IF(休暇希望!X25="","",DATE($F$2,$I$2,休暇希望!X25)) ->  | BF30: =IF(休暇希望!Y25="","",DATE($F$2,$I$2,休暇希望!Y25)) ->  | BG30: =IF(休暇希望!Z25="","",DATE($F$2,$I$2,休暇希望!Z25)) ->  | BH30: =IF(休暇希望!AA25="","",DATE($F$2,$I$2,休暇希望!AA25)) ->  | BI30: =IF(休暇希望!AB25="","",DATE($F$2,$I$2,休暇希望!AB25)) ->  | BJ30: =IF(休暇希望!AC25="","",DATE($F$2,$I$2,休暇希望!AC25)) ->  | BK30: =IF(休暇希望!AD25="","",DATE($F$2,$I$2,休暇希望!AD25)) ->  | BL30: =IF(休暇希望!AE25="","",DATE($F$2,$I$2,休暇希望!AE25)) ->  | BM30: =IF(休暇希望!AF25="","",DATE($F$2,$I$2,休暇希望!AF25)) ->  | BN30: =IF(休暇希望!AG25="","",DATE($F$2,$I$2,休暇希望!AG25)) ->  | BO30: =IF(休暇希望!AH25="","",DATE($F$2,$I$2,休暇希望!AH25)) ->  | BP30: =IF(休暇希望!AI25="","",DATE($F$2,$I$2,休暇希望!AI25)) -> 
B31: E | C31: 4 | D31: 23 | E31: =NETWORKDAYS($H$3,$H$4,各種設定!$A$4:$A$22)-COUNTIF(F31:AJ31,">0") -> 1900-01-21 | AL31: =IF(休暇希望!E26="","",DATE($F$2,$I$2,休暇希望!E26)) ->  | AM31: =IF(休暇希望!F26="","",DATE($F$2,$I$2,休暇希望!F26)) ->  | AN31: =IF(休暇希望!G26="","",DATE($F$2,$I$2,休暇希望!G26)) ->  | AO31: =IF(休暇希望!H26="","",DATE($F$2,$I$2,休暇希望!H26)) ->  | AP31: =IF(休暇希望!I26="","",DATE($F$2,$I$2,休暇希望!I26)) ->  | AQ31: =IF(休暇希望!J26="","",DATE($F$2,$I$2,休暇希望!J26)) ->  | AR31: =IF(休暇希望!K26="","",DATE($F$2,$I$2,休暇希望!K26)) ->  | AS31: =IF(休暇希望!L26="","",DATE($F$2,$I$2,休暇希望!L26)) ->  | AT31: =IF(休暇希望!M26="","",DATE($F$2,$I$2,休暇希望!M26)) ->  | AU31: =IF(休暇希望!N26="","",DATE($F$2,$I$2,休暇希望!N26)) ->  | AV31: =IF(休暇希望!O26="","",DATE($F$2,$I$2,休暇希望!O26)) ->  | AW31: =IF(休暇希望!P26="","",DATE($F$2,$I$2,休暇希望!P26)) ->  | AX31: =IF(休暇希望!Q26="","",DATE($F$2,$I$2,休暇希望!Q26)) ->  | AY31: =IF(休暇希望!R26="","",DATE($F$2,$I$2,休暇希望!R26)) ->  | AZ31: =IF(休暇希望!S26="","",DATE($F$2,$I$2,休暇希望!S26)) ->  | BA31: =IF(休暇希望!T26="","",DATE($F$2,$I$2,休暇希望!T26)) ->  | BB31: =IF(休暇希望!U26="","",DATE($F$2,$I$2,休暇希望!U26)) ->  | BC31: =IF(休暇希望!V26="","",DATE($F$2,$I$2,休暇希望!V26)) ->  | BD31: =IF(休暇希望!W26="","",DATE($F$2,$I$2,休暇希望!W26)) ->  | BE31: =IF(休暇希望!X26="","",DATE($F$2,$I$2,休暇希望!X26)) ->  | BF31: =IF(休暇希望!Y26="","",DATE($F$2,$I$2,休暇希望!Y26)) ->  | BG31: =IF(休暇希望!Z26="","",DATE($F$2,$I$2,休暇希望!Z26)) ->  | BH31: =IF(休暇希望!AA26="","",DATE($F$2,$I$2,休暇希望!AA26)) ->  | BI31: =IF(休暇希望!AB26="","",DATE($F$2,$I$2,休暇希望!AB26)) ->  | BJ31: =IF(休暇希望!AC26="","",DATE($F$2,$I$2,休暇希望!AC26)) ->  | BK31: =IF(休暇希望!AD26="","",DATE($F$2,$I$2,休暇希望!AD26)) ->  | BL31: =IF(休暇希望!AE26="","",DATE($F$2,$I$2,休暇希望!AE26)) ->  | BM31: =IF(休暇希望!AF26="","",DATE($F$2,$I$2,休暇希望!AF26)) ->  | BN31: =IF(休暇希望!AG26="","",DATE($F$2,$I$2,休暇希望!AG26)) ->  | BO31: =IF(休暇希望!AH26="","",DATE($F$2,$I$2,休暇希望!AH26)) ->  | BP31: =IF(休暇希望!AI26="","",DATE($F$2,$I$2,休暇希望!AI26)) -> 
B32: E | C32: 4 | D32: 24 | E32: =NETWORKDAYS($H$3,$H$4,各種設定!$A$4:$A$22)-COUNTIF(F32:AJ32,">0") -> 1900-01-21 | AL32: =IF(休暇希望!E27="","",DATE($F$2,$I$2,休暇希望!E27)) ->  | AM32: =IF(休暇希望!F27="","",DATE($F$2,$I$2,休暇希望!F27)) ->  | AN32: =IF(休暇希望!G27="","",DATE($F$2,$I$2,休暇希望!G27)) ->  | AO32: =IF(休暇希望!H27="","",DATE($F$2,$I$2,休暇希望!H27)) ->  | AP32: =IF(休暇希望!I27="","",DATE($F$2,$I$2,休暇希望!I27)) ->  | AQ32: =IF(休暇希望!J27="","",DATE($F$2,$I$2,休暇希望!J27)) ->  | AR32: =IF(休暇希望!K27="","",DATE($F$2,$I$2,休暇希望!K27)) ->  | AS32: =IF(休暇希望!L27="","",DATE($F$2,$I$2,休暇希望!L27)) ->  | AT32: =IF(休暇希望!M27="","",DATE($F$2,$I$2,休暇希望!M27)) ->  | AU32: =IF(休暇希望!N27="","",DATE($F$2,$I$2,休暇希望!N27)) ->  | AV32: =IF(休暇希望!O27="","",DATE($F$2,$I$2,休暇希望!O27)) ->  | AW32: =IF(休暇希望!P27="","",DATE($F$2,$I$2,休暇希望!P27)) ->  | AX32: =IF(休暇希望!Q27="","",DATE($F$2,$I$2,休暇希望!Q27)) ->  | AY32: =IF(休暇希望!R27="","",DATE($F$2,$I$2,休暇希望!R27)) ->  | AZ32: =IF(休暇希望!S27="","",DATE($F$2,$I$2,休暇希望!S27)) ->  | BA32: =IF(休暇希望!T27="","",DATE($F$2,$I$2,休暇希望!T27)) ->  | BB32: =IF(休暇希望!U27="","",DATE($F$2,$I$2,休暇希望!U27)) ->  | BC32: =IF(休暇希望!V27="","",DATE($F$2,$I$2,休暇希望!V27)) ->  | BD32: =IF(休暇希望!W27="","",DATE($F$2,$I$2,休暇希望!W27)) ->  | BE32: =IF(休暇希望!X27="","",DATE($F$2,$I$2,休暇希望!X27)) ->  | BF32: =IF(休暇希望!Y27="","",DATE($F$2,$I$2,休暇希望!Y27)) ->  | BG32: =IF(休暇希望!Z27="","",DATE($F$2,$I$2,休暇希望!Z27)) ->  | BH32: =IF(休暇希望!AA27="","",DATE($F$2,$I$2,休暇希望!AA27)) ->  | BI32: =IF(休暇希望!AB27="","",DATE($F$2,$I$2,休暇希望!AB27)) ->  | BJ32: =IF(休暇希望!AC27="","",DATE($F$2,$I$2,休暇希望!AC27)) ->  | BK32: =IF(休暇希望!AD27="","",DATE($F$2,$I$2,休暇希望!AD27)) ->  | BL32: =IF(休暇希望!AE27="","",DATE($F$2,$I$2,休暇希望!AE27)) ->  | BM32: =IF(休暇希望!AF27="","",DATE($F$2,$I$2,休暇希望!AF27)) ->  | BN32: =IF(休暇希望!AG27="","",DATE($F$2,$I$2,休暇希望!AG27)) ->  | BO32: =IF(休暇希望!AH27="","",DATE($F$2,$I$2,休暇希望!AH27)) ->  | BP32: =IF(休暇希望!AI27="","",DATE($F$2,$I$2,休暇希望!AI27)) -> 
B33: E | C33: 4 | D33: 25 | E33: =NETWORKDAYS($H$3,$H$4,各種設定!$A$4:$A$22)-COUNTIF(F33:AJ33,">0") -> 1900-01-21 | AL33: =IF(休暇希望!E28="","",DATE($F$2,$I$2,休暇希望!E28)) ->  | AM33: =IF(休暇希望!F28="","",DATE($F$2,$I$2,休暇希望!F28)) ->  | AN33: =IF(休暇希望!G28="","",DATE($F$2,$I$2,休暇希望!G28)) ->  | AO33: =IF(休暇希望!H28="","",DATE($F$2,$I$2,休暇希望!H28)) ->  | AP33: =IF(休暇希望!I28="","",DATE($F$2,$I$2,休暇希望!I28)) ->  | AQ33: =IF(休暇希望!J28="","",DATE($F$2,$I$2,休暇希望!J28)) ->  | AR33: =IF(休暇希望!K28="","",DATE($F$2,$I$2,休暇希望!K28)) ->  | AS33: =IF(休暇希望!L28="","",DATE($F$2,$I$2,休暇希望!L28)) ->  | AT33: =IF(休暇希望!M28="","",DATE($F$2,$I$2,休暇希望!M28)) ->  | AU33: =IF(休暇希望!N28="","",DATE($F$2,$I$2,休暇希望!N28)) ->  | AV33: =IF(休暇希望!O28="","",DATE($F$2,$I$2,休暇希望!O28)) ->  | AW33: =IF(休暇希望!P28="","",DATE($F$2,$I$2,休暇希望!P28)) ->  | AX33: =IF(休暇希望!Q28="","",DATE($F$2,$I$2,休暇希望!Q28)) ->  | AY33: =IF(休暇希望!R28="","",DATE($F$2,$I$2,休暇希望!R28)) ->  | AZ33: =IF(休暇希望!S28="","",DATE($F$2,$I$2,休暇希望!S28)) ->  | BA33: =IF(休暇希望!T28="","",DATE($F$2,$I$2,休暇希望!T28)) ->  | BB33: =IF(休暇希望!U28="","",DATE($F$2,$I$2,休暇希望!U28)) ->  | BC33: =IF(休暇希望!V28="","",DATE($F$2,$I$2,休暇希望!V28)) ->  | BD33: =IF(休暇希望!W28="","",DATE($F$2,$I$2,休暇希望!W28)) ->  | BE33: =IF(休暇希望!X28="","",DATE($F$2,$I$2,休暇希望!X28)) ->  | BF33: =IF(休暇希望!Y28="","",DATE($F$2,$I$2,休暇希望!Y28)) ->  | BG33: =IF(休暇希望!Z28="","",DATE($F$2,$I$2,休暇希望!Z28)) ->  | BH33: =IF(休暇希望!AA28="","",DATE($F$2,$I$2,休暇希望!AA28)) ->  | BI33: =IF(休暇希望!AB28="","",DATE($F$2,$I$2,休暇希望!AB28)) ->  | BJ33: =IF(休暇希望!AC28="","",DATE($F$2,$I$2,休暇希望!AC28)) ->  | BK33: =IF(休暇希望!AD28="","",DATE($F$2,$I$2,休暇希望!AD28)) ->  | BL33: =IF(休暇希望!AE28="","",DATE($F$2,$I$2,休暇希望!AE28)) ->  | BM33: =IF(休暇希望!AF28="","",DATE($F$2,$I$2,休暇希望!AF28)) ->  | BN33: =IF(休暇希望!AG28="","",DATE($F$2,$I$2,休暇希望!AG28)) ->  | BO33: =IF(休暇希望!AH28="","",DATE($F$2,$I$2,休暇希望!AH28)) ->  | BP33: =IF(休暇希望!AI28="","",DATE($F$2,$I$2,休暇希望!AI28)) -> 
B34: E | C34: 4 | D34: 26 | E34: =NETWORKDAYS($H$3,$H$4,各種設定!$A$4:$A$22)-COUNTIF(F34:AJ34,">0") -> 1900-01-21 | AL34: =IF(休暇希望!E29="","",DATE($F$2,$I$2,休暇希望!E29)) ->  | AM34: =IF(休暇希望!F29="","",DATE($F$2,$I$2,休暇希望!F29)) ->  | AN34: =IF(休暇希望!G29="","",DATE($F$2,$I$2,休暇希望!G29)) ->  | AO34: =IF(休暇希望!H29="","",DATE($F$2,$I$2,休暇希望!H29)) ->  | AP34: =IF(休暇希望!I29="","",DATE($F$2,$I$2,休暇希望!I29)) ->  | AQ34: =IF(休暇希望!J29="","",DATE($F$2,$I$2,休暇希望!J29)) ->  | AR34: =IF(休暇希望!K29="","",DATE($F$2,$I$2,休暇希望!K29)) ->  | AS34: =IF(休暇希望!L29="","",DATE($F$2,$I$2,休暇希望!L29)) ->  | AT34: =IF(休暇希望!M29="","",DATE($F$2,$I$2,休暇希望!M29)) ->  | AU34: =IF(休暇希望!N29="","",DATE($F$2,$I$2,休暇希望!N29)) ->  | AV34: =IF(休暇希望!O29="","",DATE($F$2,$I$2,休暇希望!O29)) ->  | AW34: =IF(休暇希望!P29="","",DATE($F$2,$I$2,休暇希望!P29)) ->  | AX34: =IF(休暇希望!Q29="","",DATE($F$2,$I$2,休暇希望!Q29)) ->  | AY34: =IF(休暇希望!R29="","",DATE($F$2,$I$2,休暇希望!R29)) ->  | AZ34: =IF(休暇希望!S29="","",DATE($F$2,$I$2,休暇希望!S29)) ->  | BA34: =IF(休暇希望!T29="","",DATE($F$2,$I$2,休暇希望!T29)) ->  | BB34: =IF(休暇希望!U29="","",DATE($F$2,$I$2,休暇希望!U29)) ->  | BC34: =IF(休暇希望!V29="","",DATE($F$2,$I$2,休暇希望!V29)) ->  | BD34: =IF(休暇希望!W29="","",DATE($F$2,$I$2,休暇希望!W29)) ->  | BE34: =IF(休暇希望!X29="","",DATE($F$2,$I$2,休暇希望!X29)) ->  | BF34: =IF(休暇希望!Y29="","",DATE($F$2,$I$2,休暇希望!Y29)) ->  | BG34: =IF(休暇希望!Z29="","",DATE($F$2,$I$2,休暇希望!Z29)) ->  | BH34: =IF(休暇希望!AA29="","",DATE($F$2,$I$2,休暇希望!AA29)) ->  | BI34: =IF(休暇希望!AB29="","",DATE($F$2,$I$2,休暇希望!AB29)) ->  | BJ34: =IF(休暇希望!AC29="","",DATE($F$2,$I$2,休暇希望!AC29)) ->  | BK34: =IF(休暇希望!AD29="","",DATE($F$2,$I$2,休暇希望!AD29)) ->  | BL34: =IF(休暇希望!AE29="","",DATE($F$2,$I$2,休暇希望!AE29)) ->  | BM34: =IF(休暇希望!AF29="","",DATE($F$2,$I$2,休暇希望!AF29)) ->  | BN34: =IF(休暇希望!AG29="","",DATE($F$2,$I$2,休暇希望!AG29)) ->  | BO34: =IF(休暇希望!AH29="","",DATE($F$2,$I$2,休暇希望!AH29)) ->  | BP34: =IF(休暇希望!AI29="","",DATE($F$2,$I$2,休暇希望!AI29)) -> 
B35: E | C35: 4 | D35: 27 | E35: =NETWORKDAYS($H$3,$H$4,各種設定!$A$4:$A$22)-COUNTIF(F35:AJ35,">0") -> 1900-01-21 | AL35: =IF(休暇希望!E30="","",DATE($F$2,$I$2,休暇希望!E30)) ->  | AM35: =IF(休暇希望!F30="","",DATE($F$2,$I$2,休暇希望!F30)) ->  | AN35: =IF(休暇希望!G30="","",DATE($F$2,$I$2,休暇希望!G30)) ->  | AO35: =IF(休暇希望!H30="","",DATE($F$2,$I$2,休暇希望!H30)) ->  | AP35: =IF(休暇希望!I30="","",DATE($F$2,$I$2,休暇希望!I30)) ->  | AQ35: =IF(休暇希望!J30="","",DATE($F$2,$I$2,休暇希望!J30)) ->  | AR35: =IF(休暇希望!K30="","",DATE($F$2,$I$2,休暇希望!K30)) ->  | AS35: =IF(休暇希望!L30="","",DATE($F$2,$I$2,休暇希望!L30)) ->  | AT35: =IF(休暇希望!M30="","",DATE($F$2,$I$2,休暇希望!M30)) ->  | AU35: =IF(休暇希望!N30="","",DATE($F$2,$I$2,休暇希望!N30)) ->  | AV35: =IF(休暇希望!O30="","",DATE($F$2,$I$2,休暇希望!O30)) ->  | AW35: =IF(休暇希望!P30="","",DATE($F$2,$I$2,休暇希望!P30)) ->  | AX35: =IF(休暇希望!Q30="","",DATE($F$2,$I$2,休暇希望!Q30)) ->  | AY35: =IF(休暇希望!R30="","",DATE($F$2,$I$2,休暇希望!R30)) ->  | AZ35: =IF(休暇希望!S30="","",DATE($F$2,$I$2,休暇希望!S30)) ->  | BA35: =IF(休暇希望!T30="","",DATE($F$2,$I$2,休暇希望!T30)) ->  | BB35: =IF(休暇希望!U30="","",DATE($F$2,$I$2,休暇希望!U30)) ->  | BC35: =IF(休暇希望!V30="","",DATE($F$2,$I$2,休暇希望!V30)) ->  | BD35: =IF(休暇希望!W30="","",DATE($F$2,$I$2,休暇希望!W30)) ->  | BE35: =IF(休暇希望!X30="","",DATE($F$2,$I$2,休暇希望!X30)) ->  | BF35: =IF(休暇希望!Y30="","",DATE($F$2,$I$2,休暇希望!Y30)) ->  | BG35: =IF(休暇希望!Z30="","",DATE($F$2,$I$2,休暇希望!Z30)) ->  | BH35: =IF(休暇希望!AA30="","",DATE($F$2,$I$2,休暇希望!AA30)) ->  | BI35: =IF(休暇希望!AB30="","",DATE($F$2,$I$2,休暇希望!AB30)) ->  | BJ35: =IF(休暇希望!AC30="","",DATE($F$2,$I$2,休暇希望!AC30)) ->  | BK35: =IF(休暇希望!AD30="","",DATE($F$2,$I$2,休暇希望!AD30)) ->  | BL35: =IF(休暇希望!AE30="","",DATE($F$2,$I$2,休暇希望!AE30)) ->  | BM35: =IF(休暇希望!AF30="","",DATE($F$2,$I$2,休暇希望!AF30)) ->  | BN35: =IF(休暇希望!AG30="","",DATE($F$2,$I$2,休暇希望!AG30)) ->  | BO35: =IF(休暇希望!AH30="","",DATE($F$2,$I$2,休暇希望!AH30)) ->  | BP35: =IF(休暇希望!AI30="","",DATE($F$2,$I$2,休暇希望!AI30)) -> 
B36: E | C36: 4 | D36: 28 | E36: =NETWORKDAYS($H$3,$H$4,各種設定!$A$4:$A$22)-COUNTIF(F36:AJ36,">0") -> 1900-01-21 | AL36: =IF(休暇希望!E31="","",DATE($F$2,$I$2,休暇希望!E31)) ->  | AM36: =IF(休暇希望!F31="","",DATE($F$2,$I$2,休暇希望!F31)) ->  | AN36: =IF(休暇希望!G31="","",DATE($F$2,$I$2,休暇希望!G31)) ->  | AO36: =IF(休暇希望!H31="","",DATE($F$2,$I$2,休暇希望!H31)) ->  | AP36: =IF(休暇希望!I31="","",DATE($F$2,$I$2,休暇希望!I31)) ->  | AQ36: =IF(休暇希望!J31="","",DATE($F$2,$I$2,休暇希望!J31)) ->  | AR36: =IF(休暇希望!K31="","",DATE($F$2,$I$2,休暇希望!K31)) ->  | AS36: =IF(休暇希望!L31="","",DATE($F$2,$I$2,休暇希望!L31)) ->  | AT36: =IF(休暇希望!M31="","",DATE($F$2,$I$2,休暇希望!M31)) ->  | AU36: =IF(休暇希望!N31="","",DATE($F$2,$I$2,休暇希望!N31)) ->  | AV36: =IF(休暇希望!O31="","",DATE($F$2,$I$2,休暇希望!O31)) ->  | AW36: =IF(休暇希望!P31="","",DATE($F$2,$I$2,休暇希望!P31)) ->  | AX36: =IF(休暇希望!Q31="","",DATE($F$2,$I$2,休暇希望!Q31)) ->  | AY36: =IF(休暇希望!R31="","",DATE($F$2,$I$2,休暇希望!R31)) ->  | AZ36: =IF(休暇希望!S31="","",DATE($F$2,$I$2,休暇希望!S31)) ->  | BA36: =IF(休暇希望!T31="","",DATE($F$2,$I$2,休暇希望!T31)) ->  | BB36: =IF(休暇希望!U31="","",DATE($F$2,$I$2,休暇希望!U31)) ->  | BC36: =IF(休暇希望!V31="","",DATE($F$2,$I$2,休暇希望!V31)) ->  | BD36: =IF(休暇希望!W31="","",DATE($F$2,$I$2,休暇希望!W31)) ->  | BE36: =IF(休暇希望!X31="","",DATE($F$2,$I$2,休暇希望!X31)) ->  | BF36: =IF(休暇希望!Y31="","",DATE($F$2,$I$2,休暇希望!Y31)) ->  | BG36: =IF(休暇希望!Z31="","",DATE($F$2,$I$2,休暇希望!Z31)) ->  | BH36: =IF(休暇希望!AA31="","",DATE($F$2,$I$2,休暇希望!AA31)) ->  | BI36: =IF(休暇希望!AB31="","",DATE($F$2,$I$2,休暇希望!AB31)) ->  | BJ36: =IF(休暇希望!AC31="","",DATE($F$2,$I$2,休暇希望!AC31)) ->  | BK36: =IF(休暇希望!AD31="","",DATE($F$2,$I$2,休暇希望!AD31)) ->  | BL36: =IF(休暇希望!AE31="","",DATE($F$2,$I$2,休暇希望!AE31)) ->  | BM36: =IF(休暇希望!AF31="","",DATE($F$2,$I$2,休暇希望!AF31)) ->  | BN36: =IF(休暇希望!AG31="","",DATE($F$2,$I$2,休暇希望!AG31)) ->  | BO36: =IF(休暇希望!AH31="","",DATE($F$2,$I$2,休暇希望!AH31)) ->  | BP36: =IF(休暇希望!AI31="","",DATE($F$2,$I$2,休暇希望!AI31)) -> 
B37: E | C37: 4 | D37: 29 | E37: =NETWORKDAYS($H$3,$H$4,各種設定!$A$4:$A$22)-COUNTIF(F37:AJ37,">0") -> 1900-01-21 | AL37: =IF(休暇希望!E32="","",DATE($F$2,$I$2,休暇希望!E32)) ->  | AM37: =IF(休暇希望!F32="","",DATE($F$2,$I$2,休暇希望!F32)) ->  | AN37: =IF(休暇希望!G32="","",DATE($F$2,$I$2,休暇希望!G32)) ->  | AO37: =IF(休暇希望!H32="","",DATE($F$2,$I$2,休暇希望!H32)) ->  | AP37: =IF(休暇希望!I32="","",DATE($F$2,$I$2,休暇希望!I32)) ->  | AQ37: =IF(休暇希望!J32="","",DATE($F$2,$I$2,休暇希望!J32)) ->  | AR37: =IF(休暇希望!K32="","",DATE($F$2,$I$2,休暇希望!K32)) ->  | AS37: =IF(休暇希望!L32="","",DATE($F$2,$I$2,休暇希望!L32)) ->  | AT37: =IF(休暇希望!M32="","",DATE($F$2,$I$2,休暇希望!M32)) ->  | AU37: =IF(休暇希望!N32="","",DATE($F$2,$I$2,休暇希望!N32)) ->  | AV37: =IF(休暇希望!O32="","",DATE($F$2,$I$2,休暇希望!O32)) ->  | AW37: =IF(休暇希望!P32="","",DATE($F$2,$I$2,休暇希望!P32)) ->  | AX37: =IF(休暇希望!Q32="","",DATE($F$2,$I$2,休暇希望!Q32)) ->  | AY37: =IF(休暇希望!R32="","",DATE($F$2,$I$2,休暇希望!R32)) ->  | AZ37: =IF(休暇希望!S32="","",DATE($F$2,$I$2,休暇希望!S32)) ->  | BA37: =IF(休暇希望!T32="","",DATE($F$2,$I$2,休暇希望!T32)) ->  | BB37: =IF(休暇希望!U32="","",DATE($F$2,$I$2,休暇希望!U32)) ->  | BC37: =IF(休暇希望!V32="","",DATE($F$2,$I$2,休暇希望!V32)) ->  | BD37: =IF(休暇希望!W32="","",DATE($F$2,$I$2,休暇希望!W32)) ->  | BE37: =IF(休暇希望!X32="","",DATE($F$2,$I$2,休暇希望!X32)) ->  | BF37: =IF(休暇希望!Y32="","",DATE($F$2,$I$2,休暇希望!Y32)) ->  | BG37: =IF(休暇希望!Z32="","",DATE($F$2,$I$2,休暇希望!Z32)) ->  | BH37: =IF(休暇希望!AA32="","",DATE($F$2,$I$2,休暇希望!AA32)) ->  | BI37: =IF(休暇希望!AB32="","",DATE($F$2,$I$2,休暇希望!AB32)) ->  | BJ37: =IF(休暇希望!AC32="","",DATE($F$2,$I$2,休暇希望!AC32)) ->  | BK37: =IF(休暇希望!AD32="","",DATE($F$2,$I$2,休暇希望!AD32)) ->  | BL37: =IF(休暇希望!AE32="","",DATE($F$2,$I$2,休暇希望!AE32)) ->  | BM37: =IF(休暇希望!AF32="","",DATE($F$2,$I$2,休暇希望!AF32)) ->  | BN37: =IF(休暇希望!AG32="","",DATE($F$2,$I$2,休暇希望!AG32)) ->  | BO37: =IF(休暇希望!AH32="","",DATE($F$2,$I$2,休暇希望!AH32)) ->  | BP37: =IF(休暇希望!AI32="","",DATE($F$2,$I$2,休暇希望!AI32)) -> 
B38: E | C38: 4 | D38: 30 | E38: =NETWORKDAYS($H$3,$H$4,各種設定!$A$4:$A$22)-COUNTIF(F38:AJ38,">0") -> 1900-01-21 | AL38: =IF(休暇希望!E33="","",DATE($F$2,$I$2,休暇希望!E33)) ->  | AM38: =IF(休暇希望!F33="","",DATE($F$2,$I$2,休暇希望!F33)) ->  | AN38: =IF(休暇希望!G33="","",DATE($F$2,$I$2,休暇希望!G33)) ->  | AO38: =IF(休暇希望!H33="","",DATE($F$2,$I$2,休暇希望!H33)) ->  | AP38: =IF(休暇希望!I33="","",DATE($F$2,$I$2,休暇希望!I33)) ->  | AQ38: =IF(休暇希望!J33="","",DATE($F$2,$I$2,休暇希望!J33)) ->  | AR38: =IF(休暇希望!K33="","",DATE($F$2,$I$2,休暇希望!K33)) ->  | AS38: =IF(休暇希望!L33="","",DATE($F$2,$I$2,休暇希望!L33)) ->  | AT38: =IF(休暇希望!M33="","",DATE($F$2,$I$2,休暇希望!M33)) ->  | AU38: =IF(休暇希望!N33="","",DATE($F$2,$I$2,休暇希望!N33)) ->  | AV38: =IF(休暇希望!O33="","",DATE($F$2,$I$2,休暇希望!O33)) ->  | AW38: =IF(休暇希望!P33="","",DATE($F$2,$I$2,休暇希望!P33)) ->  | AX38: =IF(休暇希望!Q33="","",DATE($F$2,$I$2,休暇希望!Q33)) ->  | AY38: =IF(休暇希望!R33="","",DATE($F$2,$I$2,休暇希望!R33)) ->  | AZ38: =IF(休暇希望!S33="","",DATE($F$2,$I$2,休暇希望!S33)) ->  | BA38: =IF(休暇希望!T33="","",DATE($F$2,$I$2,休暇希望!T33)) ->  | BB38: =IF(休暇希望!U33="","",DATE($F$2,$I$2,休暇希望!U33)) ->  | BC38: =IF(休暇希望!V33="","",DATE($F$2,$I$2,休暇希望!V33)) ->  | BD38: =IF(休暇希望!W33="","",DATE($F$2,$I$2,休暇希望!W33)) ->  | BE38: =IF(休暇希望!X33="","",DATE($F$2,$I$2,休暇希望!X33)) ->  | BF38: =IF(休暇希望!Y33="","",DATE($F$2,$I$2,休暇希望!Y33)) ->  | BG38: =IF(休暇希望!Z33="","",DATE($F$2,$I$2,休暇希望!Z33)) ->  | BH38: =IF(休暇希望!AA33="","",DATE($F$2,$I$2,休暇希望!AA33)) ->  | BI38: =IF(休暇希望!AB33="","",DATE($F$2,$I$2,休暇希望!AB33)) ->  | BJ38: =IF(休暇希望!AC33="","",DATE($F$2,$I$2,休暇希望!AC33)) ->  | BK38: =IF(休暇希望!AD33="","",DATE($F$2,$I$2,休暇希望!AD33)) ->  | BL38: =IF(休暇希望!AE33="","",DATE($F$2,$I$2,休暇希望!AE33)) ->  | BM38: =IF(休暇希望!AF33="","",DATE($F$2,$I$2,休暇希望!AF33)) ->  | BN38: =IF(休暇希望!AG33="","",DATE($F$2,$I$2,休暇希望!AG33)) ->  | BO38: =IF(休暇希望!AH33="","",DATE($F$2,$I$2,休暇希望!AH33)) ->  | BP38: =IF(休暇希望!AI33="","",DATE($F$2,$I$2,休暇希望!AI33)) -> 
B39: E | C39: 4 | D39: 31 | E39: =NETWORKDAYS($H$3,$H$4,各種設定!$A$4:$A$22)-COUNTIF(F39:AJ39,">0") -> 1900-01-21 | AL39: =IF(休暇希望!E34="","",DATE($F$2,$I$2,休暇希望!E34)) ->  | AM39: =IF(休暇希望!F34="","",DATE($F$2,$I$2,休暇希望!F34)) ->  | AN39: =IF(休暇希望!G34="","",DATE($F$2,$I$2,休暇希望!G34)) ->  | AO39: =IF(休暇希望!H34="","",DATE($F$2,$I$2,休暇希望!H34)) ->  | AP39: =IF(休暇希望!I34="","",DATE($F$2,$I$2,休暇希望!I34)) ->  | AQ39: =IF(休暇希望!J34="","",DATE($F$2,$I$2,休暇希望!J34)) ->  | AR39: =IF(休暇希望!K34="","",DATE($F$2,$I$2,休暇希望!K34)) ->  | AS39: =IF(休暇希望!L34="","",DATE($F$2,$I$2,休暇希望!L34)) ->  | AT39: =IF(休暇希望!M34="","",DATE($F$2,$I$2,休暇希望!M34)) ->  | AU39: =IF(休暇希望!N34="","",DATE($F$2,$I$2,休暇希望!N34)) ->  | AV39: =IF(休暇希望!O34="","",DATE($F$2,$I$2,休暇希望!O34)) ->  | AW39: =IF(休暇希望!P34="","",DATE($F$2,$I$2,休暇希望!P34)) ->  | AX39: =IF(休暇希望!Q34="","",DATE($F$2,$I$2,休暇希望!Q34)) ->  | AY39: =IF(休暇希望!R34="","",DATE($F$2,$I$2,休暇希望!R34)) ->  | AZ39: =IF(休暇希望!S34="","",DATE($F$2,$I$2,休暇希望!S34)) ->  | BA39: =IF(休暇希望!T34="","",DATE($F$2,$I$2,休暇希望!T34)) ->  | BB39: =IF(休暇希望!U34="","",DATE($F$2,$I$2,休暇希望!U34)) ->  | BC39: =IF(休暇希望!V34="","",DATE($F$2,$I$2,休暇希望!V34)) ->  | BD39: =IF(休暇希望!W34="","",DATE($F$2,$I$2,休暇希望!W34)) ->  | BE39: =IF(休暇希望!X34="","",DATE($F$2,$I$2,休暇希望!X34)) ->  | BF39: =IF(休暇希望!Y34="","",DATE($F$2,$I$2,休暇希望!Y34)) ->  | BG39: =IF(休暇希望!Z34="","",DATE($F$2,$I$2,休暇希望!Z34)) ->  | BH39: =IF(休暇希望!AA34="","",DATE($F$2,$I$2,休暇希望!AA34)) ->  | BI39: =IF(休暇希望!AB34="","",DATE($F$2,$I$2,休暇希望!AB34)) ->  | BJ39: =IF(休暇希望!AC34="","",DATE($F$2,$I$2,休暇希望!AC34)) ->  | BK39: =IF(休暇希望!AD34="","",DATE($F$2,$I$2,休暇希望!AD34)) ->  | BL39: =IF(休暇希望!AE34="","",DATE($F$2,$I$2,休暇希望!AE34)) ->  | BM39: =IF(休暇希望!AF34="","",DATE($F$2,$I$2,休暇希望!AF34)) ->  | BN39: =IF(休暇希望!AG34="","",DATE($F$2,$I$2,休暇希望!AG34)) ->  | BO39: =IF(休暇希望!AH34="","",DATE($F$2,$I$2,休暇希望!AH34)) ->  | BP39: =IF(休暇希望!AI34="","",DATE($F$2,$I$2,休暇希望!AI34)) -> 
B40: E | C40: 4 | D40: 32 | E40: =NETWORKDAYS($H$3,$H$4,各種設定!$A$4:$A$22)-COUNTIF(F40:AJ40,">0") -> 1900-01-21 | AL40: =IF(休暇希望!E35="","",DATE($F$2,$I$2,休暇希望!E35)) ->  | AM40: =IF(休暇希望!F35="","",DATE($F$2,$I$2,休暇希望!F35)) ->  | AN40: =IF(休暇希望!G35="","",DATE($F$2,$I$2,休暇希望!G35)) ->  | AO40: =IF(休暇希望!H35="","",DATE($F$2,$I$2,休暇希望!H35)) ->  | AP40: =IF(休暇希望!I35="","",DATE($F$2,$I$2,休暇希望!I35)) ->  | AQ40: =IF(休暇希望!J35="","",DATE($F$2,$I$2,休暇希望!J35)) ->  | AR40: =IF(休暇希望!K35="","",DATE($F$2,$I$2,休暇希望!K35)) ->  | AS40: =IF(休暇希望!L35="","",DATE($F$2,$I$2,休暇希望!L35)) ->  | AT40: =IF(休暇希望!M35="","",DATE($F$2,$I$2,休暇希望!M35)) ->  | AU40: =IF(休暇希望!N35="","",DATE($F$2,$I$2,休暇希望!N35)) ->  | AV40: =IF(休暇希望!O35="","",DATE($F$2,$I$2,休暇希望!O35)) ->  | AW40: =IF(休暇希望!P35="","",DATE($F$2,$I$2,休暇希望!P35)) ->  | AX40: =IF(休暇希望!Q35="","",DATE($F$2,$I$2,休暇希望!Q35)) ->  | AY40: =IF(休暇希望!R35="","",DATE($F$2,$I$2,休暇希望!R35)) ->  | AZ40: =IF(休暇希望!S35="","",DATE($F$2,$I$2,休暇希望!S35)) ->  | BA40: =IF(休暇希望!T35="","",DATE($F$2,$I$2,休暇希望!T35)) ->  | BB40: =IF(休暇希望!U35="","",DATE($F$2,$I$2,休暇希望!U35)) ->  | BC40: =IF(休暇希望!V35="","",DATE($F$2,$I$2,休暇希望!V35)) ->  | BD40: =IF(休暇希望!W35="","",DATE($F$2,$I$2,休暇希望!W35)) ->  | BE40: =IF(休暇希望!X35="","",DATE($F$2,$I$2,休暇希望!X35)) ->  | BF40: =IF(休暇希望!Y35="","",DATE($F$2,$I$2,休暇希望!Y35)) ->  | BG40: =IF(休暇希望!Z35="","",DATE($F$2,$I$2,休暇希望!Z35)) ->  | BH40: =IF(休暇希望!AA35="","",DATE($F$2,$I$2,休暇希望!AA35)) ->  | BI40: =IF(休暇希望!AB35="","",DATE($F$2,$I$2,休暇希望!AB35)) ->  | BJ40: =IF(休暇希望!AC35="","",DATE($F$2,$I$2,休暇希望!AC35)) ->  | BK40: =IF(休暇希望!AD35="","",DATE($F$2,$I$2,休暇希望!AD35)) ->  | BL40: =IF(休暇希望!AE35="","",DATE($F$2,$I$2,休暇希望!AE35)) ->  | BM40: =IF(休暇希望!AF35="","",DATE($F$2,$I$2,休暇希望!AF35)) ->  | BN40: =IF(休暇希望!AG35="","",DATE($F$2,$I$2,休暇希望!AG35)) ->  | BO40: =IF(休暇希望!AH35="","",DATE($F$2,$I$2,休暇希望!AH35)) ->  | BP40: =IF(休暇希望!AI35="","",DATE($F$2,$I$2,休暇希望!AI35)) -> 
B41: E | C41: 4 | D41: 33 | E41: =NETWORKDAYS($H$3,$H$4,各種設定!$A$4:$A$22)-COUNTIF(F41:AJ41,">0") -> 1900-01-21 | AL41: =IF(休暇希望!E36="","",DATE($F$2,$I$2,休暇希望!E36)) ->  | AM41: =IF(休暇希望!F36="","",DATE($F$2,$I$2,休暇希望!F36)) ->  | AN41: =IF(休暇希望!G36="","",DATE($F$2,$I$2,休暇希望!G36)) ->  | AO41: =IF(休暇希望!H36="","",DATE($F$2,$I$2,休暇希望!H36)) ->  | AP41: =IF(休暇希望!I36="","",DATE($F$2,$I$2,休暇希望!I36)) ->  | AQ41: =IF(休暇希望!J36="","",DATE($F$2,$I$2,休暇希望!J36)) ->  | AR41: =IF(休暇希望!K36="","",DATE($F$2,$I$2,休暇希望!K36)) ->  | AS41: =IF(休暇希望!L36="","",DATE($F$2,$I$2,休暇希望!L36)) ->  | AT41: =IF(休暇希望!M36="","",DATE($F$2,$I$2,休暇希望!M36)) ->  | AU41: =IF(休暇希望!N36="","",DATE($F$2,$I$2,休暇希望!N36)) ->  | AV41: =IF(休暇希望!O36="","",DATE($F$2,$I$2,休暇希望!O36)) ->  | AW41: =IF(休暇希望!P36="","",DATE($F$2,$I$2,休暇希望!P36)) ->  | AX41: =IF(休暇希望!Q36="","",DATE($F$2,$I$2,休暇希望!Q36)) ->  | AY41: =IF(休暇希望!R36="","",DATE($F$2,$I$2,休暇希望!R36)) ->  | AZ41: =IF(休暇希望!S36="","",DATE($F$2,$I$2,休暇希望!S36)) ->  | BA41: =IF(休暇希望!T36="","",DATE($F$2,$I$2,休暇希望!T36)) ->  | BB41: =IF(休暇希望!U36="","",DATE($F$2,$I$2,休暇希望!U36)) ->  | BC41: =IF(休暇希望!V36="","",DATE($F$2,$I$2,休暇希望!V36)) ->  | BD41: =IF(休暇希望!W36="","",DATE($F$2,$I$2,休暇希望!W36)) ->  | BE41: =IF(休暇希望!X36="","",DATE($F$2,$I$2,休暇希望!X36)) ->  | BF41: =IF(休暇希望!Y36="","",DATE($F$2,$I$2,休暇希望!Y36)) ->  | BG41: =IF(休暇希望!Z36="","",DATE($F$2,$I$2,休暇希望!Z36)) ->  | BH41: =IF(休暇希望!AA36="","",DATE($F$2,$I$2,休暇希望!AA36)) ->  | BI41: =IF(休暇希望!AB36="","",DATE($F$2,$I$2,休暇希望!AB36)) ->  | BJ41: =IF(休暇希望!AC36="","",DATE($F$2,$I$2,休暇希望!AC36)) ->  | BK41: =IF(休暇希望!AD36="","",DATE($F$2,$I$2,休暇希望!AD36)) ->  | BL41: =IF(休暇希望!AE36="","",DATE($F$2,$I$2,休暇希望!AE36)) ->  | BM41: =IF(休暇希望!AF36="","",DATE($F$2,$I$2,休暇希望!AF36)) ->  | BN41: =IF(休暇希望!AG36="","",DATE($F$2,$I$2,休暇希望!AG36)) ->  | BO41: =IF(休暇希望!AH36="","",DATE($F$2,$I$2,休暇希望!AH36)) ->  | BP41: =IF(休暇希望!AI36="","",DATE($F$2,$I$2,休暇希望!AI36)) -> 
B42: E | C42: 4 | D42: 34 | E42: =NETWORKDAYS($H$3,$H$4,各種設定!$A$4:$A$22)-COUNTIF(F42:AJ42,">0") -> 1900-01-21 | AL42: =IF(休暇希望!E37="","",DATE($F$2,$I$2,休暇希望!E37)) ->  | AM42: =IF(休暇希望!F37="","",DATE($F$2,$I$2,休暇希望!F37)) ->  | AN42: =IF(休暇希望!G37="","",DATE($F$2,$I$2,休暇希望!G37)) ->  | AO42: =IF(休暇希望!H37="","",DATE($F$2,$I$2,休暇希望!H37)) ->  | AP42: =IF(休暇希望!I37="","",DATE($F$2,$I$2,休暇希望!I37)) ->  | AQ42: =IF(休暇希望!J37="","",DATE($F$2,$I$2,休暇希望!J37)) ->  | AR42: =IF(休暇希望!K37="","",DATE($F$2,$I$2,休暇希望!K37)) ->  | AS42: =IF(休暇希望!L37="","",DATE($F$2,$I$2,休暇希望!L37)) ->  | AT42: =IF(休暇希望!M37="","",DATE($F$2,$I$2,休暇希望!M37)) ->  | AU42: =IF(休暇希望!N37="","",DATE($F$2,$I$2,休暇希望!N37)) ->  | AV42: =IF(休暇希望!O37="","",DATE($F$2,$I$2,休暇希望!O37)) ->  | AW42: =IF(休暇希望!P37="","",DATE($F$2,$I$2,休暇希望!P37)) ->  | AX42: =IF(休暇希望!Q37="","",DATE($F$2,$I$2,休暇希望!Q37)) ->  | AY42: =IF(休暇希望!R37="","",DATE($F$2,$I$2,休暇希望!R37)) ->  | AZ42: =IF(休暇希望!S37="","",DATE($F$2,$I$2,休暇希望!S37)) ->  | BA42: =IF(休暇希望!T37="","",DATE($F$2,$I$2,休暇希望!T37)) ->  | BB42: =IF(休暇希望!U37="","",DATE($F$2,$I$2,休暇希望!U37)) ->  | BC42: =IF(休暇希望!V37="","",DATE($F$2,$I$2,休暇希望!V37)) ->  | BD42: =IF(休暇希望!W37="","",DATE($F$2,$I$2,休暇希望!W37)) ->  | BE42: =IF(休暇希望!X37="","",DATE($F$2,$I$2,休暇希望!X37)) ->  | BF42: =IF(休暇希望!Y37="","",DATE($F$2,$I$2,休暇希望!Y37)) ->  | BG42: =IF(休暇希望!Z37="","",DATE($F$2,$I$2,休暇希望!Z37)) ->  | BH42: =IF(休暇希望!AA37="","",DATE($F$2,$I$2,休暇希望!AA37)) ->  | BI42: =IF(休暇希望!AB37="","",DATE($F$2,$I$2,休暇希望!AB37)) ->  | BJ42: =IF(休暇希望!AC37="","",DATE($F$2,$I$2,休暇希望!AC37)) ->  | BK42: =IF(休暇希望!AD37="","",DATE($F$2,$I$2,休暇希望!AD37)) ->  | BL42: =IF(休暇希望!AE37="","",DATE($F$2,$I$2,休暇希望!AE37)) ->  | BM42: =IF(休暇希望!AF37="","",DATE($F$2,$I$2,休暇希望!AF37)) ->  | BN42: =IF(休暇希望!AG37="","",DATE($F$2,$I$2,休暇希望!AG37)) ->  | BO42: =IF(休暇希望!AH37="","",DATE($F$2,$I$2,休暇希望!AH37)) ->  | BP42: =IF(休暇希望!AI37="","",DATE($F$2,$I$2,休暇希望!AI37)) -> 
B43: E | C43: 4 | D43: 35 | E43: =NETWORKDAYS($H$3,$H$4,各種設定!$A$4:$A$22)-COUNTIF(F43:AJ43,">0") -> 1900-01-21 | AL43: =IF(休暇希望!E38="","",DATE($F$2,$I$2,休暇希望!E38)) ->  | AM43: =IF(休暇希望!F38="","",DATE($F$2,$I$2,休暇希望!F38)) ->  | AN43: =IF(休暇希望!G38="","",DATE($F$2,$I$2,休暇希望!G38)) ->  | AO43: =IF(休暇希望!H38="","",DATE($F$2,$I$2,休暇希望!H38)) ->  | AP43: =IF(休暇希望!I38="","",DATE($F$2,$I$2,休暇希望!I38)) ->  | AQ43: =IF(休暇希望!J38="","",DATE($F$2,$I$2,休暇希望!J38)) ->  | AR43: =IF(休暇希望!K38="","",DATE($F$2,$I$2,休暇希望!K38)) ->  | AS43: =IF(休暇希望!L38="","",DATE($F$2,$I$2,休暇希望!L38)) ->  | AT43: =IF(休暇希望!M38="","",DATE($F$2,$I$2,休暇希望!M38)) ->  | AU43: =IF(休暇希望!N38="","",DATE($F$2,$I$2,休暇希望!N38)) ->  | AV43: =IF(休暇希望!O38="","",DATE($F$2,$I$2,休暇希望!O38)) ->  | AW43: =IF(休暇希望!P38="","",DATE($F$2,$I$2,休暇希望!P38)) ->  | AX43: =IF(休暇希望!Q38="","",DATE($F$2,$I$2,休暇希望!Q38)) ->  | AY43: =IF(休暇希望!R38="","",DATE($F$2,$I$2,休暇希望!R38)) ->  | AZ43: =IF(休暇希望!S38="","",DATE($F$2,$I$2,休暇希望!S38)) ->  | BA43: =IF(休暇希望!T38="","",DATE($F$2,$I$2,休暇希望!T38)) ->  | BB43: =IF(休暇希望!U38="","",DATE($F$2,$I$2,休暇希望!U38)) ->  | BC43: =IF(休暇希望!V38="","",DATE($F$2,$I$2,休暇希望!V38)) ->  | BD43: =IF(休暇希望!W38="","",DATE($F$2,$I$2,休暇希望!W38)) ->  | BE43: =IF(休暇希望!X38="","",DATE($F$2,$I$2,休暇希望!X38)) ->  | BF43: =IF(休暇希望!Y38="","",DATE($F$2,$I$2,休暇希望!Y38)) ->  | BG43: =IF(休暇希望!Z38="","",DATE($F$2,$I$2,休暇希望!Z38)) ->  | BH43: =IF(休暇希望!AA38="","",DATE($F$2,$I$2,休暇希望!AA38)) ->  | BI43: =IF(休暇希望!AB38="","",DATE($F$2,$I$2,休暇希望!AB38)) ->  | BJ43: =IF(休暇希望!AC38="","",DATE($F$2,$I$2,休暇希望!AC38)) ->  | BK43: =IF(休暇希望!AD38="","",DATE($F$2,$I$2,休暇希望!AD38)) ->  | BL43: =IF(休暇希望!AE38="","",DATE($F$2,$I$2,休暇希望!AE38)) ->  | BM43: =IF(休暇希望!AF38="","",DATE($F$2,$I$2,休暇希望!AF38)) ->  | BN43: =IF(休暇希望!AG38="","",DATE($F$2,$I$2,休暇希望!AG38)) ->  | BO43: =IF(休暇希望!AH38="","",DATE($F$2,$I$2,休暇希望!AH38)) ->  | BP43: =IF(休暇希望!AI38="","",DATE($F$2,$I$2,休暇希望!AI38)) -> 
B44: E | C44: 4 | D44: 36 | E44: =NETWORKDAYS($H$3,$H$4,各種設定!$A$4:$A$22)-COUNTIF(F44:AJ44,">0") -> 1900-01-21 | AL44: =IF(休暇希望!E39="","",DATE($F$2,$I$2,休暇希望!E39)) ->  | AM44: =IF(休暇希望!F39="","",DATE($F$2,$I$2,休暇希望!F39)) ->  | AN44: =IF(休暇希望!G39="","",DATE($F$2,$I$2,休暇希望!G39)) ->  | AO44: =IF(休暇希望!H39="","",DATE($F$2,$I$2,休暇希望!H39)) ->  | AP44: =IF(休暇希望!I39="","",DATE($F$2,$I$2,休暇希望!I39)) ->  | AQ44: =IF(休暇希望!J39="","",DATE($F$2,$I$2,休暇希望!J39)) ->  | AR44: =IF(休暇希望!K39="","",DATE($F$2,$I$2,休暇希望!K39)) ->  | AS44: =IF(休暇希望!L39="","",DATE($F$2,$I$2,休暇希望!L39)) ->  | AT44: =IF(休暇希望!M39="","",DATE($F$2,$I$2,休暇希望!M39)) ->  | AU44: =IF(休暇希望!N39="","",DATE($F$2,$I$2,休暇希望!N39)) ->  | AV44: =IF(休暇希望!O39="","",DATE($F$2,$I$2,休暇希望!O39)) ->  | AW44: =IF(休暇希望!P39="","",DATE($F$2,$I$2,休暇希望!P39)) ->  | AX44: =IF(休暇希望!Q39="","",DATE($F$2,$I$2,休暇希望!Q39)) ->  | AY44: =IF(休暇希望!R39="","",DATE($F$2,$I$2,休暇希望!R39)) ->  | AZ44: =IF(休暇希望!S39="","",DATE($F$2,$I$2,休暇希望!S39)) ->  | BA44: =IF(休暇希望!T39="","",DATE($F$2,$I$2,休暇希望!T39)) ->  | BB44: =IF(休暇希望!U39="","",DATE($F$2,$I$2,休暇希望!U39)) ->  | BC44: =IF(休暇希望!V39="","",DATE($F$2,$I$2,休暇希望!V39)) ->  | BD44: =IF(休暇希望!W39="","",DATE($F$2,$I$2,休暇希望!W39)) ->  | BE44: =IF(休暇希望!X39="","",DATE($F$2,$I$2,休暇希望!X39)) ->  | BF44: =IF(休暇希望!Y39="","",DATE($F$2,$I$2,休暇希望!Y39)) ->  | BG44: =IF(休暇希望!Z39="","",DATE($F$2,$I$2,休暇希望!Z39)) ->  | BH44: =IF(休暇希望!AA39="","",DATE($F$2,$I$2,休暇希望!AA39)) ->  | BI44: =IF(休暇希望!AB39="","",DATE($F$2,$I$2,休暇希望!AB39)) ->  | BJ44: =IF(休暇希望!AC39="","",DATE($F$2,$I$2,休暇希望!AC39)) ->  | BK44: =IF(休暇希望!AD39="","",DATE($F$2,$I$2,休暇希望!AD39)) ->  | BL44: =IF(休暇希望!AE39="","",DATE($F$2,$I$2,休暇希望!AE39)) ->  | BM44: =IF(休暇希望!AF39="","",DATE($F$2,$I$2,休暇希望!AF39)) ->  | BN44: =IF(休暇希望!AG39="","",DATE($F$2,$I$2,休暇希望!AG39)) ->  | BO44: =IF(休暇希望!AH39="","",DATE($F$2,$I$2,休暇希望!AH39)) ->  | BP44: =IF(休暇希望!AI39="","",DATE($F$2,$I$2,休暇希望!AI39)) -> 
B45: E | C45: 4 | D45: 37 | E45: =NETWORKDAYS($H$3,$H$4,各種設定!$A$4:$A$22)-COUNTIF(F45:AJ45,">0") -> 1900-01-21 | AL45: =IF(休暇希望!E40="","",DATE($F$2,$I$2,休暇希望!E40)) ->  | AM45: =IF(休暇希望!F40="","",DATE($F$2,$I$2,休暇希望!F40)) ->  | AN45: =IF(休暇希望!G40="","",DATE($F$2,$I$2,休暇希望!G40)) ->  | AO45: =IF(休暇希望!H40="","",DATE($F$2,$I$2,休暇希望!H40)) ->  | AP45: =IF(休暇希望!I40="","",DATE($F$2,$I$2,休暇希望!I40)) ->  | AQ45: =IF(休暇希望!J40="","",DATE($F$2,$I$2,休暇希望!J40)) ->  | AR45: =IF(休暇希望!K40="","",DATE($F$2,$I$2,休暇希望!K40)) ->  | AS45: =IF(休暇希望!L40="","",DATE($F$2,$I$2,休暇希望!L40)) ->  | AT45: =IF(休暇希望!M40="","",DATE($F$2,$I$2,休暇希望!M40)) ->  | AU45: =IF(休暇希望!N40="","",DATE($F$2,$I$2,休暇希望!N40)) ->  | AV45: =IF(休暇希望!O40="","",DATE($F$2,$I$2,休暇希望!O40)) ->  | AW45: =IF(休暇希望!P40="","",DATE($F$2,$I$2,休暇希望!P40)) ->  | AX45: =IF(休暇希望!Q40="","",DATE($F$2,$I$2,休暇希望!Q40)) ->  | AY45: =IF(休暇希望!R40="","",DATE($F$2,$I$2,休暇希望!R40)) ->  | AZ45: =IF(休暇希望!S40="","",DATE($F$2,$I$2,休暇希望!S40)) ->  | BA45: =IF(休暇希望!T40="","",DATE($F$2,$I$2,休暇希望!T40)) ->  | BB45: =IF(休暇希望!U40="","",DATE($F$2,$I$2,休暇希望!U40)) ->  | BC45: =IF(休暇希望!V40="","",DATE($F$2,$I$2,休暇希望!V40)) ->  | BD45: =IF(休暇希望!W40="","",DATE($F$2,$I$2,休暇希望!W40)) ->  | BE45: =IF(休暇希望!X40="","",DATE($F$2,$I$2,休暇希望!X40)) ->  | BF45: =IF(休暇希望!Y40="","",DATE($F$2,$I$2,休暇希望!Y40)) ->  | BG45: =IF(休暇希望!Z40="","",DATE($F$2,$I$2,休暇希望!Z40)) ->  | BH45: =IF(休暇希望!AA40="","",DATE($F$2,$I$2,休暇希望!AA40)) ->  | BI45: =IF(休暇希望!AB40="","",DATE($F$2,$I$2,休暇希望!AB40)) ->  | BJ45: =IF(休暇希望!AC40="","",DATE($F$2,$I$2,休暇希望!AC40)) ->  | BK45: =IF(休暇希望!AD40="","",DATE($F$2,$I$2,休暇希望!AD40)) ->  | BL45: =IF(休暇希望!AE40="","",DATE($F$2,$I$2,休暇希望!AE40)) ->  | BM45: =IF(休暇希望!AF40="","",DATE($F$2,$I$2,休暇希望!AF40)) ->  | BN45: =IF(休暇希望!AG40="","",DATE($F$2,$I$2,休暇希望!AG40)) ->  | BO45: =IF(休暇希望!AH40="","",DATE($F$2,$I$2,休暇希望!AH40)) ->  | BP45: =IF(休暇希望!AI40="","",DATE($F$2,$I$2,休暇希望!AI40)) -> 
B46: E | C46: 4 | D46: 38 | E46: =NETWORKDAYS($H$3,$H$4,各種設定!$A$4:$A$22)-COUNTIF(F46:AJ46,">0") -> 1900-01-21 | AL46: =IF(休暇希望!E41="","",DATE($F$2,$I$2,休暇希望!E41)) ->  | AM46: =IF(休暇希望!F41="","",DATE($F$2,$I$2,休暇希望!F41)) ->  | AN46: =IF(休暇希望!G41="","",DATE($F$2,$I$2,休暇希望!G41)) ->  | AO46: =IF(休暇希望!H41="","",DATE($F$2,$I$2,休暇希望!H41)) ->  | AP46: =IF(休暇希望!I41="","",DATE($F$2,$I$2,休暇希望!I41)) ->  | AQ46: =IF(休暇希望!J41="","",DATE($F$2,$I$2,休暇希望!J41)) ->  | AR46: =IF(休暇希望!K41="","",DATE($F$2,$I$2,休暇希望!K41)) ->  | AS46: =IF(休暇希望!L41="","",DATE($F$2,$I$2,休暇希望!L41)) ->  | AT46: =IF(休暇希望!M41="","",DATE($F$2,$I$2,休暇希望!M41)) ->  | AU46: =IF(休暇希望!N41="","",DATE($F$2,$I$2,休暇希望!N41)) ->  | AV46: =IF(休暇希望!O41="","",DATE($F$2,$I$2,休暇希望!O41)) ->  | AW46: =IF(休暇希望!P41="","",DATE($F$2,$I$2,休暇希望!P41)) ->  | AX46: =IF(休暇希望!Q41="","",DATE($F$2,$I$2,休暇希望!Q41)) ->  | AY46: =IF(休暇希望!R41="","",DATE($F$2,$I$2,休暇希望!R41)) ->  | AZ46: =IF(休暇希望!S41="","",DATE($F$2,$I$2,休暇希望!S41)) ->  | BA46: =IF(休暇希望!T41="","",DATE($F$2,$I$2,休暇希望!T41)) ->  | BB46: =IF(休暇希望!U41="","",DATE($F$2,$I$2,休暇希望!U41)) ->  | BC46: =IF(休暇希望!V41="","",DATE($F$2,$I$2,休暇希望!V41)) ->  | BD46: =IF(休暇希望!W41="","",DATE($F$2,$I$2,休暇希望!W41)) ->  | BE46: =IF(休暇希望!X41="","",DATE($F$2,$I$2,休暇希望!X41)) ->  | BF46: =IF(休暇希望!Y41="","",DATE($F$2,$I$2,休暇希望!Y41)) ->  | BG46: =IF(休暇希望!Z41="","",DATE($F$2,$I$2,休暇希望!Z41)) ->  | BH46: =IF(休暇希望!AA41="","",DATE($F$2,$I$2,休暇希望!AA41)) ->  | BI46: =IF(休暇希望!AB41="","",DATE($F$2,$I$2,休暇希望!AB41)) ->  | BJ46: =IF(休暇希望!AC41="","",DATE($F$2,$I$2,休暇希望!AC41)) ->  | BK46: =IF(休暇希望!AD41="","",DATE($F$2,$I$2,休暇希望!AD41)) ->  | BL46: =IF(休暇希望!AE41="","",DATE($F$2,$I$2,休暇希望!AE41)) ->  | BM46: =IF(休暇希望!AF41="","",DATE($F$2,$I$2,休暇希望!AF41)) ->  | BN46: =IF(休暇希望!AG41="","",DATE($F$2,$I$2,休暇希望!AG41)) ->  | BO46: =IF(休暇希望!AH41="","",DATE($F$2,$I$2,休暇希望!AH41)) ->  | BP46: =IF(休暇希望!AI41="","",DATE($F$2,$I$2,休暇希望!AI41)) -> 
B47: E | C47: 4 | D47: 39 | E47: =NETWORKDAYS($H$3,$H$4,各種設定!$A$4:$A$22)-COUNTIF(F47:AJ47,">0") -> 1900-01-21 | AL47: =IF(休暇希望!E42="","",DATE($F$2,$I$2,休暇希望!E42)) ->  | AM47: =IF(休暇希望!F42="","",DATE($F$2,$I$2,休暇希望!F42)) ->  | AN47: =IF(休暇希望!G42="","",DATE($F$2,$I$2,休暇希望!G42)) ->  | AO47: =IF(休暇希望!H42="","",DATE($F$2,$I$2,休暇希望!H42)) ->  | AP47: =IF(休暇希望!I42="","",DATE($F$2,$I$2,休暇希望!I42)) ->  | AQ47: =IF(休暇希望!J42="","",DATE($F$2,$I$2,休暇希望!J42)) ->  | AR47: =IF(休暇希望!K42="","",DATE($F$2,$I$2,休暇希望!K42)) ->  | AS47: =IF(休暇希望!L42="","",DATE($F$2,$I$2,休暇希望!L42)) ->  | AT47: =IF(休暇希望!M42="","",DATE($F$2,$I$2,休暇希望!M42)) ->  | AU47: =IF(休暇希望!N42="","",DATE($F$2,$I$2,休暇希望!N42)) ->  | AV47: =IF(休暇希望!O42="","",DATE($F$2,$I$2,休暇希望!O42)) ->  | AW47: =IF(休暇希望!P42="","",DATE($F$2,$I$2,休暇希望!P42)) ->  | AX47: =IF(休暇希望!Q42="","",DATE($F$2,$I$2,休暇希望!Q42)) ->  | AY47: =IF(休暇希望!R42="","",DATE($F$2,$I$2,休暇希望!R42)) ->  | AZ47: =IF(休暇希望!S42="","",DATE($F$2,$I$2,休暇希望!S42)) ->  | BA47: =IF(休暇希望!T42="","",DATE($F$2,$I$2,休暇希望!T42)) ->  | BB47: =IF(休暇希望!U42="","",DATE($F$2,$I$2,休暇希望!U42)) ->  | BC47: =IF(休暇希望!V42="","",DATE($F$2,$I$2,休暇希望!V42)) ->  | BD47: =IF(休暇希望!W42="","",DATE($F$2,$I$2,休暇希望!W42)) ->  | BE47: =IF(休暇希望!X42="","",DATE($F$2,$I$2,休暇希望!X42)) ->  | BF47: =IF(休暇希望!Y42="","",DATE($F$2,$I$2,休暇希望!Y42)) ->  | BG47: =IF(休暇希望!Z42="","",DATE($F$2,$I$2,休暇希望!Z42)) ->  | BH47: =IF(休暇希望!AA42="","",DATE($F$2,$I$2,休暇希望!AA42)) ->  | BI47: =IF(休暇希望!AB42="","",DATE($F$2,$I$2,休暇希望!AB42)) ->  | BJ47: =IF(休暇希望!AC42="","",DATE($F$2,$I$2,休暇希望!AC42)) ->  | BK47: =IF(休暇希望!AD42="","",DATE($F$2,$I$2,休暇希望!AD42)) ->  | BL47: =IF(休暇希望!AE42="","",DATE($F$2,$I$2,休暇希望!AE42)) ->  | BM47: =IF(休暇希望!AF42="","",DATE($F$2,$I$2,休暇希望!AF42)) ->  | BN47: =IF(休暇希望!AG42="","",DATE($F$2,$I$2,休暇希望!AG42)) ->  | BO47: =IF(休暇希望!AH42="","",DATE($F$2,$I$2,休暇希望!AH42)) ->  | BP47: =IF(休暇希望!AI42="","",DATE($F$2,$I$2,休暇希望!AI42)) -> 
B48: E | C48: 4 | D48: 40 | E48: =NETWORKDAYS($H$3,$H$4,各種設定!$A$4:$A$22)-COUNTIF(F48:AJ48,">0") -> 1900-01-21 | AL48: =IF(休暇希望!E43="","",DATE($F$2,$I$2,休暇希望!E43)) ->  | AM48: =IF(休暇希望!F43="","",DATE($F$2,$I$2,休暇希望!F43)) ->  | AN48: =IF(休暇希望!G43="","",DATE($F$2,$I$2,休暇希望!G43)) ->  | AO48: =IF(休暇希望!H43="","",DATE($F$2,$I$2,休暇希望!H43)) ->  | AP48: =IF(休暇希望!I43="","",DATE($F$2,$I$2,休暇希望!I43)) ->  | AQ48: =IF(休暇希望!J43="","",DATE($F$2,$I$2,休暇希望!J43)) ->  | AR48: =IF(休暇希望!K43="","",DATE($F$2,$I$2,休暇希望!K43)) ->  | AS48: =IF(休暇希望!L43="","",DATE($F$2,$I$2,休暇希望!L43)) ->  | AT48: =IF(休暇希望!M43="","",DATE($F$2,$I$2,休暇希望!M43)) ->  | AU48: =IF(休暇希望!N43="","",DATE($F$2,$I$2,休暇希望!N43)) ->  | AV48: =IF(休暇希望!O43="","",DATE($F$2,$I$2,休暇希望!O43)) ->  | AW48: =IF(休暇希望!P43="","",DATE($F$2,$I$2,休暇希望!P43)) ->  | AX48: =IF(休暇希望!Q43="","",DATE($F$2,$I$2,休暇希望!Q43)) ->  | AY48: =IF(休暇希望!R43="","",DATE($F$2,$I$2,休暇希望!R43)) ->  | AZ48: =IF(休暇希望!S43="","",DATE($F$2,$I$2,休暇希望!S43)) ->  | BA48: =IF(休暇希望!T43="","",DATE($F$2,$I$2,休暇希望!T43)) ->  | BB48: =IF(休暇希望!U43="","",DATE($F$2,$I$2,休暇希望!U43)) ->  | BC48: =IF(休暇希望!V43="","",DATE($F$2,$I$2,休暇希望!V43)) ->  | BD48: =IF(休暇希望!W43="","",DATE($F$2,$I$2,休暇希望!W43)) ->  | BE48: =IF(休暇希望!X43="","",DATE($F$2,$I$2,休暇希望!X43)) ->  | BF48: =IF(休暇希望!Y43="","",DATE($F$2,$I$2,休暇希望!Y43)) ->  | BG48: =IF(休暇希望!Z43="","",DATE($F$2,$I$2,休暇希望!Z43)) ->  | BH48: =IF(休暇希望!AA43="","",DATE($F$2,$I$2,休暇希望!AA43)) ->  | BI48: =IF(休暇希望!AB43="","",DATE($F$2,$I$2,休暇希望!AB43)) ->  | BJ48: =IF(休暇希望!AC43="","",DATE($F$2,$I$2,休暇希望!AC43)) ->  | BK48: =IF(休暇希望!AD43="","",DATE($F$2,$I$2,休暇希望!AD43)) ->  | BL48: =IF(休暇希望!AE43="","",DATE($F$2,$I$2,休暇希望!AE43)) ->  | BM48: =IF(休暇希望!AF43="","",DATE($F$2,$I$2,休暇希望!AF43)) ->  | BN48: =IF(休暇希望!AG43="","",DATE($F$2,$I$2,休暇希望!AG43)) ->  | BO48: =IF(休暇希望!AH43="","",DATE($F$2,$I$2,休暇希望!AH43)) ->  | BP48: =IF(休暇希望!AI43="","",DATE($F$2,$I$2,休暇希望!AI43)) -> 
B49: E | C49: 4 | D49: 41 | E49: =NETWORKDAYS($H$3,$H$4,各種設定!$A$4:$A$22)-COUNTIF(F49:AJ49,">0") -> 1900-01-21 | AL49: =IF(休暇希望!E44="","",DATE($F$2,$I$2,休暇希望!E44)) ->  | AM49: =IF(休暇希望!F44="","",DATE($F$2,$I$2,休暇希望!F44)) ->  | AN49: =IF(休暇希望!G44="","",DATE($F$2,$I$2,休暇希望!G44)) ->  | AO49: =IF(休暇希望!H44="","",DATE($F$2,$I$2,休暇希望!H44)) ->  | AP49: =IF(休暇希望!I44="","",DATE($F$2,$I$2,休暇希望!I44)) ->  | AQ49: =IF(休暇希望!J44="","",DATE($F$2,$I$2,休暇希望!J44)) ->  | AR49: =IF(休暇希望!K44="","",DATE($F$2,$I$2,休暇希望!K44)) ->  | AS49: =IF(休暇希望!L44="","",DATE($F$2,$I$2,休暇希望!L44)) ->  | AT49: =IF(休暇希望!M44="","",DATE($F$2,$I$2,休暇希望!M44)) ->  | AU49: =IF(休暇希望!N44="","",DATE($F$2,$I$2,休暇希望!N44)) ->  | AV49: =IF(休暇希望!O44="","",DATE($F$2,$I$2,休暇希望!O44)) ->  | AW49: =IF(休暇希望!P44="","",DATE($F$2,$I$2,休暇希望!P44)) ->  | AX49: =IF(休暇希望!Q44="","",DATE($F$2,$I$2,休暇希望!Q44)) ->  | AY49: =IF(休暇希望!R44="","",DATE($F$2,$I$2,休暇希望!R44)) ->  | AZ49: =IF(休暇希望!S44="","",DATE($F$2,$I$2,休暇希望!S44)) ->  | BA49: =IF(休暇希望!T44="","",DATE($F$2,$I$2,休暇希望!T44)) ->  | BB49: =IF(休暇希望!U44="","",DATE($F$2,$I$2,休暇希望!U44)) ->  | BC49: =IF(休暇希望!V44="","",DATE($F$2,$I$2,休暇希望!V44)) ->  | BD49: =IF(休暇希望!W44="","",DATE($F$2,$I$2,休暇希望!W44)) ->  | BE49: =IF(休暇希望!X44="","",DATE($F$2,$I$2,休暇希望!X44)) ->  | BF49: =IF(休暇希望!Y44="","",DATE($F$2,$I$2,休暇希望!Y44)) ->  | BG49: =IF(休暇希望!Z44="","",DATE($F$2,$I$2,休暇希望!Z44)) ->  | BH49: =IF(休暇希望!AA44="","",DATE($F$2,$I$2,休暇希望!AA44)) ->  | BI49: =IF(休暇希望!AB44="","",DATE($F$2,$I$2,休暇希望!AB44)) ->  | BJ49: =IF(休暇希望!AC44="","",DATE($F$2,$I$2,休暇希望!AC44)) ->  | BK49: =IF(休暇希望!AD44="","",DATE($F$2,$I$2,休暇希望!AD44)) ->  | BL49: =IF(休暇希望!AE44="","",DATE($F$2,$I$2,休暇希望!AE44)) ->  | BM49: =IF(休暇希望!AF44="","",DATE($F$2,$I$2,休暇希望!AF44)) ->  | BN49: =IF(休暇希望!AG44="","",DATE($F$2,$I$2,休暇希望!AG44)) ->  | BO49: =IF(休暇希望!AH44="","",DATE($F$2,$I$2,休暇希望!AH44)) ->  | BP49: =IF(休暇希望!AI44="","",DATE($F$2,$I$2,休暇希望!AI44)) -> 
B50: E | C50: 4 | D50: 42 | E50: =NETWORKDAYS($H$3,$H$4,各種設定!$A$4:$A$22)-COUNTIF(F50:AJ50,">0") -> 1900-01-21 | AB50: =IF(AB$7="","",IF(COUNTIF($AL50:$BP50,AB$7)>0,$C50,"")) ->  | AL50: =IF(休暇希望!E45="","",DATE($F$2,$I$2,休暇希望!E45)) ->  | AM50: =IF(休暇希望!F45="","",DATE($F$2,$I$2,休暇希望!F45)) ->  | AN50: =IF(休暇希望!G45="","",DATE($F$2,$I$2,休暇希望!G45)) ->  | AO50: =IF(休暇希望!H45="","",DATE($F$2,$I$2,休暇希望!H45)) ->  | AP50: =IF(休暇希望!I45="","",DATE($F$2,$I$2,休暇希望!I45)) ->  | AQ50: =IF(休暇希望!J45="","",DATE($F$2,$I$2,休暇希望!J45)) ->  | AR50: =IF(休暇希望!K45="","",DATE($F$2,$I$2,休暇希望!K45)) ->  | AS50: =IF(休暇希望!L45="","",DATE($F$2,$I$2,休暇希望!L45)) ->  | AT50: =IF(休暇希望!M45="","",DATE($F$2,$I$2,休暇希望!M45)) ->  | AU50: =IF(休暇希望!N45="","",DATE($F$2,$I$2,休暇希望!N45)) ->  | AV50: =IF(休暇希望!O45="","",DATE($F$2,$I$2,休暇希望!O45)) ->  | AW50: =IF(休暇希望!P45="","",DATE($F$2,$I$2,休暇希望!P45)) ->  | AX50: =IF(休暇希望!Q45="","",DATE($F$2,$I$2,休暇希望!Q45)) ->  | AY50: =IF(休暇希望!R45="","",DATE($F$2,$I$2,休暇希望!R45)) ->  | AZ50: =IF(休暇希望!S45="","",DATE($F$2,$I$2,休暇希望!S45)) ->  | BA50: =IF(休暇希望!T45="","",DATE($F$2,$I$2,休暇希望!T45)) ->  | BB50: =IF(休暇希望!U45="","",DATE($F$2,$I$2,休暇希望!U45)) ->  | BC50: =IF(休暇希望!V45="","",DATE($F$2,$I$2,休暇希望!V45)) ->  | BD50: =IF(休暇希望!W45="","",DATE($F$2,$I$2,休暇希望!W45)) ->  | BE50: =IF(休暇希望!X45="","",DATE($F$2,$I$2,休暇希望!X45)) ->  | BF50: =IF(休暇希望!Y45="","",DATE($F$2,$I$2,休暇希望!Y45)) ->  | BG50: =IF(休暇希望!Z45="","",DATE($F$2,$I$2,休暇希望!Z45)) ->  | BH50: =IF(休暇希望!AA45="","",DATE($F$2,$I$2,休暇希望!AA45)) ->  | BI50: =IF(休暇希望!AB45="","",DATE($F$2,$I$2,休暇希望!AB45)) ->  | BJ50: =IF(休暇希望!AC45="","",DATE($F$2,$I$2,休暇希望!AC45)) ->  | BK50: =IF(休暇希望!AD45="","",DATE($F$2,$I$2,休暇希望!AD45)) ->  | BL50: =IF(休暇希望!AE45="","",DATE($F$2,$I$2,休暇希望!AE45)) ->  | BM50: =IF(休暇希望!AF45="","",DATE($F$2,$I$2,休暇希望!AF45)) ->  | BN50: =IF(休暇希望!AG45="","",DATE($F$2,$I$2,休暇希望!AG45)) ->  | BO50: =IF(休暇希望!AH45="","",DATE($F$2,$I$2,休暇希望!AH45)) ->  | BP50: =IF(休暇希望!AI45="","",DATE($F$2,$I$2,休暇希望!AI45)) -> 
B51: E | C51: 4 | D51: 43 | E51: =NETWORKDAYS($H$3,$H$4,各種設定!$A$4:$A$22)-COUNTIF(F51:AJ51,">0") -> 1900-01-21 | AL51: =IF(休暇希望!E46="","",DATE($F$2,$I$2,休暇希望!E46)) ->  | AM51: =IF(休暇希望!F46="","",DATE($F$2,$I$2,休暇希望!F46)) ->  | AN51: =IF(休暇希望!G46="","",DATE($F$2,$I$2,休暇希望!G46)) ->  | AO51: =IF(休暇希望!H46="","",DATE($F$2,$I$2,休暇希望!H46)) ->  | AP51: =IF(休暇希望!I46="","",DATE($F$2,$I$2,休暇希望!I46)) ->  | AQ51: =IF(休暇希望!J46="","",DATE($F$2,$I$2,休暇希望!J46)) ->  | AR51: =IF(休暇希望!K46="","",DATE($F$2,$I$2,休暇希望!K46)) ->  | AS51: =IF(休暇希望!L46="","",DATE($F$2,$I$2,休暇希望!L46)) ->  | AT51: =IF(休暇希望!M46="","",DATE($F$2,$I$2,休暇希望!M46)) ->  | AU51: =IF(休暇希望!N46="","",DATE($F$2,$I$2,休暇希望!N46)) ->  | AV51: =IF(休暇希望!O46="","",DATE($F$2,$I$2,休暇希望!O46)) ->  | AW51: =IF(休暇希望!P46="","",DATE($F$2,$I$2,休暇希望!P46)) ->  | AX51: =IF(休暇希望!Q46="","",DATE($F$2,$I$2,休暇希望!Q46)) ->  | AY51: =IF(休暇希望!R46="","",DATE($F$2,$I$2,休暇希望!R46)) ->  | AZ51: =IF(休暇希望!S46="","",DATE($F$2,$I$2,休暇希望!S46)) ->  | BA51: =IF(休暇希望!T46="","",DATE($F$2,$I$2,休暇希望!T46)) ->  | BB51: =IF(休暇希望!U46="","",DATE($F$2,$I$2,休暇希望!U46)) ->  | BC51: =IF(休暇希望!V46="","",DATE($F$2,$I$2,休暇希望!V46)) ->  | BD51: =IF(休暇希望!W46="","",DATE($F$2,$I$2,休暇希望!W46)) ->  | BE51: =IF(休暇希望!X46="","",DATE($F$2,$I$2,休暇希望!X46)) ->  | BF51: =IF(休暇希望!Y46="","",DATE($F$2,$I$2,休暇希望!Y46)) ->  | BG51: =IF(休暇希望!Z46="","",DATE($F$2,$I$2,休暇希望!Z46)) ->  | BH51: =IF(休暇希望!AA46="","",DATE($F$2,$I$2,休暇希望!AA46)) ->  | BI51: =IF(休暇希望!AB46="","",DATE($F$2,$I$2,休暇希望!AB46)) ->  | BJ51: =IF(休暇希望!AC46="","",DATE($F$2,$I$2,休暇希望!AC46)) ->  | BK51: =IF(休暇希望!AD46="","",DATE($F$2,$I$2,休暇希望!AD46)) ->  | BL51: =IF(休暇希望!AE46="","",DATE($F$2,$I$2,休暇希望!AE46)) ->  | BM51: =IF(休暇希望!AF46="","",DATE($F$2,$I$2,休暇希望!AF46)) ->  | BN51: =IF(休暇希望!AG46="","",DATE($F$2,$I$2,休暇希望!AG46)) ->  | BO51: =IF(休暇希望!AH46="","",DATE($F$2,$I$2,休暇希望!AH46)) ->  | BP51: =IF(休暇希望!AI46="","",DATE($F$2,$I$2,休暇希望!AI46)) -> 
B52: E | C52: 4 | D52: 44 | E52: =NETWORKDAYS($H$3,$H$4,各種設定!$A$4:$A$22)-COUNTIF(F52:AJ52,">0") -> 1900-01-21 | K52: =IF(K$7="","",IF(COUNTIF($AL52:$BP52,K$7)>0,$C52,"")) ->  | U52: =IF(U$7="","",IF(COUNTIF($AL52:$BP52,U$7)>0,$C52,"")) ->  | AL52: =IF(休暇希望!E47="","",DATE($F$2,$I$2,休暇希望!E47)) ->  | AM52: =IF(休暇希望!F47="","",DATE($F$2,$I$2,休暇希望!F47)) ->  | AN52: =IF(休暇希望!G47="","",DATE($F$2,$I$2,休暇希望!G47)) ->  | AO52: =IF(休暇希望!H47="","",DATE($F$2,$I$2,休暇希望!H47)) ->  | AP52: =IF(休暇希望!I47="","",DATE($F$2,$I$2,休暇希望!I47)) ->  | AQ52: =IF(休暇希望!J47="","",DATE($F$2,$I$2,休暇希望!J47)) ->  | AR52: =IF(休暇希望!K47="","",DATE($F$2,$I$2,休暇希望!K47)) ->  | AS52: =IF(休暇希望!L47="","",DATE($F$2,$I$2,休暇希望!L47)) ->  | AT52: =IF(休暇希望!M47="","",DATE($F$2,$I$2,休暇希望!M47)) ->  | AU52: =IF(休暇希望!N47="","",DATE($F$2,$I$2,休暇希望!N47)) ->  | AV52: =IF(休暇希望!O47="","",DATE($F$2,$I$2,休暇希望!O47)) ->  | AW52: =IF(休暇希望!P47="","",DATE($F$2,$I$2,休暇希望!P47)) ->  | AX52: =IF(休暇希望!Q47="","",DATE($F$2,$I$2,休暇希望!Q47)) ->  | AY52: =IF(休暇希望!R47="","",DATE($F$2,$I$2,休暇希望!R47)) ->  | AZ52: =IF(休暇希望!S47="","",DATE($F$2,$I$2,休暇希望!S47)) ->  | BA52: =IF(休暇希望!T47="","",DATE($F$2,$I$2,休暇希望!T47)) ->  | BB52: =IF(休暇希望!U47="","",DATE($F$2,$I$2,休暇希望!U47)) ->  | BC52: =IF(休暇希望!V47="","",DATE($F$2,$I$2,休暇希望!V47)) ->  | BD52: =IF(休暇希望!W47="","",DATE($F$2,$I$2,休暇希望!W47)) ->  | BE52: =IF(休暇希望!X47="","",DATE($F$2,$I$2,休暇希望!X47)) ->  | BF52: =IF(休暇希望!Y47="","",DATE($F$2,$I$2,休暇希望!Y47)) ->  | BG52: =IF(休暇希望!Z47="","",DATE($F$2,$I$2,休暇希望!Z47)) ->  | BH52: =IF(休暇希望!AA47="","",DATE($F$2,$I$2,休暇希望!AA47)) ->  | BI52: =IF(休暇希望!AB47="","",DATE($F$2,$I$2,休暇希望!AB47)) ->  | BJ52: =IF(休暇希望!AC47="","",DATE($F$2,$I$2,休暇希望!AC47)) ->  | BK52: =IF(休暇希望!AD47="","",DATE($F$2,$I$2,休暇希望!AD47)) ->  | BL52: =IF(休暇希望!AE47="","",DATE($F$2,$I$2,休暇希望!AE47)) ->  | BM52: =IF(休暇希望!AF47="","",DATE($F$2,$I$2,休暇希望!AF47)) ->  | BN52: =IF(休暇希望!AG47="","",DATE($F$2,$I$2,休暇希望!AG47)) ->  | BO52: =IF(休暇希望!AH47="","",DATE($F$2,$I$2,休暇希望!AH47)) ->  | BP52: =IF(休暇希望!AI47="","",DATE($F$2,$I$2,休暇希望!AI47)) -> 
B53: E | C53: 4 | D53: 45 | E53: =NETWORKDAYS($H$3,$H$4,各種設定!$A$4:$A$22)-COUNTIF(F53:AJ53,">0") -> 1900-01-21 | AL53: =IF(休暇希望!E48="","",DATE($F$2,$I$2,休暇希望!E48)) ->  | AM53: =IF(休暇希望!F48="","",DATE($F$2,$I$2,休暇希望!F48)) ->  | AN53: =IF(休暇希望!G48="","",DATE($F$2,$I$2,休暇希望!G48)) ->  | AO53: =IF(休暇希望!H48="","",DATE($F$2,$I$2,休暇希望!H48)) ->  | AP53: =IF(休暇希望!I48="","",DATE($F$2,$I$2,休暇希望!I48)) ->  | AQ53: =IF(休暇希望!J48="","",DATE($F$2,$I$2,休暇希望!J48)) ->  | AR53: =IF(休暇希望!K48="","",DATE($F$2,$I$2,休暇希望!K48)) ->  | AS53: =IF(休暇希望!L48="","",DATE($F$2,$I$2,休暇希望!L48)) ->  | AT53: =IF(休暇希望!M48="","",DATE($F$2,$I$2,休暇希望!M48)) ->  | AU53: =IF(休暇希望!N48="","",DATE($F$2,$I$2,休暇希望!N48)) ->  | AV53: =IF(休暇希望!O48="","",DATE($F$2,$I$2,休暇希望!O48)) ->  | AW53: =IF(休暇希望!P48="","",DATE($F$2,$I$2,休暇希望!P48)) ->  | AX53: =IF(休暇希望!Q48="","",DATE($F$2,$I$2,休暇希望!Q48)) ->  | AY53: =IF(休暇希望!R48="","",DATE($F$2,$I$2,休暇希望!R48)) ->  | AZ53: =IF(休暇希望!S48="","",DATE($F$2,$I$2,休暇希望!S48)) ->  | BA53: =IF(休暇希望!T48="","",DATE($F$2,$I$2,休暇希望!T48)) ->  | BB53: =IF(休暇希望!U48="","",DATE($F$2,$I$2,休暇希望!U48)) ->  | BC53: =IF(休暇希望!V48="","",DATE($F$2,$I$2,休暇希望!V48)) ->  | BD53: =IF(休暇希望!W48="","",DATE($F$2,$I$2,休暇希望!W48)) ->  | BE53: =IF(休暇希望!X48="","",DATE($F$2,$I$2,休暇希望!X48)) ->  | BF53: =IF(休暇希望!Y48="","",DATE($F$2,$I$2,休暇希望!Y48)) ->  | BG53: =IF(休暇希望!Z48="","",DATE($F$2,$I$2,休暇希望!Z48)) ->  | BH53: =IF(休暇希望!AA48="","",DATE($F$2,$I$2,休暇希望!AA48)) ->  | BI53: =IF(休暇希望!AB48="","",DATE($F$2,$I$2,休暇希望!AB48)) ->  | BJ53: =IF(休暇希望!AC48="","",DATE($F$2,$I$2,休暇希望!AC48)) ->  | BK53: =IF(休暇希望!AD48="","",DATE($F$2,$I$2,休暇希望!AD48)) ->  | BL53: =IF(休暇希望!AE48="","",DATE($F$2,$I$2,休暇希望!AE48)) ->  | BM53: =IF(休暇希望!AF48="","",DATE($F$2,$I$2,休暇希望!AF48)) ->  | BN53: =IF(休暇希望!AG48="","",DATE($F$2,$I$2,休暇希望!AG48)) ->  | BO53: =IF(休暇希望!AH48="","",DATE($F$2,$I$2,休暇希望!AH48)) ->  | BP53: =IF(休暇希望!AI48="","",DATE($F$2,$I$2,休暇希望!AI48)) -> 
B54: E | C54: 4 | D54: 46 | E54: =NETWORKDAYS($H$3,$H$4,各種設定!$A$4:$A$22)-COUNTIF(F54:AJ54,">0") -> 1900-01-21 | F54: =IF(F$7="","",IF(COUNTIF($AL54:$BP54,F$7)>0,$C54,"")) ->  | P54: =IF(P$7="","",IF(COUNTIF($AL54:$BP54,P$7)>0,$C54,"")) ->  | Z54: =IF(Z$7="","",IF(COUNTIF($AL54:$BP54,Z$7)>0,$C54,"")) ->  | AL54: =IF(休暇希望!E49="","",DATE($F$2,$I$2,休暇希望!E49)) ->  | AM54: =IF(休暇希望!F49="","",DATE($F$2,$I$2,休暇希望!F49)) ->  | AN54: =IF(休暇希望!G49="","",DATE($F$2,$I$2,休暇希望!G49)) ->  | AO54: =IF(休暇希望!H49="","",DATE($F$2,$I$2,休暇希望!H49)) ->  | AP54: =IF(休暇希望!I49="","",DATE($F$2,$I$2,休暇希望!I49)) ->  | AQ54: =IF(休暇希望!J49="","",DATE($F$2,$I$2,休暇希望!J49)) ->  | AR54: =IF(休暇希望!K49="","",DATE($F$2,$I$2,休暇希望!K49)) ->  | AS54: =IF(休暇希望!L49="","",DATE($F$2,$I$2,休暇希望!L49)) ->  | AT54: =IF(休暇希望!M49="","",DATE($F$2,$I$2,休暇希望!M49)) ->  | AU54: =IF(休暇希望!N49="","",DATE($F$2,$I$2,休暇希望!N49)) ->  | AV54: =IF(休暇希望!O49="","",DATE($F$2,$I$2,休暇希望!O49)) ->  | AW54: =IF(休暇希望!P49="","",DATE($F$2,$I$2,休暇希望!P49)) ->  | AX54: =IF(休暇希望!Q49="","",DATE($F$2,$I$2,休暇希望!Q49)) ->  | AY54: =IF(休暇希望!R49="","",DATE($F$2,$I$2,休暇希望!R49)) ->  | AZ54: =IF(休暇希望!S49="","",DATE($F$2,$I$2,休暇希望!S49)) ->  | BA54: =IF(休暇希望!T49="","",DATE($F$2,$I$2,休暇希望!T49)) ->  | BB54: =IF(休暇希望!U49="","",DATE($F$2,$I$2,休暇希望!U49)) ->  | BC54: =IF(休暇希望!V49="","",DATE($F$2,$I$2,休暇希望!V49)) ->  | BD54: =IF(休暇希望!W49="","",DATE($F$2,$I$2,休暇希望!W49)) ->  | BE54: =IF(休暇希望!X49="","",DATE($F$2,$I$2,休暇希望!X49)) ->  | BF54: =IF(休暇希望!Y49="","",DATE($F$2,$I$2,休暇希望!Y49)) ->  | BG54: =IF(休暇希望!Z49="","",DATE($F$2,$I$2,休暇希望!Z49)) ->  | BH54: =IF(休暇希望!AA49="","",DATE($F$2,$I$2,休暇希望!AA49)) ->  | BI54: =IF(休暇希望!AB49="","",DATE($F$2,$I$2,休暇希望!AB49)) ->  | BJ54: =IF(休暇希望!AC49="","",DATE($F$2,$I$2,休暇希望!AC49)) ->  | BK54: =IF(休暇希望!AD49="","",DATE($F$2,$I$2,休暇希望!AD49)) ->  | BL54: =IF(休暇希望!AE49="","",DATE($F$2,$I$2,休暇希望!AE49)) ->  | BM54: =IF(休暇希望!AF49="","",DATE($F$2,$I$2,休暇希望!AF49)) ->  | BN54: =IF(休暇希望!AG49="","",DATE($F$2,$I$2,休暇希望!AG49)) ->  | BO54: =IF(休暇希望!AH49="","",DATE($F$2,$I$2,休暇希望!AH49)) ->  | BP54: =IF(休暇希望!AI49="","",DATE($F$2,$I$2,休暇希望!AI49)) -> 
B55: E | C55: 4 | D55: 47 | E55: =NETWORKDAYS($H$3,$H$4,各種設定!$A$4:$A$22)-COUNTIF(F55:AJ55,">0") -> 1900-01-21 | AL55: =IF(休暇希望!E50="","",DATE($F$2,$I$2,休暇希望!E50)) ->  | AM55: =IF(休暇希望!F50="","",DATE($F$2,$I$2,休暇希望!F50)) ->  | AN55: =IF(休暇希望!G50="","",DATE($F$2,$I$2,休暇希望!G50)) ->  | AO55: =IF(休暇希望!H50="","",DATE($F$2,$I$2,休暇希望!H50)) ->  | AP55: =IF(休暇希望!I50="","",DATE($F$2,$I$2,休暇希望!I50)) ->  | AQ55: =IF(休暇希望!J50="","",DATE($F$2,$I$2,休暇希望!J50)) ->  | AR55: =IF(休暇希望!K50="","",DATE($F$2,$I$2,休暇希望!K50)) ->  | AS55: =IF(休暇希望!L50="","",DATE($F$2,$I$2,休暇希望!L50)) ->  | AT55: =IF(休暇希望!M50="","",DATE($F$2,$I$2,休暇希望!M50)) ->  | AU55: =IF(休暇希望!N50="","",DATE($F$2,$I$2,休暇希望!N50)) ->  | AV55: =IF(休暇希望!O50="","",DATE($F$2,$I$2,休暇希望!O50)) ->  | AW55: =IF(休暇希望!P50="","",DATE($F$2,$I$2,休暇希望!P50)) ->  | AX55: =IF(休暇希望!Q50="","",DATE($F$2,$I$2,休暇希望!Q50)) ->  | AY55: =IF(休暇希望!R50="","",DATE($F$2,$I$2,休暇希望!R50)) ->  | AZ55: =IF(休暇希望!S50="","",DATE($F$2,$I$2,休暇希望!S50)) ->  | BA55: =IF(休暇希望!T50="","",DATE($F$2,$I$2,休暇希望!T50)) ->  | BB55: =IF(休暇希望!U50="","",DATE($F$2,$I$2,休暇希望!U50)) ->  | BC55: =IF(休暇希望!V50="","",DATE($F$2,$I$2,休暇希望!V50)) ->  | BD55: =IF(休暇希望!W50="","",DATE($F$2,$I$2,休暇希望!W50)) ->  | BE55: =IF(休暇希望!X50="","",DATE($F$2,$I$2,休暇希望!X50)) ->  | BF55: =IF(休暇希望!Y50="","",DATE($F$2,$I$2,休暇希望!Y50)) ->  | BG55: =IF(休暇希望!Z50="","",DATE($F$2,$I$2,休暇希望!Z50)) ->  | BH55: =IF(休暇希望!AA50="","",DATE($F$2,$I$2,休暇希望!AA50)) ->  | BI55: =IF(休暇希望!AB50="","",DATE($F$2,$I$2,休暇希望!AB50)) ->  | BJ55: =IF(休暇希望!AC50="","",DATE($F$2,$I$2,休暇希望!AC50)) ->  | BK55: =IF(休暇希望!AD50="","",DATE($F$2,$I$2,休暇希望!AD50)) ->  | BL55: =IF(休暇希望!AE50="","",DATE($F$2,$I$2,休暇希望!AE50)) ->  | BM55: =IF(休暇希望!AF50="","",DATE($F$2,$I$2,休暇希望!AF50)) ->  | BN55: =IF(休暇希望!AG50="","",DATE($F$2,$I$2,休暇希望!AG50)) ->  | BO55: =IF(休暇希望!AH50="","",DATE($F$2,$I$2,休暇希望!AH50)) ->  | BP55: =IF(休暇希望!AI50="","",DATE($F$2,$I$2,休暇希望!AI50)) -> 
B56: E | C56: 4 | D56: 48 | E56: =NETWORKDAYS($H$3,$H$4,各種設定!$A$4:$A$22)-COUNTIF(F56:AJ56,">0") -> 1900-01-21 | AL56: =IF(休暇希望!E51="","",DATE($F$2,$I$2,休暇希望!E51)) ->  | AM56: =IF(休暇希望!F51="","",DATE($F$2,$I$2,休暇希望!F51)) ->  | AN56: =IF(休暇希望!G51="","",DATE($F$2,$I$2,休暇希望!G51)) ->  | AO56: =IF(休暇希望!H51="","",DATE($F$2,$I$2,休暇希望!H51)) ->  | AP56: =IF(休暇希望!I51="","",DATE($F$2,$I$2,休暇希望!I51)) ->  | AQ56: =IF(休暇希望!J51="","",DATE($F$2,$I$2,休暇希望!J51)) ->  | AR56: =IF(休暇希望!K51="","",DATE($F$2,$I$2,休暇希望!K51)) ->  | AS56: =IF(休暇希望!L51="","",DATE($F$2,$I$2,休暇希望!L51)) ->  | AT56: =IF(休暇希望!M51="","",DATE($F$2,$I$2,休暇希望!M51)) ->  | AU56: =IF(休暇希望!N51="","",DATE($F$2,$I$2,休暇希望!N51)) ->  | AV56: =IF(休暇希望!O51="","",DATE($F$2,$I$2,休暇希望!O51)) ->  | AW56: =IF(休暇希望!P51="","",DATE($F$2,$I$2,休暇希望!P51)) ->  | AX56: =IF(休暇希望!Q51="","",DATE($F$2,$I$2,休暇希望!Q51)) ->  | AY56: =IF(休暇希望!R51="","",DATE($F$2,$I$2,休暇希望!R51)) ->  | AZ56: =IF(休暇希望!S51="","",DATE($F$2,$I$2,休暇希望!S51)) ->  | BA56: =IF(休暇希望!T51="","",DATE($F$2,$I$2,休暇希望!T51)) ->  | BB56: =IF(休暇希望!U51="","",DATE($F$2,$I$2,休暇希望!U51)) ->  | BC56: =IF(休暇希望!V51="","",DATE($F$2,$I$2,休暇希望!V51)) ->  | BD56: =IF(休暇希望!W51="","",DATE($F$2,$I$2,休暇希望!W51)) ->  | BE56: =IF(休暇希望!X51="","",DATE($F$2,$I$2,休暇希望!X51)) ->  | BF56: =IF(休暇希望!Y51="","",DATE($F$2,$I$2,休暇希望!Y51)) ->  | BG56: =IF(休暇希望!Z51="","",DATE($F$2,$I$2,休暇希望!Z51)) ->  | BH56: =IF(休暇希望!AA51="","",DATE($F$2,$I$2,休暇希望!AA51)) ->  | BI56: =IF(休暇希望!AB51="","",DATE($F$2,$I$2,休暇希望!AB51)) ->  | BJ56: =IF(休暇希望!AC51="","",DATE($F$2,$I$2,休暇希望!AC51)) ->  | BK56: =IF(休暇希望!AD51="","",DATE($F$2,$I$2,休暇希望!AD51)) ->  | BL56: =IF(休暇希望!AE51="","",DATE($F$2,$I$2,休暇希望!AE51)) ->  | BM56: =IF(休暇希望!AF51="","",DATE($F$2,$I$2,休暇希望!AF51)) ->  | BN56: =IF(休暇希望!AG51="","",DATE($F$2,$I$2,休暇希望!AG51)) ->  | BO56: =IF(休暇希望!AH51="","",DATE($F$2,$I$2,休暇希望!AH51)) ->  | BP56: =IF(休暇希望!AI51="","",DATE($F$2,$I$2,休暇希望!AI51)) -> 
B57: E | C57: 4 | D57: 49 | E57: =NETWORKDAYS($H$3,$H$4,各種設定!$A$4:$A$22)-COUNTIF(F57:AJ57,">0") -> 1900-01-21 | AL57: =IF(休暇希望!E52="","",DATE($F$2,$I$2,休暇希望!E52)) ->  | AM57: =IF(休暇希望!F52="","",DATE($F$2,$I$2,休暇希望!F52)) ->  | AN57: =IF(休暇希望!G52="","",DATE($F$2,$I$2,休暇希望!G52)) ->  | AO57: =IF(休暇希望!H52="","",DATE($F$2,$I$2,休暇希望!H52)) ->  | AP57: =IF(休暇希望!I52="","",DATE($F$2,$I$2,休暇希望!I52)) ->  | AQ57: =IF(休暇希望!J52="","",DATE($F$2,$I$2,休暇希望!J52)) ->  | AR57: =IF(休暇希望!K52="","",DATE($F$2,$I$2,休暇希望!K52)) ->  | AS57: =IF(休暇希望!L52="","",DATE($F$2,$I$2,休暇希望!L52)) ->  | AT57: =IF(休暇希望!M52="","",DATE($F$2,$I$2,休暇希望!M52)) ->  | AU57: =IF(休暇希望!N52="","",DATE($F$2,$I$2,休暇希望!N52)) ->  | AV57: =IF(休暇希望!O52="","",DATE($F$2,$I$2,休暇希望!O52)) ->  | AW57: =IF(休暇希望!P52="","",DATE($F$2,$I$2,休暇希望!P52)) ->  | AX57: =IF(休暇希望!Q52="","",DATE($F$2,$I$2,休暇希望!Q52)) ->  | AY57: =IF(休暇希望!R52="","",DATE($F$2,$I$2,休暇希望!R52)) ->  | AZ57: =IF(休暇希望!S52="","",DATE($F$2,$I$2,休暇希望!S52)) ->  | BA57: =IF(休暇希望!T52="","",DATE($F$2,$I$2,休暇希望!T52)) ->  | BB57: =IF(休暇希望!U52="","",DATE($F$2,$I$2,休暇希望!U52)) ->  | BC57: =IF(休暇希望!V52="","",DATE($F$2,$I$2,休暇希望!V52)) ->  | BD57: =IF(休暇希望!W52="","",DATE($F$2,$I$2,休暇希望!W52)) ->  | BE57: =IF(休暇希望!X52="","",DATE($F$2,$I$2,休暇希望!X52)) ->  | BF57: =IF(休暇希望!Y52="","",DATE($F$2,$I$2,休暇希望!Y52)) ->  | BG57: =IF(休暇希望!Z52="","",DATE($F$2,$I$2,休暇希望!Z52)) ->  | BH57: =IF(休暇希望!AA52="","",DATE($F$2,$I$2,休暇希望!AA52)) ->  | BI57: =IF(休暇希望!AB52="","",DATE($F$2,$I$2,休暇希望!AB52)) ->  | BJ57: =IF(休暇希望!AC52="","",DATE($F$2,$I$2,休暇希望!AC52)) ->  | BK57: =IF(休暇希望!AD52="","",DATE($F$2,$I$2,休暇希望!AD52)) ->  | BL57: =IF(休暇希望!AE52="","",DATE($F$2,$I$2,休暇希望!AE52)) ->  | BM57: =IF(休暇希望!AF52="","",DATE($F$2,$I$2,休暇希望!AF52)) ->  | BN57: =IF(休暇希望!AG52="","",DATE($F$2,$I$2,休暇希望!AG52)) ->  | BO57: =IF(休暇希望!AH52="","",DATE($F$2,$I$2,休暇希望!AH52)) ->  | BP57: =IF(休暇希望!AI52="","",DATE($F$2,$I$2,休暇希望!AI52)) -> 
B58: E | C58: 4 | D58: 50 | E58: =NETWORKDAYS($H$3,$H$4,各種設定!$A$4:$A$22)-COUNTIF(F58:AJ58,">0") -> 1900-01-21 | AL58: =IF(休暇希望!E53="","",DATE($F$2,$I$2,休暇希望!E53)) ->  | AM58: =IF(休暇希望!F53="","",DATE($F$2,$I$2,休暇希望!F53)) ->  | AN58: =IF(休暇希望!G53="","",DATE($F$2,$I$2,休暇希望!G53)) ->  | AO58: =IF(休暇希望!H53="","",DATE($F$2,$I$2,休暇希望!H53)) ->  | AP58: =IF(休暇希望!I53="","",DATE($F$2,$I$2,休暇希望!I53)) ->  | AQ58: =IF(休暇希望!J53="","",DATE($F$2,$I$2,休暇希望!J53)) ->  | AR58: =IF(休暇希望!K53="","",DATE($F$2,$I$2,休暇希望!K53)) ->  | AS58: =IF(休暇希望!L53="","",DATE($F$2,$I$2,休暇希望!L53)) ->  | AT58: =IF(休暇希望!M53="","",DATE($F$2,$I$2,休暇希望!M53)) ->  | AU58: =IF(休暇希望!N53="","",DATE($F$2,$I$2,休暇希望!N53)) ->  | AV58: =IF(休暇希望!O53="","",DATE($F$2,$I$2,休暇希望!O53)) ->  | AW58: =IF(休暇希望!P53="","",DATE($F$2,$I$2,休暇希望!P53)) ->  | AX58: =IF(休暇希望!Q53="","",DATE($F$2,$I$2,休暇希望!Q53)) ->  | AY58: =IF(休暇希望!R53="","",DATE($F$2,$I$2,休暇希望!R53)) ->  | AZ58: =IF(休暇希望!S53="","",DATE($F$2,$I$2,休暇希望!S53)) ->  | BA58: =IF(休暇希望!T53="","",DATE($F$2,$I$2,休暇希望!T53)) ->  | BB58: =IF(休暇希望!U53="","",DATE($F$2,$I$2,休暇希望!U53)) ->  | BC58: =IF(休暇希望!V53="","",DATE($F$2,$I$2,休暇希望!V53)) ->  | BD58: =IF(休暇希望!W53="","",DATE($F$2,$I$2,休暇希望!W53)) ->  | BE58: =IF(休暇希望!X53="","",DATE($F$2,$I$2,休暇希望!X53)) ->  | BF58: =IF(休暇希望!Y53="","",DATE($F$2,$I$2,休暇希望!Y53)) ->  | BG58: =IF(休暇希望!Z53="","",DATE($F$2,$I$2,休暇希望!Z53)) ->  | BH58: =IF(休暇希望!AA53="","",DATE($F$2,$I$2,休暇希望!AA53)) ->  | BI58: =IF(休暇希望!AB53="","",DATE($F$2,$I$2,休暇希望!AB53)) ->  | BJ58: =IF(休暇希望!AC53="","",DATE($F$2,$I$2,休暇希望!AC53)) ->  | BK58: =IF(休暇希望!AD53="","",DATE($F$2,$I$2,休暇希望!AD53)) ->  | BL58: =IF(休暇希望!AE53="","",DATE($F$2,$I$2,休暇希望!AE53)) ->  | BM58: =IF(休暇希望!AF53="","",DATE($F$2,$I$2,休暇希望!AF53)) ->  | BN58: =IF(休暇希望!AG53="","",DATE($F$2,$I$2,休暇希望!AG53)) ->  | BO58: =IF(休暇希望!AH53="","",DATE($F$2,$I$2,休暇希望!AH53)) ->  | BP58: =IF(休暇希望!AI53="","",DATE($F$2,$I$2,休暇希望!AI53)) -> 
B59: A | E59: =$Q$3 -> 6 | F59: =IF(COUNTA(F$9:F$58)=0,"",COUNTIF(F$9:F$58,$E59)) -> 0 | G59: 2 | H59: 2 | I59: 0 | J59: 0 | K59: 2 | L59: 2 | M59: 2 | N59: 2 | O59: 2 | P59: =IF(COUNTA(P$9:P$58)=0,"",COUNTIF(P$9:P$58,$E59)) -> 0 | Q59: 0 | R59: 0 | S59: 2 | T59: 2 | U59: 2 | V59: 2 | W59: 0 | X59: 0 | Y59: 2 | Z59: =IF(COUNTA(Z$9:Z$58)=0,"",COUNTIF(Z$9:Z$58,$E59)) -> 2 | AA59: 2 | AB59: 2 | AC59: 2 | AD59: 0 | AE59: 0 | AF59: 2 | AG59: 2 | AH59: 2 | AI59: 2 | AJ59: 2
B60: B | E60: =$R$3 -> 7 | F60: 0 | G60: 0 | H60: 0 | I60: 0 | J60: 0 | K60: 0 | L60: 0 | M60: 0 | N60: 0 | O60: 0 | P60: 0 | Q60: 0 | R60: 0 | S60: 0 | T60: 0 | U60: 0 | V60: 0 | W60: 0 | X60: 0 | Y60: 0 | Z60: 0 | AA60: 0 | AB60: 0 | AC60: 0 | AD60: 0 | AE60: 0 | AF60: 0 | AG60: 0 | AH60: 0 | AI60: 0 | AJ60: 0
B61: C | E61: =$S$3 -> 7.5 | F61: 0 | G61: 0 | H61: 0 | I61: 0 | J61: 0 | K61: 0 | L61: 0 | M61: 0 | N61: 0 | O61: 0 | P61: 0 | Q61: 0 | R61: 0 | S61: 0 | T61: 0 | U61: 0 | V61: 0 | W61: 0 | X61: 0 | Y61: 0 | Z61: 0 | AA61: 0 | AB61: 0 | AC61: 0 | AD61: 0 | AE61: 0 | AF61: 0 | AG61: 0 | AH61: 0 | AI61: 0 | AJ61: 0
B62: D | E62: =$T$3 -> 5.25 | F62: 0 | G62: 0 | H62: 0 | I62: 0 | J62: 0 | K62: 0 | L62: 0 | M62: 0 | N62: 0 | O62: 0 | P62: 0 | Q62: 0 | R62: 0 | S62: 0 | T62: 0 | U62: 0 | V62: 0 | W62: 0 | X62: 0 | Y62: 0 | Z62: 0 | AA62: 0 | AB62: 0 | AC62: 0 | AD62: 0 | AE62: 0 | AF62: 0 | AG62: 0 | AH62: 0 | AI62: 0 | AJ62: 0
B63: E | E63: =$U$3 -> 4 | F63: 0 | G63: 0 | H63: 0 | I63: 0 | J63: 0 | K63: 0 | L63: 0 | M63: 0 | N63: 0 | O63: 0 | P63: 0 | Q63: 0 | R63: 0 | S63: 0 | T63: 0 | U63: 0 | V63: 0 | W63: 0 | X63: 0 | Y63: 0 | Z63: 0 | AA63: 0 | AB63: 0 | AC63: 0 | AD63: 0 | AE63: 0 | AF63: 0 | AG63: 0 | AH63: 0 | AI63: 0 | AJ63: 0
B64: 早退・遅刻等
B65: 人数 | D65: 総人時 | E65: 休暇人時 | F65: =($E$59*F59)+($E$60*F60)+($E$61*F61)+($E$62*F62)+($E$63*F63) -> 0 | G65: =($E$59*G59)+($E$60*G60)+($E$61*G61)+($E$62*G62)+($E$63*G63) -> 12 | H65: =($E$59*H59)+($E$60*H60)+($E$61*H61)+($E$62*H62)+($E$63*H63) -> 12 | I65: 0 | J65: =($E$59*J59)+($E$60*J60)+($E$61*J61)+($E$62*J62)+($E$63*J63) -> 0 | K65: 12 | L65: 12 | M65: 12 | N65: 12 | O65: 12 | P65: 0 | Q65: 0 | R65: 0 | S65: 12 | T65: 12 | U65: 12 | V65: 12 | W65: 0 | X65: 0 | Y65: 12 | Z65: 12 | AA65: 12 | AB65: 12 | AC65: 12 | AD65: 0 | AE65: 0 | AF65: 12 | AG65: 12 | AH65: 12 | AI65: 12 | AJ65: 12
B66: =COUNTA(D9:D58) -> 50 | D66: =SUM(C9:C58) -> 248.75 | E66: 労働人時 | F66: =$D$66-F65-F64 -> 248.75 | G66: =$D$66-G65-G64 -> 236.75 | H66: =$D$66-H65-H64 -> 236.75 | I66: 248.75 | J66: 248.75 | K66: 236.75 | L66: 236.75 | M66: 236.75 | N66: 236.75 | O66: 236.75 | P66: 248.75 | Q66: 248.75 | R66: 248.75 | S66: 236.75 | T66: 236.75 | U66: 236.75 | V66: 236.75 | W66: 248.75 | X66: 248.75 | Y66: 236.75 | Z66: 236.75 | AA66: 236.75 | AB66: 236.75 | AC66: 236.75 | AD66: 248.75 | AE66: 248.75 | AF66: 236.75 | AG66: 236.75 | AH66: 236.75 | AI66: 236.75 | AJ66: 236.75
E67: 休暇人数 | F67: =SUM(F59:F63) -> 0 | G67: =SUM(G59:G63) -> 2 | H67: 2 | I67: =SUM(I59:I63) -> 0 | J67: 0 | K67: 2 | L67: 2 | M67: 2 | N67: 2 | O67: 2 | P67: 0 | Q67: 0 | R67: 0 | S67: 2 | T67: 2 | U67: 2 | V67: 2 | W67: 0 | X67: 0 | Y67: 2 | Z67: 2 | AA67: 2 | AB67: 2 | AC67: 2 | AD67: 0 | AE67: 0 | AF67: 2 | AG67: 2 | AH67: 2 | AI67: 2 | AJ67: 2

Sheet 作業計画
D1: 2025 | F1: 年 | G1: 1 | H1: 月 | AK1: 月 | AL1: 100 | AM1: 月 | AN1: 200
E2: 月初 | F2: =DATE(D1,G1,1) -> 2025-01-01 | AK2: 火 | AL2: 150 | AM2: 火 | AN2: 300
E3: 月末 | F3: =EOMONTH(F2,0) -> 2025-01-31 | AK3: 水 | AL3: 200 | AM3: 水 | AN3: 400
AK4: 木 | AL4: 250 | AM4: 木 | AN4: 500
A5: 日付 | D5: 出勤人時 | E5: 必要人時 | F5: ★ | H5: ★★ | J5: その他 | AK5: 金 | AL5: 300 | AM5: 金 | AN5: 600
A6: 日 | B6: 曜日 | F6: 数量 | G6: 人時 | H6: 数量 | I6: 人時 | J6: ① | K6: 人時 | L6: ② | M6: 人時 | N6: ③ | O6: 人時 | P6: ④ | Q6: 人時 | R6: ⑤ | S6: 人時 | T6: ⑥ | U6: 人時 | V6: ⑦ | W6: 人時 | X6: ⑧ | Y6: 人時 | Z6: ⑨ | AA6: 人時 | AB6: ⑩ | AC6: 人時 | AD6: 特別業務
A7: =F2 -> 2025-01-01 | B7: =A7 -> 45658 | C7: =TEXT($A7,"aaa") -> 水 | D7: 236.75 | E7: =IFERROR(G7+I7+K7+M7+O7+Q7+S7+U7+W7+Y7+AA7+AC7, "") -> 20 | F7: =_xlfn.SWITCH($C7, "月", $AL$1, "火", $AL$2, "水", $AL$3, "木", $AL$4, "金", $AL$5, "土", "", "日", "") -> 200 | G7: =IFERROR(F7/30, "") -> 6.666666667 | H7: =_xlfn.SWITCH($C7, "月", $AN$1, "火", $AN$2, "水", $AN$3, "木", $AN$4, "金", $AN$5, "土", "", "日", "") -> 400 | I7: =IFERROR(H7/30, "") -> 13.33333333 | AH7: カテゴリ | AI7: 内容 | AJ7: 合計
A8: =IF(A7=$F$3,"",IF(A7="","",IF(A7<>$F$3,A7+1,""))) -> 2025-01-02 | B8: =A8 -> 45659 | C8: =TEXT($A8,"aaa") -> 木 | D8: 236.75 | E8: =IFERROR(G8+I8+K8+M8+O8+Q8+S8+U8+W8+Y8+AA8+AC8, "") -> 25 | F8: 250 | G8: =IFERROR(F8/30, "") -> 8.333333333 | H8: 500 | I8: =IFERROR(H8/30, "") -> 16.66666667 | AH8: ★ | AJ8: =$G$38 -> 158.3333333
A9: 2025-01-03 | B9: 45660 | C9: 金 | D9: 236.75 | E9: =IFERROR(G9+I9+K9+M9+O9+Q9+S9+U9+W9+Y9+AA9+AC9, "") -> 30 | F9: 300 | G9: 10 | H9: 600 | I9: 20 | AH9: ★★ | AJ9: =$I$38 -> 316.6666667
A10: 2025-01-04 | B10: 45661 | C10: 土
A11: 2025-01-05 | B11: 45662 | C11: 日 | AH11: カテゴリ | AI11: 内容 | AJ11: 合計
A12: 2025-01-06 | B12: 45663 | C12: 月 | D12: 236.75 | E12: 10 | F12: 100 | G12: 3.333333333 | H12: 200 | I12: 6.666666667 | AH12: その他 ① | AJ12: =$K$38 -> 0
A13: 2025-01-07 | B13: 45664 | C13: 火 | D13: 236.75 | E13: 15 | F13: 150 | G13: 5 | H13: 300 | I13: 10 | AH13: その他 ② | AJ13: =$M$38 -> 0
A14: 2025-01-08 | B14: 45665 | C14: 水 | D14: 236.75 | E14: 20 | F14: 200 | G14: 6.666666667 | H14: 400 | I14: 13.33333333 | AH14: その他 ③ | AJ14: =$O$38 -> 0
A15: 2025-01-09 | B15: 45666 | C15: 木 | D15: 236.75 | E15: 25 | F15: 250 | G15: 8.333333333 | H15: 500 | I15: 16.66666667 | AH15: その他 ④ | AJ15: =$Q$38 -> 0
A16: 2025-01-10 | B16: 45667 | C16: 金 | D16: 236.75 | E16: 30 | F16: 300 | G16: 10 | H16: 600 | I16: 20 | AH16: その他 ⑤ | AJ16: =$S$38 -> 0
A17: 2025-01-11 | B17: 45668 | C17: 土 | AH17: その他 ⑥ | AJ17: =$U$38 -> 0
A18: 2025-01-12 | B18: 45669 | C18: 日 | AH18: その他 ⑦ | AJ18: =$W$38 -> 0
A19: 2025-01-13 | B19: 45670 | C19: 月 | D19: 236.75 | E19: =IFERROR(G19+I19+K19+M19+O19+Q19+S19+U19+W19+Y19+AA19+AC19, "") -> 10 | F19: 100 | G19: =IFERROR(F19/30, "") -> 3.333333333 | H19: 200 | I19: =IFERROR(H19/30, "") -> 6.666666667 | AH19: その他 ⑧ | AJ19: =$Y$38 -> 0
A20: 2025-01-14 | B20: 45671 | C20: 火 | D20: 236.75 | E20: 15 | F20: =_xlfn.SWITCH($C20, "月", $AL$1, "火", $AL$2, "水", $AL$3, "木", $AL$4, "金", $AL$5, "土", "", "日", "") -> 150 | G20: =IFERROR(F20/30, "") -> 5 | H20: =_xlfn.SWITCH($C20, "月", $AN$1, "火", $AN$2, "水", $AN$3, "木", $AN$4, "金", $AN$5, "土", "", "日", "") -> 300 | I20: =IFERROR(H20/30, "") -> 10 | AH20: その他 ⑨ | AJ20: =$AA$38 -> 0
A21: 2025-01-15 | B21: 45672 | C21: 水 | D21: 236.75 | E21: 20 | F21: 200 | G21: 6.666666667 | H21: 400 | I21: 13.33333333 | AH21: その他 ⑩ | AJ21: =$AC$38 -> 0
A22: 2025-01-16 | B22: 45673 | C22: 木 | D22: 236.75 | E22: 25 | F22: 250 | G22: 8.333333333 | H22: 500 | I22: 16.66666667 | AI22: 総計 | AJ22: =SUM(AJ12:AJ21,AJ8:AJ9) -> 475
A23: 2025-01-17 | B23: 45674 | C23: 金 | D23: 236.75 | E23: 30 | F23: 300 | G23: 10 | H23: 600 | I23: 20
A24: 2025-01-18 | B24: 45675 | C24: 土
A25: 2025-01-19 | B25: 45676 | C25: 日 | AH25: チェック項目一覧
A26: 2025-01-20 | B26: 45677 | C26: 月 | D26: 236.75 | E26: 10 | F26: 100 | G26: 3.333333333 | H26: 200 | I26: 6.666666667
A27: 2025-01-21 | B27: 45678 | C27: 火 | D27: 236.75 | E27: 15 | F27: 150 | G27: 5 | H27: 300 | I27: 10
A28: 2025-01-22 | B28: 45679 | C28: 水 | D28: 236.75 | E28: 20 | F28: 200 | G28: 6.666666667 | H28: 400 | I28: 13.33333333
A29: 2025-01-23 | B29: 45680 | C29: 木 | D29: 236.75 | E29: 25 | F29: 250 | G29: 8.333333333 | H29: 500 | I29: 16.66666667
A30: 2025-01-24 | B30: 45681 | C30: 金 | D30: 236.75 | E30: 30 | F30: 300 | G30: 10 | H30: 600 | I30: 20
A31: 2025-01-25 | B31: 45682 | C31: 土
A32: 2025-01-26 | B32: 45683 | C32: 日
A33: 2025-01-27 | B33: 45684 | C33: 月 | D33: 236.75 | E33: 10 | F33: 100 | G33: 3.333333333 | H33: 200 | I33: 6.666666667
A34: 2025-01-28 | B34: 45685 | C34: 火 | D34: 236.75 | E34: 15 | F34: 150 | G34: 5 | H34: 300 | I34: 10
A35: 2025-01-29 | B35: 45686 | C35: 水 | D35: 236.75 | E35: 20 | F35: 200 | G35: 6.666666667 | H35: 400 | I35: 13.33333333
A36: 2025-01-30 | B36: 45687 | C36: 木 | D36: 236.75 | E36: 25 | F36: 250 | G36: 8.333333333 | H36: 500 | I36: 16.66666667
A37: 2025-01-31 | B37: 45688 | C37: 金 | D37: 236.75 | E37: 30 | F37: 300 | G37: 10 | H37: 600 | I37: 20
D38: =SUM(D7:D37) -> 5445.25 | E38: =SUM(E7:E37) -> 475 | G38: =SUM(G7:G37) -> 158.3333333 | I38: =SUM(I7:I37) -> 316.6666667 | K38: =SUM(K7:K37) -> 0 | M38: =SUM(M7:M37) -> 0 | O38: =SUM(O7:O37) -> 0 | Q38: =SUM(Q7:Q37) -> 0 | S38: =SUM(S7:S37) -> 0 | U38: =SUM(U7:U37) -> 0 | W38: =SUM(W7:W37) -> 0 | Y38: =SUM(Y7:Y37) -> 0 | AA38: =SUM(AA7:AA37) -> 0 | AC38: =SUM(AC7:AC37) -> 0
